{"text_format":"3","workbook":"xlsx","n_sheets":2,"sheets":["เริ่ม","ปฏิทินของครอบครัว"],"not_rendered":{"images":2,"defined_names":15},"read":"whole","date_system":"1900"}

{"sheet":"เริ่ม","index":0,"n_rows":7,"n_cols":2,"rows_kept":7}
[null,"เกี่ยวกับเทมเพลตนี้"]
[null,"ติดตามวันสำคัญ และใส่บันทึกย่อในปฏิทินของครอบครัวนี้"]
[null,"กำหนดชื่อปฏิทินและเลือกปี"]
[null,"ปฏิทินแต่ละเดือนมีการอัปเดตอัตโนมัติ"]
[null,"หมายเหตุ: "]
[null,"คำแนะนำเพิ่มเติมจะอยู่ในคอลัมน์ A ในเวิร์กชีตปฏิทินสำหรับครอบครัว ข้อความนี้ได้ถูกซ่อนไว้โดยเจตนา เมื่อต้องการเอาข้อความออก ให้เลือกคอลัมน์ A แล้วเลือก ลบ เมื่อต้องการยกเลิกการซ่อนข้อความ ให้เลือกคอลัมน์ A แล้วเลือกเปลี่ยนสีฟอนต์"]
[null,"เมื่อต้องการเรียนรู้เพิ่มเติมเกี่ยวกับตาราง ให้กด SHIFT แล้วตามด้วย F10 ภายในตาราง เลือกตัวเลือก ตาราง จากนั้น เลือก ข้อความแสดงแทน"]

{"sheet":"ปฏิทินของครอบครัว","index":1,"n_rows":49,"n_cols":38,"rows_kept":49,"merged":[[2,3,2,29],[2,30,2,34],[2,37,2,39],[5,3,5,6],[5,7,5,16],[5,20,5,34],[6,3,6,6],[6,7,6,16],[6,20,6,34],[7,3,7,6],[7,7,7,16],[7,20,7,34],[8,3,8,6],[8,7,8,16],[8,20,8,34],[9,3,9,6],[9,7,9,16],[9,20,9,34],[10,3,10,6],[10,7,10,16],[10,20,10,34],[11,3,11,6],[11,7,11,16],[11,20,11,34],[12,3,12,6],[12,7,12,16],[12,20,12,34],[13,3,13,6],[13,7,13,16],[13,20,13,34],[14,3,14,6],[14,7,14,16],[14,20,14,34],[15,3,15,6],[15,7,15,16],[15,20,15,34],[16,3,16,6],[16,7,16,16],[16,20,16,34],[17,3,17,6],[17,7,17,16],[17,20,17,34],[18,3,18,6],[18,7,18,16],[18,20,18,34],[19,3,19,6],[19,7,19,16],[19,20,19,34],[20,3,20,4],[21,3,21,4],[23,2,23,8],[23,11,23,17],[23,20,23,26],[23,29,23,35],[32,2,32,8],[32,11,32,17],[32,20,32,26],[32,29,32,35],[41,2,41,8],[41,11,41,17],[41,20,41,26],[41,29,41,35]]}
["สร้างปฏิทินของครอบครัวสำหรับปีต่างๆ ในเวิร์กชีตนี้ คำแนะนำที่เป็นประโยชน์เกี่ยวกับวิธีใช้เวิร์กชีตนี้อยู่ในเซลล์ในคอลัมน์นี้ คำแนะนำถัดไปอยู่ในเซลล์ A3"]
[]
["กำหนดชื่อของปฏิทินในเซลล์ D3 และใส่ปีในเซลล์ AE3 เคล็ดลับอยู่ในเซลล์ AL3 คำแนะนำถัดไปอยู่ในเซลล์ A5",null,null,"ปฏิทินของครอบครัว Smith",{"$nulls":26},{"$f":"YEAR(TODAY())+543","v":2562},{"$nulls":6},"เคล็ดลับ: ใช้สปินเนอร์เพื่อเปลี่ยนปีปฏิทินในเซลล์นี้"]
[]
["ป้ายชื่อวันสำคัญอยู่ในเซลล์ D5 และป้ายชื่อบันทึกย่ออยู่ในเซลล์ U5 ใส่วันสำคัญในเซลล์ D6 ถึง D20 โอกาสหรือเหตุการณ์ในเซลล์ H6 ถึง H20 และบันทึกย่อในเซลล์ U6 ถึง U20 คำแนะนำถัดไปอยู่ในเซลล์ A23",null,null,"วันสำคัญ",{"$nulls":16},"บันทึกย่อ"]
[{"$nulls":3},{"$f":"DATE(YEAR(TODAY()),1,1)","v":"2019-01-01"},{"$nulls":3},"วันปีใหม่"]
[{"$nulls":3},{"$f":"DATE(YEAR(TODAY()),3,25)","v":"2019-03-25"},{"$nulls":3},"วันเกิดของ Jordan"]
{"$rows_empty":15}
["ปฏิทินรายปีอยู่ในเซลล์ C24 ถึง AJ49 ปฏิทินของเดือนมกราคมอยู่ในเซลล์ C25 ถึง I31 ปฏิทินของเดือนกุมภาพันธ์อยู่ในเซลล์ L25 ถึง R31 ปฏิทินของเดือนมีนาคมอยู่ในเซลล์ U25 ถึง AA31 และปฏิทินของเดือนเมษายนอยู่ในเซลล์ AD25 ถึง AJ31"]
["ชื่อเดือนอยู่ในแถวนี้ ป้ายกำกับเดือนมกราคมอยู่ในเซลล์ C24 ป้ายกำกับเดือนกุมภาพันธ์อยู่ในเซลล์ L24 มีนาคมอยู่ใน U24 และเมษายนอยู่ใน AD24",null,{"$f":"DATE(ปีปฏิทิน,1,1)","v":"2019-01-01"},{"$nulls":8},{"$f":"DATE(ปีปฏิทิน,2,1)","v":"2019-02-01"},{"$nulls":8},{"$f":"DATE(ปีปฏิทิน,3,1)","v":"2019-03-01"},{"$nulls":8},{"$f":"DATE(ปีปฏิทิน,4,1)","v":"2019-04-01"}]
["ชื่อวันทำงานอยู่ในแถวนี้ ชื่อวันทำงานของเดือนมกราคมอยู่ในเซลล์ C25 ถึง I25 วันทำงานของเดือนกุมภาพันธ์อยู่ในเซลล์ L25 ถึง R25 วันทำงานของเดือนมีนาคมอยู่ในเซลล์ U25 ถึง AA25 และวันทำงานของเดือนเมษายนอยู่ในเซลล์ AD25 ถึง AJ25",null,"จ","อ","พ","พฤ","ศ","ส","อา",null,null,"จ","อ","พ","พฤ","ศ","ส","อา",null,null,"จ","อ","พ","พฤ","ศ","ส","อา",null,null,"จ","อ","พ","พฤ","ศ","ส","อา"]
["วันที่จะถูกอัปเดตโดยอัตโนมัติในแถวนี้ วันที่ของเดือนมกราคมอยู่ในเซลล์ด้านขวา เซลล์ C26 ถึง I31 วันทีของเดือนกุมภาพันธ์อยู่ในเซลล์ L26 ถึง R31 วันทีของเดือนมีนาคมอยู่ในเซลล์ U26 ถึง AA31 และของเดือนเมษายนอยู่ในเซลล์ AD26 ถึง AJ31 คำแนะนำถัดไปอยู่ในเซลล์ A32",null,{"$f":"IF(DAY(_xlfn.SINGLE(ม.ค.อา.1))=1,\"\",IF(AND(YEAR(_xlfn.SINGLE(ม.ค.อา.1)+1)=ปีปฏิทิน,MONTH(_xlfn.SINGLE(ม.ค.อา.1)+1)=1),_xlfn.SINGLE(ม.ค.อา.1)+1,\"\"))","v":{"$error":"#NAME?"}},{"$f":"IF(DAY(_xlfn.SINGLE(ม.ค.อา.1))=1,\"\",IF(AND(YEAR(_xlfn.SINGLE(ม.ค.อา.1)+2)=ปีปฏิทิน,MONTH(_xlfn.SINGLE(ม.ค.อา.1)+2)=1),_xlfn.SINGLE(ม.ค.อา.1)+2,\"\"))","v":{"$error":"#NAME?"}},{"$f":"IF(DAY(_xlfn.SINGLE(ม.ค.อา.1))=1,\"\",IF(AND(YEAR(_xlfn.SINGLE(ม.ค.อา.1)+3)=ปีปฏิทิน,MONTH(_xlfn.SINGLE(ม.ค.อา.1)+3)=1),_xlfn.SINGLE(ม.ค.อา.1)+3,\"\"))","v":{"$error":"#NAME?"}},{"$f":"IF(DAY(_xlfn.SINGLE(ม.ค.อา.1))=1,\"\",IF(AND(YEAR(_xlfn.SINGLE(ม.ค.อา.1)+4)=ปีปฏิทิน,MONTH(_xlfn.SINGLE(ม.ค.อา.1)+4)=1),_xlfn.SINGLE(ม.ค.อา.1)+4,\"\"))","v":{"$error":"#NAME?"}},{"$f":"IF(DAY(_xlfn.SINGLE(ม.ค.อา.1))=1,\"\",IF(AND(YEAR(_xlfn.SINGLE(ม.ค.อา.1)+5)=ปีปฏิทิน,MONTH(_xlfn.SINGLE(ม.ค.อา.1)+5)=1),_xlfn.SINGLE(ม.ค.อา.1)+5,\"\"))","v":{"$error":"#NAME?"}},{"$f":"IF(DAY(_xlfn.SINGLE(ม.ค.อา.1))=1,\"\",IF(AND(YEAR(_xlfn.SINGLE(ม.ค.อา.1)+6)=ปีปฏิทิน,MONTH(_xlfn.SINGLE(ม.ค.อา.1)+6)=1),_xlfn.SINGLE(ม.ค.อา.1)+6,\"\"))","v":{"$error":"#NAME?"}},{"$f":"_xlfn.SINGLE(IF(DAY(_xlfn.SINGLE(ม.ค.อา.1))=1,IF(AND(YEAR(_xlfn.SINGLE(ม.ค.อา.1))=ปีปฏิทิน,MONTH(_xlfn.SINGLE(ม.ค.อา.1))=1),ม.ค.อา.1,\"\"),IF(AND(YEAR(_xlfn.SINGLE(ม.ค.อา.1)+7)=ปีปฏิทิน,MONTH(_xlfn.SINGLE(ม.ค.อา.1)+7)=1),_xlfn.SINGLE(ม.ค.อา.1)+7,\"\")))","v":{"$error":"#NAME?"}},null,null,{"$f":"IF(DAY(_xlfn.SINGLE(ก.พ.อา.1))=1,\"\",IF(AND(YEAR(_xlfn.SINGLE(ก.พ.อา.1)+1)=ปีปฏิทิน,MONTH(_xlfn.SINGLE(ก.พ.อา.1)+1)=2),_xlfn.SINGLE(ก.พ.อา.1)+1,\"\"))","v":{"$error":"#NAME?"}},{"$f":"IF(DAY(_xlfn.SINGLE(ก.พ.อา.1))=1,\"\",IF(AND(YEAR(_xlfn.SINGLE(ก.พ.อา.1)+2)=ปีปฏิทิน,MONTH(_xlfn.SINGLE(ก.พ.อา.1)+2)=2),_xlfn.SINGLE(ก.พ.อา.1)+2,\"\"))","v":{"$error":"#NAME?"}},{"$f":"IF(DAY(_xlfn.SINGLE(ก.พ.อา.1))=1,\"\",IF(AND(YEAR(_xlfn.SINGLE(ก.พ.อา.1)+3)=ปีปฏิทิน,MONTH(_xlfn.SINGLE(ก.พ.อา.1)+3)=2),_xlfn.SINGLE(ก.พ.อา.1)+3,\"\"))","v":{"$error":"#NAME?"}},{"$f":"IF(DAY(_xlfn.SINGLE(ก.พ.อา.1))=1,\"\",IF(AND(YEAR(_xlfn.SINGLE(ก.พ.อา.1)+4)=ปีปฏิทิน,MONTH(_xlfn.SINGLE(ก.พ.อา.1)+4)=2),_xlfn.SINGLE(ก.พ.อา.1)+4,\"\"))","v":{"$error":"#NAME?"}},{"$f":"IF(DAY(_xlfn.SINGLE(ก.พ.อา.1))=1,\"\",IF(AND(YEAR(_xlfn.SINGLE(ก.พ.อา.1)+5)=ปีปฏิทิน,MONTH(_xlfn.SINGLE(ก.พ.อา.1)+5)=2),_xlfn.SINGLE(ก.พ.อา.1)+5,\"\"))","v":{"$error":"#NAME?"}},{"$f":"IF(DAY(_xlfn.SINGLE(ก.พ.อา.1))=1,\"\",IF(AND(YEAR(_xlfn.SINGLE(ก.พ.อา.1)+6)=ปีปฏิทิน,MONTH(_xlfn.SINGLE(ก.พ.อา.1)+6)=2),_xlfn.SINGLE(ก.พ.อา.1)+6,\"\"))","v":{"$error":"#NAME?"}},{"$f":"_xlfn.SINGLE(IF(DAY(_xlfn.SINGLE(ก.พ.อา.1))=1,IF(AND(YEAR(_xlfn.SINGLE(ก.พ.อา.1))=ปีปฏิทิน,MONTH(_xlfn.SINGLE(ก.พ.อา.1))=2),ก.พ.อา.1,\"\"),IF(AND(YEAR(_xlfn.SINGLE(ก.พ.อา.1)+7)=ปีปฏิทิน,MONTH(_xlfn.SINGLE(ก.พ.อา.1)+7)=2),_xlfn.SINGLE(ก.พ.อา.1)+7,\"\")))","v":{"$error":"#NAME?"}},null,null,{"$f":"IF(DAY(_xlfn.SINGLE(MarSun1))=1,\"\",IF(AND(YEAR(_xlfn.SINGLE(MarSun1)+1)=ปีปฏิทิน,MONTH(_xlfn.SINGLE(MarSun1)+1)=3),_xlfn.SINGLE(MarSun1)+1,\"\"))","v":{"$error":"#NAME?"}},{"$f":"IF(DAY(_xlfn.SINGLE(MarSun1))=1,\"\",IF(AND(YEAR(_xlfn.SINGLE(MarSun1)+2)=ปีปฏิทิน,MONTH(_xlfn.SINGLE(MarSun1)+2)=3),_xlfn.SINGLE(MarSun1)+2,\"\"))","v":{"$error":"#NAME?"}},{"$f":"IF(DAY(_xlfn.SINGLE(MarSun1))=1,\"\",IF(AND(YEAR(_xlfn.SINGLE(MarSun1)+3)=ปีปฏิทิน,MONTH(_xlfn.SINGLE(MarSun1)+3)=3),_xlfn.SINGLE(MarSun1)+3,\"\"))","v":{"$error":"#NAME?"}},{"$f":"IF(DAY(_xlfn.SINGLE(MarSun1))=1,\"\",IF(AND(YEAR(_xlfn.SINGLE(MarSun1)+4)=ปีปฏิทิน,MONTH(_xlfn.SINGLE(MarSun1)+4)=3),_xlfn.SINGLE(MarSun1)+4,\"\"))","v":{"$error":"#NAME?"}},{"$f":"IF(DAY(_xlfn.SINGLE(MarSun1))=1,\"\",IF(AND(YEAR(_xlfn.SINGLE(MarSun1)+5)=ปีปฏิทิน,MONTH(_xlfn.SINGLE(MarSun1)+5)=3),_xlfn.SINGLE(MarSun1)+5,\"\"))","v":{"$error":"#NAME?"}},{"$f":"IF(DAY(_xlfn.SINGLE(MarSun1))=1,\"\",IF(AND(YEAR(_xlfn.SINGLE(MarSun1)+6)=ปีปฏิทิน,MONTH(_xlfn.SINGLE(MarSun1)+6)=3),_xlfn.SINGLE(MarSun1)+6,\"\"))","v":{"$error":"#NAME?"}},{"$f":"_xlfn.SINGLE(IF(DAY(_xlfn.SINGLE(MarSun1))=1,IF(AND(YEAR(_xlfn.SINGLE(MarSun1))=ปีปฏิทิน,MONTH(_xlfn.SINGLE(MarSun1))=3),MarSun1,\"\"),IF(AND(YEAR(_xlfn.SINGLE(MarSun1)+7)=ปีปฏิทิน,MONTH(_xlfn.SINGLE(MarSun1)+7)=3),_xlfn.SINGLE(MarSun1)+7,\"\")))","v":{"$error":"#NAME?"}},null,null,{"$f":"IF(DAY(_xlfn.SINGLE(เม.ย.อา.1))=1,\"\",IF(AND(YEAR(_xlfn.SINGLE(เม.ย.อา.1)+1)=ปีปฏิทิน,MONTH(_xlfn.SINGLE(เม.ย.อา.1)+1)=4),_xlfn.SINGLE(เม.ย.อา.1)+1,\"\"))","v":{"$error":"#NAME?"}},{"$f":"IF(DAY(_xlfn.SINGLE(เม.ย.อา.1))=1,\"\",IF(AND(YEAR(_xlfn.SINGLE(เม.ย.อา.1)+2)=ปีปฏิทิน,MONTH(_xlfn.SINGLE(เม.ย.อา.1)+2)=4),_xlfn.SINGLE(เม.ย.อา.1)+2,\"\"))","v":{"$error":"#NAME?"}},{"$f":"IF(DAY(_xlfn.SINGLE(เม.ย.อา.1))=1,\"\",IF(AND(YEAR(_xlfn.SINGLE(เม.ย.อา.1)+3)=ปีปฏิทิน,MONTH(_xlfn.SINGLE(เม.ย.อา.1)+3)=4),_xlfn.SINGLE(เม.ย.อา.1)+3,\"\"))","v":{"$error":"#NAME?"}},{"$f":"IF(DAY(_xlfn.SINGLE(เม.ย.อา.1))=1,\"\",IF(AND(YEAR(_xlfn.SINGLE(เม.ย.อา.1)+4)=ปีปฏิทิน,MONTH(_xlfn.SINGLE(เม.ย.อา.1)+4)=4),_xlfn.SINGLE(เม.ย.อา.1)+4,\"\"))","v":{"$error":"#NAME?"}},{"$f":"IF(DAY(_xlfn.SINGLE(เม.ย.อา.1))=1,\"\",IF(AND(YEAR(_xlfn.SINGLE(เม.ย.อา.1)+5)=ปีปฏิทิน,MONTH(_xlfn.SINGLE(เม.ย.อา.1)+5)=4),_xlfn.SINGLE(เม.ย.อา.1)+5,\"\"))","v":{"$error":"#NAME?"}},{"$f":"IF(DAY(_xlfn.SINGLE(เม.ย.อา.1))=1,\"\",IF(AND(YEAR(_xlfn.SINGLE(เม.ย.อา.1)+6)=ปีปฏิทิน,MONTH(_xlfn.SINGLE(เม.ย.อา.1)+6)=4),_xlfn.SINGLE(เม.ย.อา.1)+6,\"\"))","v":{"$error":"#NAME?"}},{"$f":"_xlfn.SINGLE(IF(DAY(_xlfn.SINGLE(เม.ย.อา.1))=1,IF(AND(YEAR(_xlfn.SINGLE(เม.ย.อา.1))=ปีปฏิทิน,MONTH(_xlfn.SINGLE(เม.ย.อา.1))=4),เม.ย.อา.1,\"\"),IF(AND(YEAR(_xlfn.SINGLE(เม.ย.อา.1)+7)=ปีปฏิทิน,MONTH(_xlfn.SINGLE(เม.ย.อา.1)+7)=4),_xlfn.SINGLE(เม.ย.อา.1)+7,\"\")))","v":{"$error":"#NAME?"}}]
[null,null,{"$f":"IF(DAY(_xlfn.SINGLE(ม.ค.อา.1))=1,IF(AND(YEAR(_xlfn.SINGLE(ม.ค.อา.1)+1)=ปีปฏิทิน,MONTH(_xlfn.SINGLE(ม.ค.อา.1)+1)=1),_xlfn.SINGLE(ม.ค.อา.1)+1,\"\"),IF(AND(YEAR(_xlfn.SINGLE(ม.ค.อา.1)+8)=ปีปฏิทิน,MONTH(_xlfn.SINGLE(ม.ค.อา.1)+8)=1),_xlfn.SINGLE(ม.ค.อา.1)+8,\"\"))","v":{"$error":"#NAME?"}},{"$f":"IF(DAY(_xlfn.SINGLE(ม.ค.อา.1))=1,IF(AND(YEAR(_xlfn.SINGLE(ม.ค.อา.1)+2)=ปีปฏิทิน,MONTH(_xlfn.SINGLE(ม.ค.อา.1)+2)=1),_xlfn.SINGLE(ม.ค.อา.1)+2,\"\"),IF(AND(YEAR(_xlfn.SINGLE(ม.ค.อา.1)+9)=ปีปฏิทิน,MONTH(_xlfn.SINGLE(ม.ค.อา.1)+9)=1),_xlfn.SINGLE(ม.ค.อา.1)+9,\"\"))","v":{"$error":"#NAME?"}},{"$f":"IF(DAY(_xlfn.SINGLE(ม.ค.อา.1))=1,IF(AND(YEAR(_xlfn.SINGLE(ม.ค.อา.1)+3)=ปีปฏิทิน,MONTH(_xlfn.SINGLE(ม.ค.อา.1)+3)=1),_xlfn.SINGLE(ม.ค.อา.1)+3,\"\"),IF(AND(YEAR(_xlfn.SINGLE(ม.ค.อา.1)+10)=ปีปฏิทิน,MONTH(_xlfn.SINGLE(ม.ค.อา.1)+10)=1),_xlfn.SINGLE(ม.ค.อา.1)+10,\"\"))","v":{"$error":"#NAME?"}},{"$f":"IF(DAY(_xlfn.SINGLE(ม.ค.อา.1))=1,IF(AND(YEAR(_xlfn.SINGLE(ม.ค.อา.1)+4)=ปีปฏิทิน,MONTH(_xlfn.SINGLE(ม.ค.อา.1)+4)=1),_xlfn.SINGLE(ม.ค.อา.1)+4,\"\"),IF(AND(YEAR(_xlfn.SINGLE(ม.ค.อา.1)+11)=ปีปฏิทิน,MONTH(_xlfn.SINGLE(ม.ค.อา.1)+11)=1),_xlfn.SINGLE(ม.ค.อา.1)+11,\"\"))","v":{"$error":"#NAME?"}},{"$f":"IF(DAY(_xlfn.SINGLE(ม.ค.อา.1))=1,IF(AND(YEAR(_xlfn.SINGLE(ม.ค.อา.1)+5)=ปีปฏิทิน,MONTH(_xlfn.SINGLE(ม.ค.อา.1)+5)=1),_xlfn.SINGLE(ม.ค.อา.1)+5,\"\"),IF(AND(YEAR(_xlfn.SINGLE(ม.ค.อา.1)+12)=ปีปฏิทิน,MONTH(_xlfn.SINGLE(ม.ค.อา.1)+12)=1),_xlfn.SINGLE(ม.ค.อา.1)+12,\"\"))","v":{"$error":"#NAME?"}},{"$f":"IF(DAY(_xlfn.SINGLE(ม.ค.อา.1))=1,IF(AND(YEAR(_xlfn.SINGLE(ม.ค.อา.1)+6)=ปีปฏิทิน,MONTH(_xlfn.SINGLE(ม.ค.อา.1)+6)=1),_xlfn.SINGLE(ม.ค.อา.1)+6,\"\"),IF(AND(YEAR(_xlfn.SINGLE(ม.ค.อา.1)+13)=ปีปฏิทิน,MONTH(_xlfn.SINGLE(ม.ค.อา.1)+13)=1),_xlfn.SINGLE(ม.ค.อา.1)+13,\"\"))","v":{"$error":"#NAME?"}},{"$f":"IF(DAY(_xlfn.SINGLE(ม.ค.อา.1))=1,IF(AND(YEAR(_xlfn.SINGLE(ม.ค.อา.1)+7)=ปีปฏิทิน,MONTH(_xlfn.SINGLE(ม.ค.อา.1)+7)=1),_xlfn.SINGLE(ม.ค.อา.1)+7,\"\"),IF(AND(YEAR(_xlfn.SINGLE(ม.ค.อา.1)+14)=ปีปฏิทิน,MONTH(_xlfn.SINGLE(ม.ค.อา.1)+14)=1),_xlfn.SINGLE(ม.ค.อา.1)+14,\"\"))","v":{"$error":"#NAME?"}},null,null,{"$f":"IF(DAY(_xlfn.SINGLE(ก.พ.อา.1))=1,IF(AND(YEAR(_xlfn.SINGLE(ก.พ.อา.1)+1)=ปีปฏิทิน,MONTH(_xlfn.SINGLE(ก.พ.อา.1)+1)=2),_xlfn.SINGLE(ก.พ.อา.1)+1,\"\"),IF(AND(YEAR(_xlfn.SINGLE(ก.พ.อา.1)+8)=ปีปฏิทิน,MONTH(_xlfn.SINGLE(ก.พ.อา.1)+8)=2),_xlfn.SINGLE(ก.พ.อา.1)+8,\"\"))","v":{"$error":"#NAME?"}},{"$f":"IF(DAY(_xlfn.SINGLE(ก.พ.อา.1))=1,IF(AND(YEAR(_xlfn.SINGLE(ก.พ.อา.1)+2)=ปีปฏิทิน,MONTH(_xlfn.SINGLE(ก.พ.อา.1)+2)=2),_xlfn.SINGLE(ก.พ.อา.1)+2,\"\"),IF(AND(YEAR(_xlfn.SINGLE(ก.พ.อา.1)+9)=ปีปฏิทิน,MONTH(_xlfn.SINGLE(ก.พ.อา.1)+9)=2),_xlfn.SINGLE(ก.พ.อา.1)+9,\"\"))","v":{"$error":"#NAME?"}},{"$f":"IF(DAY(_xlfn.SINGLE(ก.พ.อา.1))=1,IF(AND(YEAR(_xlfn.SINGLE(ก.พ.อา.1)+3)=ปีปฏิทิน,MONTH(_xlfn.SINGLE(ก.พ.อา.1)+3)=2),_xlfn.SINGLE(ก.พ.อา.1)+3,\"\"),IF(AND(YEAR(_xlfn.SINGLE(ก.พ.อา.1)+10)=ปีปฏิทิน,MONTH(_xlfn.SINGLE(ก.พ.อา.1)+10)=2),_xlfn.SINGLE(ก.พ.อา.1)+10,\"\"))","v":{"$error":"#NAME?"}},{"$f":"IF(DAY(_xlfn.SINGLE(ก.พ.อา.1))=1,IF(AND(YEAR(_xlfn.SINGLE(ก.พ.อา.1)+4)=ปีปฏิทิน,MONTH(_xlfn.SINGLE(ก.พ.อา.1)+4)=2),_xlfn.SINGLE(ก.พ.อา.1)+4,\"\"),IF(AND(YEAR(_xlfn.SINGLE(ก.พ.อา.1)+11)=ปีปฏิทิน,MONTH(_xlfn.SINGLE(ก.พ.อา.1)+11)=2),_xlfn.SINGLE(ก.พ.อา.1)+11,\"\"))","v":{"$error":"#NAME?"}},{"$f":"IF(DAY(_xlfn.SINGLE(ก.พ.อา.1))=1,IF(AND(YEAR(_xlfn.SINGLE(ก.พ.อา.1)+5)=ปีปฏิทิน,MONTH(_xlfn.SINGLE(ก.พ.อา.1)+5)=2),_xlfn.SINGLE(ก.พ.อา.1)+5,\"\"),IF(AND(YEAR(_xlfn.SINGLE(ก.พ.อา.1)+12)=ปีปฏิทิน,MONTH(_xlfn.SINGLE(ก.พ.อา.1)+12)=2),_xlfn.SINGLE(ก.พ.อา.1)+12,\"\"))","v":{"$error":"#NAME?"}},{"$f":"IF(DAY(_xlfn.SINGLE(ก.พ.อา.1))=1,IF(AND(YEAR(_xlfn.SINGLE(ก.พ.อา.1)+6)=ปีปฏิทิน,MONTH(_xlfn.SINGLE(ก.พ.อา.1)+6)=2),_xlfn.SINGLE(ก.พ.อา.1)+6,\"\"),IF(AND(YEAR(_xlfn.SINGLE(ก.พ.อา.1)+13)=ปีปฏิทิน,MONTH(_xlfn.SINGLE(ก.พ.อา.1)+13)=2),_xlfn.SINGLE(ก.พ.อา.1)+13,\"\"))","v":{"$error":"#NAME?"}},{"$f":"IF(DAY(_xlfn.SINGLE(ก.พ.อา.1))=1,IF(AND(YEAR(_xlfn.SINGLE(ก.พ.อา.1)+7)=ปีปฏิทิน,MONTH(_xlfn.SINGLE(ก.พ.อา.1)+7)=2),_xlfn.SINGLE(ก.พ.อา.1)+7,\"\"),IF(AND(YEAR(_xlfn.SINGLE(ก.พ.อา.1)+14)=ปีปฏิทิน,MONTH(_xlfn.SINGLE(ก.พ.อา.1)+14)=2),_xlfn.SINGLE(ก.พ.อา.1)+14,\"\"))","v":{"$error":"#NAME?"}},null,null,{"$f":"IF(DAY(_xlfn.SINGLE(MarSun1))=1,IF(AND(YEAR(_xlfn.SINGLE(MarSun1)+1)=ปีปฏิทิน,MONTH(_xlfn.SINGLE(MarSun1)+1)=3),_xlfn.SINGLE(MarSun1)+1,\"\"),IF(AND(YEAR(_xlfn.SINGLE(MarSun1)+8)=ปีปฏิทิน,MONTH(_xlfn.SINGLE(MarSun1)+8)=3),_xlfn.SINGLE(MarSun1)+8,\"\"))","v":{"$error":"#NAME?"}},{"$f":"IF(DAY(_xlfn.SINGLE(MarSun1))=1,IF(AND(YEAR(_xlfn.SINGLE(MarSun1)+2)=ปีปฏิทิน,MONTH(_xlfn.SINGLE(MarSun1)+2)=3),_xlfn.SINGLE(MarSun1)+2,\"\"),IF(AND(YEAR(_xlfn.SINGLE(MarSun1)+9)=ปีปฏิทิน,MONTH(_xlfn.SINGLE(MarSun1)+9)=3),_xlfn.SINGLE(MarSun1)+9,\"\"))","v":{"$error":"#NAME?"}},{"$f":"IF(DAY(_xlfn.SINGLE(MarSun1))=1,IF(AND(YEAR(_xlfn.SINGLE(MarSun1)+3)=ปีปฏิทิน,MONTH(_xlfn.SINGLE(MarSun1)+3)=3),_xlfn.SINGLE(MarSun1)+3,\"\"),IF(AND(YEAR(_xlfn.SINGLE(MarSun1)+10)=ปีปฏิทิน,MONTH(_xlfn.SINGLE(MarSun1)+10)=3),_xlfn.SINGLE(MarSun1)+10,\"\"))","v":{"$error":"#NAME?"}},{"$f":"IF(DAY(_xlfn.SINGLE(MarSun1))=1,IF(AND(YEAR(_xlfn.SINGLE(MarSun1)+4)=ปีปฏิทิน,MONTH(_xlfn.SINGLE(MarSun1)+4)=3),_xlfn.SINGLE(MarSun1)+4,\"\"),IF(AND(YEAR(_xlfn.SINGLE(MarSun1)+11)=ปีปฏิทิน,MONTH(_xlfn.SINGLE(MarSun1)+11)=3),_xlfn.SINGLE(MarSun1)+11,\"\"))","v":{"$error":"#NAME?"}},{"$f":"IF(DAY(_xlfn.SINGLE(MarSun1))=1,IF(AND(YEAR(_xlfn.SINGLE(MarSun1)+5)=ปีปฏิทิน,MONTH(_xlfn.SINGLE(MarSun1)+5)=3),_xlfn.SINGLE(MarSun1)+5,\"\"),IF(AND(YEAR(_xlfn.SINGLE(MarSun1)+12)=ปีปฏิทิน,MONTH(_xlfn.SINGLE(MarSun1)+12)=3),_xlfn.SINGLE(MarSun1)+12,\"\"))","v":{"$error":"#NAME?"}},{"$f":"IF(DAY(_xlfn.SINGLE(MarSun1))=1,IF(AND(YEAR(_xlfn.SINGLE(MarSun1)+6)=ปีปฏิทิน,MONTH(_xlfn.SINGLE(MarSun1)+6)=3),_xlfn.SINGLE(MarSun1)+6,\"\"),IF(AND(YEAR(_xlfn.SINGLE(MarSun1)+13)=ปีปฏิทิน,MONTH(_xlfn.SINGLE(MarSun1)+13)=3),_xlfn.SINGLE(MarSun1)+13,\"\"))","v":{"$error":"#NAME?"}},{"$f":"IF(DAY(_xlfn.SINGLE(MarSun1))=1,IF(AND(YEAR(_xlfn.SINGLE(MarSun1)+7)=ปีปฏิทิน,MONTH(_xlfn.SINGLE(MarSun1)+7)=3),_xlfn.SINGLE(MarSun1)+7,\"\"),IF(AND(YEAR(_xlfn.SINGLE(MarSun1)+14)=ปีปฏิทิน,MONTH(_xlfn.SINGLE(MarSun1)+14)=3),_xlfn.SINGLE(MarSun1)+14,\"\"))","v":{"$error":"#NAME?"}},null,null,{"$f":"IF(DAY(_xlfn.SINGLE(เม.ย.อา.1))=1,IF(AND(YEAR(_xlfn.SINGLE(เม.ย.อา.1)+1)=ปีปฏิทิน,MONTH(_xlfn.SINGLE(เม.ย.อา.1)+1)=4),_xlfn.SINGLE(เม.ย.อา.1)+1,\"\"),IF(AND(YEAR(_xlfn.SINGLE(เม.ย.อา.1)+8)=ปีปฏิทิน,MONTH(_xlfn.SINGLE(เม.ย.อา.1)+8)=4),_xlfn.SINGLE(เม.ย.อา.1)+8,\"\"))","v":{"$error":"#NAME?"}},{"$f":"IF(DAY(_xlfn.SINGLE(เม.ย.อา.1))=1,IF(AND(YEAR(_xlfn.SINGLE(เม.ย.อา.1)+2)=ปีปฏิทิน,MONTH(_xlfn.SINGLE(เม.ย.อา.1)+2)=4),_xlfn.SINGLE(เม.ย.อา.1)+2,\"\"),IF(AND(YEAR(_xlfn.SINGLE(เม.ย.อา.1)+9)=ปีปฏิทิน,MONTH(_xlfn.SINGLE(เม.ย.อา.1)+9)=4),_xlfn.SINGLE(เม.ย.อา.1)+9,\"\"))","v":{"$error":"#NAME?"}},{"$f":"IF(DAY(_xlfn.SINGLE(เม.ย.อา.1))=1,IF(AND(YEAR(_xlfn.SINGLE(เม.ย.อา.1)+3)=ปีปฏิทิน,MONTH(_xlfn.SINGLE(เม.ย.อา.1)+3)=4),_xlfn.SINGLE(เม.ย.อา.1)+3,\"\"),IF(AND(YEAR(_xlfn.SINGLE(เม.ย.อา.1)+10)=ปีปฏิทิน,MONTH(_xlfn.SINGLE(เม.ย.อา.1)+10)=4),_xlfn.SINGLE(เม.ย.อา.1)+10,\"\"))","v":{"$error":"#NAME?"}},{"$f":"IF(DAY(_xlfn.SINGLE(เม.ย.อา.1))=1,IF(AND(YEAR(_xlfn.SINGLE(เม.ย.อา.1)+4)=ปีปฏิทิน,MONTH(_xlfn.SINGLE(เม.ย.อา.1)+4)=4),_xlfn.SINGLE(เม.ย.อา.1)+4,\"\"),IF(AND(YEAR(_xlfn.SINGLE(เม.ย.อา.1)+11)=ปีปฏิทิน,MONTH(_xlfn.SINGLE(เม.ย.อา.1)+11)=4),_xlfn.SINGLE(เม.ย.อา.1)+11,\"\"))","v":{"$error":"#NAME?"}},{"$f":"IF(DAY(_xlfn.SINGLE(เม.ย.อา.1))=1,IF(AND(YEAR(_xlfn.SINGLE(เม.ย.อา.1)+5)=ปีปฏิทิน,MONTH(_xlfn.SINGLE(เม.ย.อา.1)+5)=4),_xlfn.SINGLE(เม.ย.อา.1)+5,\"\"),IF(AND(YEAR(_xlfn.SINGLE(เม.ย.อา.1)+12)=ปีปฏิทิน,MONTH(_xlfn.SINGLE(เม.ย.อา.1)+12)=4),_xlfn.SINGLE(เม.ย.อา.1)+12,\"\"))","v":{"$error":"#NAME?"}},{"$f":"IF(DAY(_xlfn.SINGLE(เม.ย.อา.1))=1,IF(AND(YEAR(_xlfn.SINGLE(เม.ย.อา.1)+6)=ปีปฏิทิน,MONTH(_xlfn.SINGLE(เม.ย.อา.1)+6)=4),_xlfn.SINGLE(เม.ย.อา.1)+6,\"\"),IF(AND(YEAR(_xlfn.SINGLE(เม.ย.อา.1)+13)=ปีปฏิทิน,MONTH(_xlfn.SINGLE(เม.ย.อา.1)+13)=4),_xlfn.SINGLE(เม.ย.อา.1)+13,\"\"))","v":{"$error":"#NAME?"}},{"$f":"IF(DAY(_xlfn.SINGLE(เม.ย.อา.1))=1,IF(AND(YEAR(_xlfn.SINGLE(เม.ย.อา.1)+7)=ปีปฏิทิน,MONTH(_xlfn.SINGLE(เม.ย.อา.1)+7)=4),_xlfn.SINGLE(เม.ย.อา.1)+7,\"\"),IF(AND(YEAR(_xlfn.SINGLE(เม.ย.อา.1)+14)=ปีปฏิทิน,MONTH(_xlfn.SINGLE(เม.ย.อา.1)+14)=4),_xlfn.SINGLE(เม.ย.อา.1)+14,\"\"))","v":{"$error":"#NAME?"}}]
[null,null,{"$f":"IF(DAY(_xlfn.SINGLE(ม.ค.อา.1))=1,IF(AND(YEAR(_xlfn.SINGLE(ม.ค.อา.1)+8)=ปีปฏิทิน,MONTH(_xlfn.SINGLE(ม.ค.อา.1)+8)=1),_xlfn.SINGLE(ม.ค.อา.1)+8,\"\"),IF(AND(YEAR(_xlfn.SINGLE(ม.ค.อา.1)+15)=ปีปฏิทิน,MONTH(_xlfn.SINGLE(ม.ค.อา.1)+15)=1),_xlfn.SINGLE(ม.ค.อา.1)+15,\"\"))","v":{"$error":"#NAME?"}},{"$f":"IF(DAY(_xlfn.SINGLE(ม.ค.อา.1))=1,IF(AND(YEAR(_xlfn.SINGLE(ม.ค.อา.1)+9)=ปีปฏิทิน,MONTH(_xlfn.SINGLE(ม.ค.อา.1)+9)=1),_xlfn.SINGLE(ม.ค.อา.1)+9,\"\"),IF(AND(YEAR(_xlfn.SINGLE(ม.ค.อา.1)+16)=ปีปฏิทิน,MONTH(_xlfn.SINGLE(ม.ค.อา.1)+16)=1),_xlfn.SINGLE(ม.ค.อา.1)+16,\"\"))","v":{"$error":"#NAME?"}},{"$f":"IF(DAY(_xlfn.SINGLE(ม.ค.อา.1))=1,IF(AND(YEAR(_xlfn.SINGLE(ม.ค.อา.1)+10)=ปีปฏิทิน,MONTH(_xlfn.SINGLE(ม.ค.อา.1)+10)=1),_xlfn.SINGLE(ม.ค.อา.1)+10,\"\"),IF(AND(YEAR(_xlfn.SINGLE(ม.ค.อา.1)+17)=ปีปฏิทิน,MONTH(_xlfn.SINGLE(ม.ค.อา.1)+17)=1),_xlfn.SINGLE(ม.ค.อา.1)+17,\"\"))","v":{"$error":"#NAME?"}},{"$f":"IF(DAY(_xlfn.SINGLE(ม.ค.อา.1))=1,IF(AND(YEAR(_xlfn.SINGLE(ม.ค.อา.1)+11)=ปีปฏิทิน,MONTH(_xlfn.SINGLE(ม.ค.อา.1)+11)=1),_xlfn.SINGLE(ม.ค.อา.1)+11,\"\"),IF(AND(YEAR(_xlfn.SINGLE(ม.ค.อา.1)+18)=ปีปฏิทิน,MONTH(_xlfn.SINGLE(ม.ค.อา.1)+18)=1),_xlfn.SINGLE(ม.ค.อา.1)+18,\"\"))","v":{"$error":"#NAME?"}},{"$f":"IF(DAY(_xlfn.SINGLE(ม.ค.อา.1))=1,IF(AND(YEAR(_xlfn.SINGLE(ม.ค.อา.1)+12)=ปีปฏิทิน,MONTH(_xlfn.SINGLE(ม.ค.อา.1)+12)=1),_xlfn.SINGLE(ม.ค.อา.1)+12,\"\"),IF(AND(YEAR(_xlfn.SINGLE(ม.ค.อา.1)+19)=ปีปฏิทิน,MONTH(_xlfn.SINGLE(ม.ค.อา.1)+19)=1),_xlfn.SINGLE(ม.ค.อา.1)+19,\"\"))","v":{"$error":"#NAME?"}},{"$f":"IF(DAY(_xlfn.SINGLE(ม.ค.อา.1))=1,IF(AND(YEAR(_xlfn.SINGLE(ม.ค.อา.1)+13)=ปีปฏิทิน,MONTH(_xlfn.SINGLE(ม.ค.อา.1)+13)=1),_xlfn.SINGLE(ม.ค.อา.1)+13,\"\"),IF(AND(YEAR(_xlfn.SINGLE(ม.ค.อา.1)+20)=ปีปฏิทิน,MONTH(_xlfn.SINGLE(ม.ค.อา.1)+20)=1),_xlfn.SINGLE(ม.ค.อา.1)+20,\"\"))","v":{"$error":"#NAME?"}},{"$f":"IF(DAY(_xlfn.SINGLE(ม.ค.อา.1))=1,IF(AND(YEAR(_xlfn.SINGLE(ม.ค.อา.1)+14)=ปีปฏิทิน,MONTH(_xlfn.SINGLE(ม.ค.อา.1)+14)=1),_xlfn.SINGLE(ม.ค.อา.1)+14,\"\"),IF(AND(YEAR(_xlfn.SINGLE(ม.ค.อา.1)+21)=ปีปฏิทิน,MONTH(_xlfn.SINGLE(ม.ค.อา.1)+21)=1),_xlfn.SINGLE(ม.ค.อา.1)+21,\"\"))","v":{"$error":"#NAME?"}},null,null,{"$f":"IF(DAY(_xlfn.SINGLE(ก.พ.อา.1))=1,IF(AND(YEAR(_xlfn.SINGLE(ก.พ.อา.1)+8)=ปีปฏิทิน,MONTH(_xlfn.SINGLE(ก.พ.อา.1)+8)=2),_xlfn.SINGLE(ก.พ.อา.1)+8,\"\"),IF(AND(YEAR(_xlfn.SINGLE(ก.พ.อา.1)+15)=ปีปฏิทิน,MONTH(_xlfn.SINGLE(ก.พ.อา.1)+15)=2),_xlfn.SINGLE(ก.พ.อา.1)+15,\"\"))","v":{"$error":"#NAME?"}},{"$f":"IF(DAY(_xlfn.SINGLE(ก.พ.อา.1))=1,IF(AND(YEAR(_xlfn.SINGLE(ก.พ.อา.1)+9)=ปีปฏิทิน,MONTH(_xlfn.SINGLE(ก.พ.อา.1)+9)=2),_xlfn.SINGLE(ก.พ.อา.1)+9,\"\"),IF(AND(YEAR(_xlfn.SINGLE(ก.พ.อา.1)+16)=ปีปฏิทิน,MONTH(_xlfn.SINGLE(ก.พ.อา.1)+16)=2),_xlfn.SINGLE(ก.พ.อา.1)+16,\"\"))","v":{"$error":"#NAME?"}},{"$f":"IF(DAY(_xlfn.SINGLE(ก.พ.อา.1))=1,IF(AND(YEAR(_xlfn.SINGLE(ก.พ.อา.1)+10)=ปีปฏิทิน,MONTH(_xlfn.SINGLE(ก.พ.อา.1)+10)=2),_xlfn.SINGLE(ก.พ.อา.1)+10,\"\"),IF(AND(YEAR(_xlfn.SINGLE(ก.พ.อา.1)+17)=ปีปฏิทิน,MONTH(_xlfn.SINGLE(ก.พ.อา.1)+17)=2),_xlfn.SINGLE(ก.พ.อา.1)+17,\"\"))","v":{"$error":"#NAME?"}},{"$f":"IF(DAY(_xlfn.SINGLE(ก.พ.อา.1))=1,IF(AND(YEAR(_xlfn.SINGLE(ก.พ.อา.1)+11)=ปีปฏิทิน,MONTH(_xlfn.SINGLE(ก.พ.อา.1)+11)=2),_xlfn.SINGLE(ก.พ.อา.1)+11,\"\"),IF(AND(YEAR(_xlfn.SINGLE(ก.พ.อา.1)+18)=ปีปฏิทิน,MONTH(_xlfn.SINGLE(ก.พ.อา.1)+18)=2),_xlfn.SINGLE(ก.พ.อา.1)+18,\"\"))","v":{"$error":"#NAME?"}},{"$f":"IF(DAY(_xlfn.SINGLE(ก.พ.อา.1))=1,IF(AND(YEAR(_xlfn.SINGLE(ก.พ.อา.1)+12)=ปีปฏิทิน,MONTH(_xlfn.SINGLE(ก.พ.อา.1)+12)=2),_xlfn.SINGLE(ก.พ.อา.1)+12,\"\"),IF(AND(YEAR(_xlfn.SINGLE(ก.พ.อา.1)+19)=ปีปฏิทิน,MONTH(_xlfn.SINGLE(ก.พ.อา.1)+19)=2),_xlfn.SINGLE(ก.พ.อา.1)+19,\"\"))","v":{"$error":"#NAME?"}},{"$f":"IF(DAY(_xlfn.SINGLE(ก.พ.อา.1))=1,IF(AND(YEAR(_xlfn.SINGLE(ก.พ.อา.1)+13)=ปีปฏิทิน,MONTH(_xlfn.SINGLE(ก.พ.อา.1)+13)=2),_xlfn.SINGLE(ก.พ.อา.1)+13,\"\"),IF(AND(YEAR(_xlfn.SINGLE(ก.พ.อา.1)+20)=ปีปฏิทิน,MONTH(_xlfn.SINGLE(ก.พ.อา.1)+20)=2),_xlfn.SINGLE(ก.พ.อา.1)+20,\"\"))","v":{"$error":"#NAME?"}},{"$f":"IF(DAY(_xlfn.SINGLE(ก.พ.อา.1))=1,IF(AND(YEAR(_xlfn.SINGLE(ก.พ.อา.1)+14)=ปีปฏิทิน,MONTH(_xlfn.SINGLE(ก.พ.อา.1)+14)=2),_xlfn.SINGLE(ก.พ.อา.1)+14,\"\"),IF(AND(YEAR(_xlfn.SINGLE(ก.พ.อา.1)+21)=ปีปฏิทิน,MONTH(_xlfn.SINGLE(ก.พ.อา.1)+21)=2),_xlfn.SINGLE(ก.พ.อา.1)+21,\"\"))","v":{"$error":"#NAME?"}},null,null,{"$f":"IF(DAY(_xlfn.SINGLE(MarSun1))=1,IF(AND(YEAR(_xlfn.SINGLE(MarSun1)+8)=ปีปฏิทิน,MONTH(_xlfn.SINGLE(MarSun1)+8)=3),_xlfn.SINGLE(MarSun1)+8,\"\"),IF(AND(YEAR(_xlfn.SINGLE(MarSun1)+15)=ปีปฏิทิน,MONTH(_xlfn.SINGLE(MarSun1)+15)=3),_xlfn.SINGLE(MarSun1)+15,\"\"))","v":{"$error":"#NAME?"}},{"$f":"IF(DAY(_xlfn.SINGLE(MarSun1))=1,IF(AND(YEAR(_xlfn.SINGLE(MarSun1)+9)=ปีปฏิทิน,MONTH(_xlfn.SINGLE(MarSun1)+9)=3),_xlfn.SINGLE(MarSun1)+9,\"\"),IF(AND(YEAR(_xlfn.SINGLE(MarSun1)+16)=ปีปฏิทิน,MONTH(_xlfn.SINGLE(MarSun1)+16)=3),_xlfn.SINGLE(MarSun1)+16,\"\"))","v":{"$error":"#NAME?"}},{"$f":"IF(DAY(_xlfn.SINGLE(MarSun1))=1,IF(AND(YEAR(_xlfn.SINGLE(MarSun1)+10)=ปีปฏิทิน,MONTH(_xlfn.SINGLE(MarSun1)+10)=3),_xlfn.SINGLE(MarSun1)+10,\"\"),IF(AND(YEAR(_xlfn.SINGLE(MarSun1)+17)=ปีปฏิทิน,MONTH(_xlfn.SINGLE(MarSun1)+17)=3),_xlfn.SINGLE(MarSun1)+17,\"\"))","v":{"$error":"#NAME?"}},{"$f":"IF(DAY(_xlfn.SINGLE(MarSun1))=1,IF(AND(YEAR(_xlfn.SINGLE(MarSun1)+11)=ปีปฏิทิน,MONTH(_xlfn.SINGLE(MarSun1)+11)=3),_xlfn.SINGLE(MarSun1)+11,\"\"),IF(AND(YEAR(_xlfn.SINGLE(MarSun1)+18)=ปีปฏิทิน,MONTH(_xlfn.SINGLE(MarSun1)+18)=3),_xlfn.SINGLE(MarSun1)+18,\"\"))","v":{"$error":"#NAME?"}},{"$f":"IF(DAY(_xlfn.SINGLE(MarSun1))=1,IF(AND(YEAR(_xlfn.SINGLE(MarSun1)+12)=ปีปฏิทิน,MONTH(_xlfn.SINGLE(MarSun1)+12)=3),_xlfn.SINGLE(MarSun1)+12,\"\"),IF(AND(YEAR(_xlfn.SINGLE(MarSun1)+19)=ปีปฏิทิน,MONTH(_xlfn.SINGLE(MarSun1)+19)=3),_xlfn.SINGLE(MarSun1)+19,\"\"))","v":{"$error":"#NAME?"}},{"$f":"IF(DAY(_xlfn.SINGLE(MarSun1))=1,IF(AND(YEAR(_xlfn.SINGLE(MarSun1)+13)=ปีปฏิทิน,MONTH(_xlfn.SINGLE(MarSun1)+13)=3),_xlfn.SINGLE(MarSun1)+13,\"\"),IF(AND(YEAR(_xlfn.SINGLE(MarSun1)+20)=ปีปฏิทิน,MONTH(_xlfn.SINGLE(MarSun1)+20)=3),_xlfn.SINGLE(MarSun1)+20,\"\"))","v":{"$error":"#NAME?"}},{"$f":"IF(DAY(_xlfn.SINGLE(MarSun1))=1,IF(AND(YEAR(_xlfn.SINGLE(MarSun1)+14)=ปีปฏิทิน,MONTH(_xlfn.SINGLE(MarSun1)+14)=3),_xlfn.SINGLE(MarSun1)+14,\"\"),IF(AND(YEAR(_xlfn.SINGLE(MarSun1)+21)=ปีปฏิทิน,MONTH(_xlfn.SINGLE(MarSun1)+21)=3),_xlfn.SINGLE(MarSun1)+21,\"\"))","v":{"$error":"#NAME?"}},null,null,{"$f":"IF(DAY(_xlfn.SINGLE(เม.ย.อา.1))=1,IF(AND(YEAR(_xlfn.SINGLE(เม.ย.อา.1)+8)=ปีปฏิทิน,MONTH(_xlfn.SINGLE(เม.ย.อา.1)+8)=4),_xlfn.SINGLE(เม.ย.อา.1)+8,\"\"),IF(AND(YEAR(_xlfn.SINGLE(เม.ย.อา.1)+15)=ปีปฏิทิน,MONTH(_xlfn.SINGLE(เม.ย.อา.1)+15)=4),_xlfn.SINGLE(เม.ย.อา.1)+15,\"\"))","v":{"$error":"#NAME?"}},{"$f":"IF(DAY(_xlfn.SINGLE(เม.ย.อา.1))=1,IF(AND(YEAR(_xlfn.SINGLE(เม.ย.อา.1)+9)=ปีปฏิทิน,MONTH(_xlfn.SINGLE(เม.ย.อา.1)+9)=4),_xlfn.SINGLE(เม.ย.อา.1)+9,\"\"),IF(AND(YEAR(_xlfn.SINGLE(เม.ย.อา.1)+16)=ปีปฏิทิน,MONTH(_xlfn.SINGLE(เม.ย.อา.1)+16)=4),_xlfn.SINGLE(เม.ย.อา.1)+16,\"\"))","v":{"$error":"#NAME?"}},{"$f":"IF(DAY(_xlfn.SINGLE(เม.ย.อา.1))=1,IF(AND(YEAR(_xlfn.SINGLE(เม.ย.อา.1)+10)=ปีปฏิทิน,MONTH(_xlfn.SINGLE(เม.ย.อา.1)+10)=4),_xlfn.SINGLE(เม.ย.อา.1)+10,\"\"),IF(AND(YEAR(_xlfn.SINGLE(เม.ย.อา.1)+17)=ปีปฏิทิน,MONTH(_xlfn.SINGLE(เม.ย.อา.1)+17)=4),_xlfn.SINGLE(เม.ย.อา.1)+17,\"\"))","v":{"$error":"#NAME?"}},{"$f":"IF(DAY(_xlfn.SINGLE(เม.ย.อา.1))=1,IF(AND(YEAR(_xlfn.SINGLE(เม.ย.อา.1)+11)=ปีปฏิทิน,MONTH(_xlfn.SINGLE(เม.ย.อา.1)+11)=4),_xlfn.SINGLE(เม.ย.อา.1)+11,\"\"),IF(AND(YEAR(_xlfn.SINGLE(เม.ย.อา.1)+18)=ปีปฏิทิน,MONTH(_xlfn.SINGLE(เม.ย.อา.1)+18)=4),_xlfn.SINGLE(เม.ย.อา.1)+18,\"\"))","v":{"$error":"#NAME?"}},{"$f":"IF(DAY(_xlfn.SINGLE(เม.ย.อา.1))=1,IF(AND(YEAR(_xlfn.SINGLE(เม.ย.อา.1)+12)=ปีปฏิทิน,MONTH(_xlfn.SINGLE(เม.ย.อา.1)+12)=4),_xlfn.SINGLE(เม.ย.อา.1)+12,\"\"),IF(AND(YEAR(_xlfn.SINGLE(เม.ย.อา.1)+19)=ปีปฏิทิน,MONTH(_xlfn.SINGLE(เม.ย.อา.1)+19)=4),_xlfn.SINGLE(เม.ย.อา.1)+19,\"\"))","v":{"$error":"#NAME?"}},{"$f":"IF(DAY(_xlfn.SINGLE(เม.ย.อา.1))=1,IF(AND(YEAR(_xlfn.SINGLE(เม.ย.อา.1)+13)=ปีปฏิทิน,MONTH(_xlfn.SINGLE(เม.ย.อา.1)+13)=4),_xlfn.SINGLE(เม.ย.อา.1)+13,\"\"),IF(AND(YEAR(_xlfn.SINGLE(เม.ย.อา.1)+20)=ปีปฏิทิน,MONTH(_xlfn.SINGLE(เม.ย.อา.1)+20)=4),_xlfn.SINGLE(เม.ย.อา.1)+20,\"\"))","v":{"$error":"#NAME?"}},{"$f":"IF(DAY(_xlfn.SINGLE(เม.ย.อา.1))=1,IF(AND(YEAR(_xlfn.SINGLE(เม.ย.อา.1)+14)=ปีปฏิทิน,MONTH(_xlfn.SINGLE(เม.ย.อา.1)+14)=4),_xlfn.SINGLE(เม.ย.อา.1)+14,\"\"),IF(AND(YEAR(_xlfn.SINGLE(เม.ย.อา.1)+21)=ปีปฏิทิน,MONTH(_xlfn.SINGLE(เม.ย.อา.1)+21)=4),_xlfn.SINGLE(เม.ย.อา.1)+21,\"\"))","v":{"$error":"#NAME?"}}]
[null,null,{"$f":"IF(DAY(_xlfn.SINGLE(ม.ค.อา.1))=1,IF(AND(YEAR(_xlfn.SINGLE(ม.ค.อา.1)+15)=ปีปฏิทิน,MONTH(_xlfn.SINGLE(ม.ค.อา.1)+15)=1),_xlfn.SINGLE(ม.ค.อา.1)+15,\"\"),IF(AND(YEAR(_xlfn.SINGLE(ม.ค.อา.1)+22)=ปีปฏิทิน,MONTH(_xlfn.SINGLE(ม.ค.อา.1)+22)=1),_xlfn.SINGLE(ม.ค.อา.1)+22,\"\"))","v":{"$error":"#NAME?"}},{"$f":"IF(DAY(_xlfn.SINGLE(ม.ค.อา.1))=1,IF(AND(YEAR(_xlfn.SINGLE(ม.ค.อา.1)+16)=ปีปฏิทิน,MONTH(_xlfn.SINGLE(ม.ค.อา.1)+16)=1),_xlfn.SINGLE(ม.ค.อา.1)+16,\"\"),IF(AND(YEAR(_xlfn.SINGLE(ม.ค.อา.1)+23)=ปีปฏิทิน,MONTH(_xlfn.SINGLE(ม.ค.อา.1)+23)=1),_xlfn.SINGLE(ม.ค.อา.1)+23,\"\"))","v":{"$error":"#NAME?"}},{"$f":"IF(DAY(_xlfn.SINGLE(ม.ค.อา.1))=1,IF(AND(YEAR(_xlfn.SINGLE(ม.ค.อา.1)+17)=ปีปฏิทิน,MONTH(_xlfn.SINGLE(ม.ค.อา.1)+17)=1),_xlfn.SINGLE(ม.ค.อา.1)+17,\"\"),IF(AND(YEAR(_xlfn.SINGLE(ม.ค.อา.1)+24)=ปีปฏิทิน,MONTH(_xlfn.SINGLE(ม.ค.อา.1)+24)=1),_xlfn.SINGLE(ม.ค.อา.1)+24,\"\"))","v":{"$error":"#NAME?"}},{"$f":"IF(DAY(_xlfn.SINGLE(ม.ค.อา.1))=1,IF(AND(YEAR(_xlfn.SINGLE(ม.ค.อา.1)+18)=ปีปฏิทิน,MONTH(_xlfn.SINGLE(ม.ค.อา.1)+18)=1),_xlfn.SINGLE(ม.ค.อา.1)+18,\"\"),IF(AND(YEAR(_xlfn.SINGLE(ม.ค.อา.1)+25)=ปีปฏิทิน,MONTH(_xlfn.SINGLE(ม.ค.อา.1)+25)=1),_xlfn.SINGLE(ม.ค.อา.1)+25,\"\"))","v":{"$error":"#NAME?"}},{"$f":"IF(DAY(_xlfn.SINGLE(ม.ค.อา.1))=1,IF(AND(YEAR(_xlfn.SINGLE(ม.ค.อา.1)+19)=ปีปฏิทิน,MONTH(_xlfn.SINGLE(ม.ค.อา.1)+19)=1),_xlfn.SINGLE(ม.ค.อา.1)+19,\"\"),IF(AND(YEAR(_xlfn.SINGLE(ม.ค.อา.1)+26)=ปีปฏิทิน,MONTH(_xlfn.SINGLE(ม.ค.อา.1)+26)=1),_xlfn.SINGLE(ม.ค.อา.1)+26,\"\"))","v":{"$error":"#NAME?"}},{"$f":"IF(DAY(_xlfn.SINGLE(ม.ค.อา.1))=1,IF(AND(YEAR(_xlfn.SINGLE(ม.ค.อา.1)+20)=ปีปฏิทิน,MONTH(_xlfn.SINGLE(ม.ค.อา.1)+20)=1),_xlfn.SINGLE(ม.ค.อา.1)+20,\"\"),IF(AND(YEAR(_xlfn.SINGLE(ม.ค.อา.1)+27)=ปีปฏิทิน,MONTH(_xlfn.SINGLE(ม.ค.อา.1)+27)=1),_xlfn.SINGLE(ม.ค.อา.1)+27,\"\"))","v":{"$error":"#NAME?"}},{"$f":"IF(DAY(_xlfn.SINGLE(ม.ค.อา.1))=1,IF(AND(YEAR(_xlfn.SINGLE(ม.ค.อา.1)+21)=ปีปฏิทิน,MONTH(_xlfn.SINGLE(ม.ค.อา.1)+21)=1),_xlfn.SINGLE(ม.ค.อา.1)+21,\"\"),IF(AND(YEAR(_xlfn.SINGLE(ม.ค.อา.1)+28)=ปีปฏิทิน,MONTH(_xlfn.SINGLE(ม.ค.อา.1)+28)=1),_xlfn.SINGLE(ม.ค.อา.1)+28,\"\"))","v":{"$error":"#NAME?"}},null,null,{"$f":"IF(DAY(_xlfn.SINGLE(ก.พ.อา.1))=1,IF(AND(YEAR(_xlfn.SINGLE(ก.พ.อา.1)+15)=ปีปฏิทิน,MONTH(_xlfn.SINGLE(ก.พ.อา.1)+15)=2),_xlfn.SINGLE(ก.พ.อา.1)+15,\"\"),IF(AND(YEAR(_xlfn.SINGLE(ก.พ.อา.1)+22)=ปีปฏิทิน,MONTH(_xlfn.SINGLE(ก.พ.อา.1)+22)=2),_xlfn.SINGLE(ก.พ.อา.1)+22,\"\"))","v":{"$error":"#NAME?"}},{"$f":"IF(DAY(_xlfn.SINGLE(ก.พ.อา.1))=1,IF(AND(YEAR(_xlfn.SINGLE(ก.พ.อา.1)+16)=ปีปฏิทิน,MONTH(_xlfn.SINGLE(ก.พ.อา.1)+16)=2),_xlfn.SINGLE(ก.พ.อา.1)+16,\"\"),IF(AND(YEAR(_xlfn.SINGLE(ก.พ.อา.1)+23)=ปีปฏิทิน,MONTH(_xlfn.SINGLE(ก.พ.อา.1)+23)=2),_xlfn.SINGLE(ก.พ.อา.1)+23,\"\"))","v":{"$error":"#NAME?"}},{"$f":"IF(DAY(_xlfn.SINGLE(ก.พ.อา.1))=1,IF(AND(YEAR(_xlfn.SINGLE(ก.พ.อา.1)+17)=ปีปฏิทิน,MONTH(_xlfn.SINGLE(ก.พ.อา.1)+17)=2),_xlfn.SINGLE(ก.พ.อา.1)+17,\"\"),IF(AND(YEAR(_xlfn.SINGLE(ก.พ.อา.1)+24)=ปีปฏิทิน,MONTH(_xlfn.SINGLE(ก.พ.อา.1)+24)=2),_xlfn.SINGLE(ก.พ.อา.1)+24,\"\"))","v":{"$error":"#NAME?"}},{"$f":"IF(DAY(_xlfn.SINGLE(ก.พ.อา.1))=1,IF(AND(YEAR(_xlfn.SINGLE(ก.พ.อา.1)+18)=ปีปฏิทิน,MONTH(_xlfn.SINGLE(ก.พ.อา.1)+18)=2),_xlfn.SINGLE(ก.พ.อา.1)+18,\"\"),IF(AND(YEAR(_xlfn.SINGLE(ก.พ.อา.1)+25)=ปีปฏิทิน,MONTH(_xlfn.SINGLE(ก.พ.อา.1)+25)=2),_xlfn.SINGLE(ก.พ.อา.1)+25,\"\"))","v":{"$error":"#NAME?"}},{"$f":"IF(DAY(_xlfn.SINGLE(ก.พ.อา.1))=1,IF(AND(YEAR(_xlfn.SINGLE(ก.พ.อา.1)+19)=ปีปฏิทิน,MONTH(_xlfn.SINGLE(ก.พ.อา.1)+19)=2),_xlfn.SINGLE(ก.พ.อา.1)+19,\"\"),IF(AND(YEAR(_xlfn.SINGLE(ก.พ.อา.1)+26)=ปีปฏิทิน,MONTH(_xlfn.SINGLE(ก.พ.อา.1)+26)=2),_xlfn.SINGLE(ก.พ.อา.1)+26,\"\"))","v":{"$error":"#NAME?"}},{"$f":"IF(DAY(_xlfn.SINGLE(ก.พ.อา.1))=1,IF(AND(YEAR(_xlfn.SINGLE(ก.พ.อา.1)+20)=ปีปฏิทิน,MONTH(_xlfn.SINGLE(ก.พ.อา.1)+20)=2),_xlfn.SINGLE(ก.พ.อา.1)+20,\"\"),IF(AND(YEAR(_xlfn.SINGLE(ก.พ.อา.1)+27)=ปีปฏิทิน,MONTH(_xlfn.SINGLE(ก.พ.อา.1)+27)=2),_xlfn.SINGLE(ก.พ.อา.1)+27,\"\"))","v":{"$error":"#NAME?"}},{"$f":"IF(DAY(_xlfn.SINGLE(ก.พ.อา.1))=1,IF(AND(YEAR(_xlfn.SINGLE(ก.พ.อา.1)+21)=ปีปฏิทิน,MONTH(_xlfn.SINGLE(ก.พ.อา.1)+21)=2),_xlfn.SINGLE(ก.พ.อา.1)+21,\"\"),IF(AND(YEAR(_xlfn.SINGLE(ก.พ.อา.1)+28)=ปีปฏิทิน,MONTH(_xlfn.SINGLE(ก.พ.อา.1)+28)=2),_xlfn.SINGLE(ก.พ.อา.1)+28,\"\"))","v":{"$error":"#NAME?"}},null,null,{"$f":"IF(DAY(_xlfn.SINGLE(MarSun1))=1,IF(AND(YEAR(_xlfn.SINGLE(MarSun1)+15)=ปีปฏิทิน,MONTH(_xlfn.SINGLE(MarSun1)+15)=3),_xlfn.SINGLE(MarSun1)+15,\"\"),IF(AND(YEAR(_xlfn.SINGLE(MarSun1)+22)=ปีปฏิทิน,MONTH(_xlfn.SINGLE(MarSun1)+22)=3),_xlfn.SINGLE(MarSun1)+22,\"\"))","v":{"$error":"#NAME?"}},{"$f":"IF(DAY(_xlfn.SINGLE(MarSun1))=1,IF(AND(YEAR(_xlfn.SINGLE(MarSun1)+16)=ปีปฏิทิน,MONTH(_xlfn.SINGLE(MarSun1)+16)=3),_xlfn.SINGLE(MarSun1)+16,\"\"),IF(AND(YEAR(_xlfn.SINGLE(MarSun1)+23)=ปีปฏิทิน,MONTH(_xlfn.SINGLE(MarSun1)+23)=3),_xlfn.SINGLE(MarSun1)+23,\"\"))","v":{"$error":"#NAME?"}},{"$f":"IF(DAY(_xlfn.SINGLE(MarSun1))=1,IF(AND(YEAR(_xlfn.SINGLE(MarSun1)+17)=ปีปฏิทิน,MONTH(_xlfn.SINGLE(MarSun1)+17)=3),_xlfn.SINGLE(MarSun1)+17,\"\"),IF(AND(YEAR(_xlfn.SINGLE(MarSun1)+24)=ปีปฏิทิน,MONTH(_xlfn.SINGLE(MarSun1)+24)=3),_xlfn.SINGLE(MarSun1)+24,\"\"))","v":{"$error":"#NAME?"}},{"$f":"IF(DAY(_xlfn.SINGLE(MarSun1))=1,IF(AND(YEAR(_xlfn.SINGLE(MarSun1)+18)=ปีปฏิทิน,MONTH(_xlfn.SINGLE(MarSun1)+18)=3),_xlfn.SINGLE(MarSun1)+18,\"\"),IF(AND(YEAR(_xlfn.SINGLE(MarSun1)+25)=ปีปฏิทิน,MONTH(_xlfn.SINGLE(MarSun1)+25)=3),_xlfn.SINGLE(MarSun1)+25,\"\"))","v":{"$error":"#NAME?"}},{"$f":"IF(DAY(_xlfn.SINGLE(MarSun1))=1,IF(AND(YEAR(_xlfn.SINGLE(MarSun1)+19)=ปีปฏิทิน,MONTH(_xlfn.SINGLE(MarSun1)+19)=3),_xlfn.SINGLE(MarSun1)+19,\"\"),IF(AND(YEAR(_xlfn.SINGLE(MarSun1)+26)=ปีปฏิทิน,MONTH(_xlfn.SINGLE(MarSun1)+26)=3),_xlfn.SINGLE(MarSun1)+26,\"\"))","v":{"$error":"#NAME?"}},{"$f":"IF(DAY(_xlfn.SINGLE(MarSun1))=1,IF(AND(YEAR(_xlfn.SINGLE(MarSun1)+20)=ปีปฏิทิน,MONTH(_xlfn.SINGLE(MarSun1)+20)=3),_xlfn.SINGLE(MarSun1)+20,\"\"),IF(AND(YEAR(_xlfn.SINGLE(MarSun1)+27)=ปีปฏิทิน,MONTH(_xlfn.SINGLE(MarSun1)+27)=3),_xlfn.SINGLE(MarSun1)+27,\"\"))","v":{"$error":"#NAME?"}},{"$f":"IF(DAY(_xlfn.SINGLE(MarSun1))=1,IF(AND(YEAR(_xlfn.SINGLE(MarSun1)+21)=ปีปฏิทิน,MONTH(_xlfn.SINGLE(MarSun1)+21)=3),_xlfn.SINGLE(MarSun1)+21,\"\"),IF(AND(YEAR(_xlfn.SINGLE(MarSun1)+28)=ปีปฏิทิน,MONTH(_xlfn.SINGLE(MarSun1)+28)=3),_xlfn.SINGLE(MarSun1)+28,\"\"))","v":{"$error":"#NAME?"}},null,null,{"$f":"IF(DAY(_xlfn.SINGLE(เม.ย.อา.1))=1,IF(AND(YEAR(_xlfn.SINGLE(เม.ย.อา.1)+15)=ปีปฏิทิน,MONTH(_xlfn.SINGLE(เม.ย.อา.1)+15)=4),_xlfn.SINGLE(เม.ย.อา.1)+15,\"\"),IF(AND(YEAR(_xlfn.SINGLE(เม.ย.อา.1)+22)=ปีปฏิทิน,MONTH(_xlfn.SINGLE(เม.ย.อา.1)+22)=4),_xlfn.SINGLE(เม.ย.อา.1)+22,\"\"))","v":{"$error":"#NAME?"}},{"$f":"IF(DAY(_xlfn.SINGLE(เม.ย.อา.1))=1,IF(AND(YEAR(_xlfn.SINGLE(เม.ย.อา.1)+16)=ปีปฏิทิน,MONTH(_xlfn.SINGLE(เม.ย.อา.1)+16)=4),_xlfn.SINGLE(เม.ย.อา.1)+16,\"\"),IF(AND(YEAR(_xlfn.SINGLE(เม.ย.อา.1)+23)=ปีปฏิทิน,MONTH(_xlfn.SINGLE(เม.ย.อา.1)+23)=4),_xlfn.SINGLE(เม.ย.อา.1)+23,\"\"))","v":{"$error":"#NAME?"}},{"$f":"IF(DAY(_xlfn.SINGLE(เม.ย.อา.1))=1,IF(AND(YEAR(_xlfn.SINGLE(เม.ย.อา.1)+17)=ปีปฏิทิน,MONTH(_xlfn.SINGLE(เม.ย.อา.1)+17)=4),_xlfn.SINGLE(เม.ย.อา.1)+17,\"\"),IF(AND(YEAR(_xlfn.SINGLE(เม.ย.อา.1)+24)=ปีปฏิทิน,MONTH(_xlfn.SINGLE(เม.ย.อา.1)+24)=4),_xlfn.SINGLE(เม.ย.อา.1)+24,\"\"))","v":{"$error":"#NAME?"}},{"$f":"IF(DAY(_xlfn.SINGLE(เม.ย.อา.1))=1,IF(AND(YEAR(_xlfn.SINGLE(เม.ย.อา.1)+18)=ปีปฏิทิน,MONTH(_xlfn.SINGLE(เม.ย.อา.1)+18)=4),_xlfn.SINGLE(เม.ย.อา.1)+18,\"\"),IF(AND(YEAR(_xlfn.SINGLE(เม.ย.อา.1)+25)=ปีปฏิทิน,MONTH(_xlfn.SINGLE(เม.ย.อา.1)+25)=4),_xlfn.SINGLE(เม.ย.อา.1)+25,\"\"))","v":{"$error":"#NAME?"}},{"$f":"IF(DAY(_xlfn.SINGLE(เม.ย.อา.1))=1,IF(AND(YEAR(_xlfn.SINGLE(เม.ย.อา.1)+19)=ปีปฏิทิน,MONTH(_xlfn.SINGLE(เม.ย.อา.1)+19)=4),_xlfn.SINGLE(เม.ย.อา.1)+19,\"\"),IF(AND(YEAR(_xlfn.SINGLE(เม.ย.อา.1)+26)=ปีปฏิทิน,MONTH(_xlfn.SINGLE(เม.ย.อา.1)+26)=4),_xlfn.SINGLE(เม.ย.อา.1)+26,\"\"))","v":{"$error":"#NAME?"}},{"$f":"IF(DAY(_xlfn.SINGLE(เม.ย.อา.1))=1,IF(AND(YEAR(_xlfn.SINGLE(เม.ย.อา.1)+20)=ปีปฏิทิน,MONTH(_xlfn.SINGLE(เม.ย.อา.1)+20)=4),_xlfn.SINGLE(เม.ย.อา.1)+20,\"\"),IF(AND(YEAR(_xlfn.SINGLE(เม.ย.อา.1)+27)=ปีปฏิทิน,MONTH(_xlfn.SINGLE(เม.ย.อา.1)+27)=4),_xlfn.SINGLE(เม.ย.อา.1)+27,\"\"))","v":{"$error":"#NAME?"}},{"$f":"IF(DAY(_xlfn.SINGLE(เม.ย.อา.1))=1,IF(AND(YEAR(_xlfn.SINGLE(เม.ย.อา.1)+21)=ปีปฏิทิน,MONTH(_xlfn.SINGLE(เม.ย.อา.1)+21)=4),_xlfn.SINGLE(เม.ย.อา.1)+21,\"\"),IF(AND(YEAR(_xlfn.SINGLE(เม.ย.อา.1)+28)=ปีปฏิทิน,MONTH(_xlfn.SINGLE(เม.ย.อา.1)+28)=4),_xlfn.SINGLE(เม.ย.อา.1)+28,\"\"))","v":{"$error":"#NAME?"}}]
[null,null,{"$f":"IF(DAY(_xlfn.SINGLE(ม.ค.อา.1))=1,IF(AND(YEAR(_xlfn.SINGLE(ม.ค.อา.1)+22)=ปีปฏิทิน,MONTH(_xlfn.SINGLE(ม.ค.อา.1)+22)=1),_xlfn.SINGLE(ม.ค.อา.1)+22,\"\"),IF(AND(YEAR(_xlfn.SINGLE(ม.ค.อา.1)+29)=ปีปฏิทิน,MONTH(_xlfn.SINGLE(ม.ค.อา.1)+29)=1),_xlfn.SINGLE(ม.ค.อา.1)+29,\"\"))","v":{"$error":"#NAME?"}},{"$f":"IF(DAY(_xlfn.SINGLE(ม.ค.อา.1))=1,IF(AND(YEAR(_xlfn.SINGLE(ม.ค.อา.1)+23)=ปีปฏิทิน,MONTH(_xlfn.SINGLE(ม.ค.อา.1)+23)=1),_xlfn.SINGLE(ม.ค.อา.1)+23,\"\"),IF(AND(YEAR(_xlfn.SINGLE(ม.ค.อา.1)+30)=ปีปฏิทิน,MONTH(_xlfn.SINGLE(ม.ค.อา.1)+30)=1),_xlfn.SINGLE(ม.ค.อา.1)+30,\"\"))","v":{"$error":"#NAME?"}},{"$f":"IF(DAY(_xlfn.SINGLE(ม.ค.อา.1))=1,IF(AND(YEAR(_xlfn.SINGLE(ม.ค.อา.1)+24)=ปีปฏิทิน,MONTH(_xlfn.SINGLE(ม.ค.อา.1)+24)=1),_xlfn.SINGLE(ม.ค.อา.1)+24,\"\"),IF(AND(YEAR(_xlfn.SINGLE(ม.ค.อา.1)+31)=ปีปฏิทิน,MONTH(_xlfn.SINGLE(ม.ค.อา.1)+31)=1),_xlfn.SINGLE(ม.ค.อา.1)+31,\"\"))","v":{"$error":"#NAME?"}},{"$f":"IF(DAY(_xlfn.SINGLE(ม.ค.อา.1))=1,IF(AND(YEAR(_xlfn.SINGLE(ม.ค.อา.1)+25)=ปีปฏิทิน,MONTH(_xlfn.SINGLE(ม.ค.อา.1)+25)=1),_xlfn.SINGLE(ม.ค.อา.1)+25,\"\"),IF(AND(YEAR(_xlfn.SINGLE(ม.ค.อา.1)+32)=ปีปฏิทิน,MONTH(_xlfn.SINGLE(ม.ค.อา.1)+32)=1),_xlfn.SINGLE(ม.ค.อา.1)+32,\"\"))","v":{"$error":"#NAME?"}},{"$f":"IF(DAY(_xlfn.SINGLE(ม.ค.อา.1))=1,IF(AND(YEAR(_xlfn.SINGLE(ม.ค.อา.1)+26)=ปีปฏิทิน,MONTH(_xlfn.SINGLE(ม.ค.อา.1)+26)=1),_xlfn.SINGLE(ม.ค.อา.1)+26,\"\"),IF(AND(YEAR(_xlfn.SINGLE(ม.ค.อา.1)+33)=ปีปฏิทิน,MONTH(_xlfn.SINGLE(ม.ค.อา.1)+33)=1),_xlfn.SINGLE(ม.ค.อา.1)+33,\"\"))","v":{"$error":"#NAME?"}},{"$f":"IF(DAY(_xlfn.SINGLE(ม.ค.อา.1))=1,IF(AND(YEAR(_xlfn.SINGLE(ม.ค.อา.1)+27)=ปีปฏิทิน,MONTH(_xlfn.SINGLE(ม.ค.อา.1)+27)=1),_xlfn.SINGLE(ม.ค.อา.1)+27,\"\"),IF(AND(YEAR(_xlfn.SINGLE(ม.ค.อา.1)+34)=ปีปฏิทิน,MONTH(_xlfn.SINGLE(ม.ค.อา.1)+34)=1),_xlfn.SINGLE(ม.ค.อา.1)+34,\"\"))","v":{"$error":"#NAME?"}},{"$f":"IF(DAY(_xlfn.SINGLE(ม.ค.อา.1))=1,IF(AND(YEAR(_xlfn.SINGLE(ม.ค.อา.1)+28)=ปีปฏิทิน,MONTH(_xlfn.SINGLE(ม.ค.อา.1)+28)=1),_xlfn.SINGLE(ม.ค.อา.1)+28,\"\"),IF(AND(YEAR(_xlfn.SINGLE(ม.ค.อา.1)+35)=ปีปฏิทิน,MONTH(_xlfn.SINGLE(ม.ค.อา.1)+35)=1),_xlfn.SINGLE(ม.ค.อา.1)+35,\"\"))","v":{"$error":"#NAME?"}},null,null,{"$f":"IF(DAY(_xlfn.SINGLE(ก.พ.อา.1))=1,IF(AND(YEAR(_xlfn.SINGLE(ก.พ.อา.1)+22)=ปีปฏิทิน,MONTH(_xlfn.SINGLE(ก.พ.อา.1)+22)=2),_xlfn.SINGLE(ก.พ.อา.1)+22,\"\"),IF(AND(YEAR(_xlfn.SINGLE(ก.พ.อา.1)+29)=ปีปฏิทิน,MONTH(_xlfn.SINGLE(ก.พ.อา.1)+29)=2),_xlfn.SINGLE(ก.พ.อา.1)+29,\"\"))","v":{"$error":"#NAME?"}},{"$f":"IF(DAY(_xlfn.SINGLE(ก.พ.อา.1))=1,IF(AND(YEAR(_xlfn.SINGLE(ก.พ.อา.1)+23)=ปีปฏิทิน,MONTH(_xlfn.SINGLE(ก.พ.อา.1)+23)=2),_xlfn.SINGLE(ก.พ.อา.1)+23,\"\"),IF(AND(YEAR(_xlfn.SINGLE(ก.พ.อา.1)+30)=ปีปฏิทิน,MONTH(_xlfn.SINGLE(ก.พ.อา.1)+30)=2),_xlfn.SINGLE(ก.พ.อา.1)+30,\"\"))","v":{"$error":"#NAME?"}},{"$f":"IF(DAY(_xlfn.SINGLE(ก.พ.อา.1))=1,IF(AND(YEAR(_xlfn.SINGLE(ก.พ.อา.1)+24)=ปีปฏิทิน,MONTH(_xlfn.SINGLE(ก.พ.อา.1)+24)=2),_xlfn.SINGLE(ก.พ.อา.1)+24,\"\"),IF(AND(YEAR(_xlfn.SINGLE(ก.พ.อา.1)+31)=ปีปฏิทิน,MONTH(_xlfn.SINGLE(ก.พ.อา.1)+31)=2),_xlfn.SINGLE(ก.พ.อา.1)+31,\"\"))","v":{"$error":"#NAME?"}},{"$f":"IF(DAY(_xlfn.SINGLE(ก.พ.อา.1))=1,IF(AND(YEAR(_xlfn.SINGLE(ก.พ.อา.1)+25)=ปีปฏิทิน,MONTH(_xlfn.SINGLE(ก.พ.อา.1)+25)=2),_xlfn.SINGLE(ก.พ.อา.1)+25,\"\"),IF(AND(YEAR(_xlfn.SINGLE(ก.พ.อา.1)+32)=ปีปฏิทิน,MONTH(_xlfn.SINGLE(ก.พ.อา.1)+32)=2),_xlfn.SINGLE(ก.พ.อา.1)+32,\"\"))","v":{"$error":"#NAME?"}},{"$f":"IF(DAY(_xlfn.SINGLE(ก.พ.อา.1))=1,IF(AND(YEAR(_xlfn.SINGLE(ก.พ.อา.1)+26)=ปีปฏิทิน,MONTH(_xlfn.SINGLE(ก.พ.อา.1)+26)=2),_xlfn.SINGLE(ก.พ.อา.1)+26,\"\"),IF(AND(YEAR(_xlfn.SINGLE(ก.พ.อา.1)+33)=ปีปฏิทิน,MONTH(_xlfn.SINGLE(ก.พ.อา.1)+33)=2),_xlfn.SINGLE(ก.พ.อา.1)+33,\"\"))","v":{"$error":"#NAME?"}},{"$f":"IF(DAY(_xlfn.SINGLE(ก.พ.อา.1))=1,IF(AND(YEAR(_xlfn.SINGLE(ก.พ.อา.1)+27)=ปีปฏิทิน,MONTH(_xlfn.SINGLE(ก.พ.อา.1)+27)=2),_xlfn.SINGLE(ก.พ.อา.1)+27,\"\"),IF(AND(YEAR(_xlfn.SINGLE(ก.พ.อา.1)+34)=ปีปฏิทิน,MONTH(_xlfn.SINGLE(ก.พ.อา.1)+34)=2),_xlfn.SINGLE(ก.พ.อา.1)+34,\"\"))","v":{"$error":"#NAME?"}},{"$f":"IF(DAY(_xlfn.SINGLE(ก.พ.อา.1))=1,IF(AND(YEAR(_xlfn.SINGLE(ก.พ.อา.1)+28)=ปีปฏิทิน,MONTH(_xlfn.SINGLE(ก.พ.อา.1)+28)=2),_xlfn.SINGLE(ก.พ.อา.1)+28,\"\"),IF(AND(YEAR(_xlfn.SINGLE(ก.พ.อา.1)+35)=ปีปฏิทิน,MONTH(_xlfn.SINGLE(ก.พ.อา.1)+35)=2),_xlfn.SINGLE(ก.พ.อา.1)+35,\"\"))","v":{"$error":"#NAME?"}},null,null,{"$f":"IF(DAY(_xlfn.SINGLE(MarSun1))=1,IF(AND(YEAR(_xlfn.SINGLE(MarSun1)+22)=ปีปฏิทิน,MONTH(_xlfn.SINGLE(MarSun1)+22)=3),_xlfn.SINGLE(MarSun1)+22,\"\"),IF(AND(YEAR(_xlfn.SINGLE(MarSun1)+29)=ปีปฏิทิน,MONTH(_xlfn.SINGLE(MarSun1)+29)=3),_xlfn.SINGLE(MarSun1)+29,\"\"))","v":{"$error":"#NAME?"}},{"$f":"IF(DAY(_xlfn.SINGLE(MarSun1))=1,IF(AND(YEAR(_xlfn.SINGLE(MarSun1)+23)=ปีปฏิทิน,MONTH(_xlfn.SINGLE(MarSun1)+23)=3),_xlfn.SINGLE(MarSun1)+23,\"\"),IF(AND(YEAR(_xlfn.SINGLE(MarSun1)+30)=ปีปฏิทิน,MONTH(_xlfn.SINGLE(MarSun1)+30)=3),_xlfn.SINGLE(MarSun1)+30,\"\"))","v":{"$error":"#NAME?"}},{"$f":"IF(DAY(_xlfn.SINGLE(MarSun1))=1,IF(AND(YEAR(_xlfn.SINGLE(MarSun1)+24)=ปีปฏิทิน,MONTH(_xlfn.SINGLE(MarSun1)+24)=3),_xlfn.SINGLE(MarSun1)+24,\"\"),IF(AND(YEAR(_xlfn.SINGLE(MarSun1)+31)=ปีปฏิทิน,MONTH(_xlfn.SINGLE(MarSun1)+31)=3),_xlfn.SINGLE(MarSun1)+31,\"\"))","v":{"$error":"#NAME?"}},{"$f":"IF(DAY(_xlfn.SINGLE(MarSun1))=1,IF(AND(YEAR(_xlfn.SINGLE(MarSun1)+25)=ปีปฏิทิน,MONTH(_xlfn.SINGLE(MarSun1)+25)=3),_xlfn.SINGLE(MarSun1)+25,\"\"),IF(AND(YEAR(_xlfn.SINGLE(MarSun1)+32)=ปีปฏิทิน,MONTH(_xlfn.SINGLE(MarSun1)+32)=3),_xlfn.SINGLE(MarSun1)+32,\"\"))","v":{"$error":"#NAME?"}},{"$f":"IF(DAY(_xlfn.SINGLE(MarSun1))=1,IF(AND(YEAR(_xlfn.SINGLE(MarSun1)+26)=ปีปฏิทิน,MONTH(_xlfn.SINGLE(MarSun1)+26)=3),_xlfn.SINGLE(MarSun1)+26,\"\"),IF(AND(YEAR(_xlfn.SINGLE(MarSun1)+33)=ปีปฏิทิน,MONTH(_xlfn.SINGLE(MarSun1)+33)=3),_xlfn.SINGLE(MarSun1)+33,\"\"))","v":{"$error":"#NAME?"}},{"$f":"IF(DAY(_xlfn.SINGLE(MarSun1))=1,IF(AND(YEAR(_xlfn.SINGLE(MarSun1)+27)=ปีปฏิทิน,MONTH(_xlfn.SINGLE(MarSun1)+27)=3),_xlfn.SINGLE(MarSun1)+27,\"\"),IF(AND(YEAR(_xlfn.SINGLE(MarSun1)+34)=ปีปฏิทิน,MONTH(_xlfn.SINGLE(MarSun1)+34)=3),_xlfn.SINGLE(MarSun1)+34,\"\"))","v":{"$error":"#NAME?"}},{"$f":"IF(DAY(_xlfn.SINGLE(MarSun1))=1,IF(AND(YEAR(_xlfn.SINGLE(MarSun1)+28)=ปีปฏิทิน,MONTH(_xlfn.SINGLE(MarSun1)+28)=3),_xlfn.SINGLE(MarSun1)+28,\"\"),IF(AND(YEAR(_xlfn.SINGLE(MarSun1)+35)=ปีปฏิทิน,MONTH(_xlfn.SINGLE(MarSun1)+35)=3),_xlfn.SINGLE(MarSun1)+35,\"\"))","v":{"$error":"#NAME?"}},null,null,{"$f":"IF(DAY(_xlfn.SINGLE(เม.ย.อา.1))=1,IF(AND(YEAR(_xlfn.SINGLE(เม.ย.อา.1)+22)=ปีปฏิทิน,MONTH(_xlfn.SINGLE(เม.ย.อา.1)+22)=4),_xlfn.SINGLE(เม.ย.อา.1)+22,\"\"),IF(AND(YEAR(_xlfn.SINGLE(เม.ย.อา.1)+29)=ปีปฏิทิน,MONTH(_xlfn.SINGLE(เม.ย.อา.1)+29)=4),_xlfn.SINGLE(เม.ย.อา.1)+29,\"\"))","v":{"$error":"#NAME?"}},{"$f":"IF(DAY(_xlfn.SINGLE(เม.ย.อา.1))=1,IF(AND(YEAR(_xlfn.SINGLE(เม.ย.อา.1)+23)=ปีปฏิทิน,MONTH(_xlfn.SINGLE(เม.ย.อา.1)+23)=4),_xlfn.SINGLE(เม.ย.อา.1)+23,\"\"),IF(AND(YEAR(_xlfn.SINGLE(เม.ย.อา.1)+30)=ปีปฏิทิน,MONTH(_xlfn.SINGLE(เม.ย.อา.1)+30)=4),_xlfn.SINGLE(เม.ย.อา.1)+30,\"\"))","v":{"$error":"#NAME?"}},{"$f":"IF(DAY(_xlfn.SINGLE(เม.ย.อา.1))=1,IF(AND(YEAR(_xlfn.SINGLE(เม.ย.อา.1)+24)=ปีปฏิทิน,MONTH(_xlfn.SINGLE(เม.ย.อา.1)+24)=4),_xlfn.SINGLE(เม.ย.อา.1)+24,\"\"),IF(AND(YEAR(_xlfn.SINGLE(เม.ย.อา.1)+31)=ปีปฏิทิน,MONTH(_xlfn.SINGLE(เม.ย.อา.1)+31)=4),_xlfn.SINGLE(เม.ย.อา.1)+31,\"\"))","v":{"$error":"#NAME?"}},{"$f":"IF(DAY(_xlfn.SINGLE(เม.ย.อา.1))=1,IF(AND(YEAR(_xlfn.SINGLE(เม.ย.อา.1)+25)=ปีปฏิทิน,MONTH(_xlfn.SINGLE(เม.ย.อา.1)+25)=4),_xlfn.SINGLE(เม.ย.อา.1)+25,\"\"),IF(AND(YEAR(_xlfn.SINGLE(เม.ย.อา.1)+32)=ปีปฏิทิน,MONTH(_xlfn.SINGLE(เม.ย.อา.1)+32)=4),_xlfn.SINGLE(เม.ย.อา.1)+32,\"\"))","v":{"$error":"#NAME?"}},{"$f":"IF(DAY(_xlfn.SINGLE(เม.ย.อา.1))=1,IF(AND(YEAR(_xlfn.SINGLE(เม.ย.อา.1)+26)=ปีปฏิทิน,MONTH(_xlfn.SINGLE(เม.ย.อา.1)+26)=4),_xlfn.SINGLE(เม.ย.อา.1)+26,\"\"),IF(AND(YEAR(_xlfn.SINGLE(เม.ย.อา.1)+33)=ปีปฏิทิน,MONTH(_xlfn.SINGLE(เม.ย.อา.1)+33)=4),_xlfn.SINGLE(เม.ย.อา.1)+33,\"\"))","v":{"$error":"#NAME?"}},{"$f":"IF(DAY(_xlfn.SINGLE(เม.ย.อา.1))=1,IF(AND(YEAR(_xlfn.SINGLE(เม.ย.อา.1)+27)=ปีปฏิทิน,MONTH(_xlfn.SINGLE(เม.ย.อา.1)+27)=4),_xlfn.SINGLE(เม.ย.อา.1)+27,\"\"),IF(AND(YEAR(_xlfn.SINGLE(เม.ย.อา.1)+34)=ปีปฏิทิน,MONTH(_xlfn.SINGLE(เม.ย.อา.1)+34)=4),_xlfn.SINGLE(เม.ย.อา.1)+34,\"\"))","v":{"$error":"#NAME?"}},{"$f":"IF(DAY(_xlfn.SINGLE(เม.ย.อา.1))=1,IF(AND(YEAR(_xlfn.SINGLE(เม.ย.อา.1)+28)=ปีปฏิทิน,MONTH(_xlfn.SINGLE(เม.ย.อา.1)+28)=4),_xlfn.SINGLE(เม.ย.อา.1)+28,\"\"),IF(AND(YEAR(_xlfn.SINGLE(เม.ย.อา.1)+35)=ปีปฏิทิน,MONTH(_xlfn.SINGLE(เม.ย.อา.1)+35)=4),_xlfn.SINGLE(เม.ย.อา.1)+35,\"\"))","v":{"$error":"#NAME?"}}]
[null,null,{"$f":"IF(DAY(_xlfn.SINGLE(ม.ค.อา.1))=1,IF(AND(YEAR(_xlfn.SINGLE(ม.ค.อา.1)+29)=ปีปฏิทิน,MONTH(_xlfn.SINGLE(ม.ค.อา.1)+29)=1),_xlfn.SINGLE(ม.ค.อา.1)+29,\"\"),IF(AND(YEAR(_xlfn.SINGLE(ม.ค.อา.1)+36)=ปีปฏิทิน,MONTH(_xlfn.SINGLE(ม.ค.อา.1)+36)=1),_xlfn.SINGLE(ม.ค.อา.1)+36,\"\"))","v":{"$error":"#NAME?"}},{"$f":"IF(DAY(_xlfn.SINGLE(ม.ค.อา.1))=1,IF(AND(YEAR(_xlfn.SINGLE(ม.ค.อา.1)+30)=ปีปฏิทิน,MONTH(_xlfn.SINGLE(ม.ค.อา.1)+30)=1),_xlfn.SINGLE(ม.ค.อา.1)+30,\"\"),IF(AND(YEAR(_xlfn.SINGLE(ม.ค.อา.1)+37)=ปีปฏิทิน,MONTH(_xlfn.SINGLE(ม.ค.อา.1)+37)=1),_xlfn.SINGLE(ม.ค.อา.1)+37,\"\"))","v":{"$error":"#NAME?"}},{"$f":"IF(DAY(_xlfn.SINGLE(ม.ค.อา.1))=1,IF(AND(YEAR(_xlfn.SINGLE(ม.ค.อา.1)+31)=ปีปฏิทิน,MONTH(_xlfn.SINGLE(ม.ค.อา.1)+31)=1),_xlfn.SINGLE(ม.ค.อา.1)+31,\"\"),IF(AND(YEAR(_xlfn.SINGLE(ม.ค.อา.1)+38)=ปีปฏิทิน,MONTH(_xlfn.SINGLE(ม.ค.อา.1)+38)=1),_xlfn.SINGLE(ม.ค.อา.1)+38,\"\"))","v":{"$error":"#NAME?"}},{"$f":"IF(DAY(_xlfn.SINGLE(ม.ค.อา.1))=1,IF(AND(YEAR(_xlfn.SINGLE(ม.ค.อา.1)+32)=ปีปฏิทิน,MONTH(_xlfn.SINGLE(ม.ค.อา.1)+32)=1),_xlfn.SINGLE(ม.ค.อา.1)+32,\"\"),IF(AND(YEAR(_xlfn.SINGLE(ม.ค.อา.1)+39)=ปีปฏิทิน,MONTH(_xlfn.SINGLE(ม.ค.อา.1)+39)=1),_xlfn.SINGLE(ม.ค.อา.1)+39,\"\"))","v":{"$error":"#NAME?"}},{"$f":"IF(DAY(_xlfn.SINGLE(ม.ค.อา.1))=1,IF(AND(YEAR(_xlfn.SINGLE(ม.ค.อา.1)+33)=ปีปฏิทิน,MONTH(_xlfn.SINGLE(ม.ค.อา.1)+33)=1),_xlfn.SINGLE(ม.ค.อา.1)+33,\"\"),IF(AND(YEAR(_xlfn.SINGLE(ม.ค.อา.1)+40)=ปีปฏิทิน,MONTH(_xlfn.SINGLE(ม.ค.อา.1)+40)=1),_xlfn.SINGLE(ม.ค.อา.1)+40,\"\"))","v":{"$error":"#NAME?"}},{"$f":"IF(DAY(_xlfn.SINGLE(ม.ค.อา.1))=1,IF(AND(YEAR(_xlfn.SINGLE(ม.ค.อา.1)+34)=ปีปฏิทิน,MONTH(_xlfn.SINGLE(ม.ค.อา.1)+34)=1),_xlfn.SINGLE(ม.ค.อา.1)+34,\"\"),IF(AND(YEAR(_xlfn.SINGLE(ม.ค.อา.1)+41)=ปีปฏิทิน,MONTH(_xlfn.SINGLE(ม.ค.อา.1)+41)=1),_xlfn.SINGLE(ม.ค.อา.1)+41,\"\"))","v":{"$error":"#NAME?"}},{"$f":"IF(DAY(_xlfn.SINGLE(ม.ค.อา.1))=1,IF(AND(YEAR(_xlfn.SINGLE(ม.ค.อา.1)+35)=ปีปฏิทิน,MONTH(_xlfn.SINGLE(ม.ค.อา.1)+35)=1),_xlfn.SINGLE(ม.ค.อา.1)+35,\"\"),IF(AND(YEAR(_xlfn.SINGLE(ม.ค.อา.1)+42)=ปีปฏิทิน,MONTH(_xlfn.SINGLE(ม.ค.อา.1)+42)=1),_xlfn.SINGLE(ม.ค.อา.1)+42,\"\"))","v":{"$error":"#NAME?"}},null,null,{"$f":"IF(DAY(_xlfn.SINGLE(ก.พ.อา.1))=1,IF(AND(YEAR(_xlfn.SINGLE(ก.พ.อา.1)+29)=ปีปฏิทิน,MONTH(_xlfn.SINGLE(ก.พ.อา.1)+29)=2),_xlfn.SINGLE(ก.พ.อา.1)+29,\"\"),IF(AND(YEAR(_xlfn.SINGLE(ก.พ.อา.1)+36)=ปีปฏิทิน,MONTH(_xlfn.SINGLE(ก.พ.อา.1)+36)=2),_xlfn.SINGLE(ก.พ.อา.1)+36,\"\"))","v":{"$error":"#NAME?"}},{"$f":"IF(DAY(_xlfn.SINGLE(ก.พ.อา.1))=1,IF(AND(YEAR(_xlfn.SINGLE(ก.พ.อา.1)+30)=ปีปฏิทิน,MONTH(_xlfn.SINGLE(ก.พ.อา.1)+30)=2),_xlfn.SINGLE(ก.พ.อา.1)+30,\"\"),IF(AND(YEAR(_xlfn.SINGLE(ก.พ.อา.1)+37)=ปีปฏิทิน,MONTH(_xlfn.SINGLE(ก.พ.อา.1)+37)=2),_xlfn.SINGLE(ก.พ.อา.1)+37,\"\"))","v":{"$error":"#NAME?"}},{"$f":"IF(DAY(_xlfn.SINGLE(ก.พ.อา.1))=1,IF(AND(YEAR(_xlfn.SINGLE(ก.พ.อา.1)+31)=ปีปฏิทิน,MONTH(_xlfn.SINGLE(ก.พ.อา.1)+31)=2),_xlfn.SINGLE(ก.พ.อา.1)+31,\"\"),IF(AND(YEAR(_xlfn.SINGLE(ก.พ.อา.1)+38)=ปีปฏิทิน,MONTH(_xlfn.SINGLE(ก.พ.อา.1)+38)=2),_xlfn.SINGLE(ก.พ.อา.1)+38,\"\"))","v":{"$error":"#NAME?"}},{"$f":"IF(DAY(_xlfn.SINGLE(ก.พ.อา.1))=1,IF(AND(YEAR(_xlfn.SINGLE(ก.พ.อา.1)+32)=ปีปฏิทิน,MONTH(_xlfn.SINGLE(ก.พ.อา.1)+32)=2),_xlfn.SINGLE(ก.พ.อา.1)+32,\"\"),IF(AND(YEAR(_xlfn.SINGLE(ก.พ.อา.1)+39)=ปีปฏิทิน,MONTH(_xlfn.SINGLE(ก.พ.อา.1)+39)=2),_xlfn.SINGLE(ก.พ.อา.1)+39,\"\"))","v":{"$error":"#NAME?"}},{"$f":"IF(DAY(_xlfn.SINGLE(ก.พ.อา.1))=1,IF(AND(YEAR(_xlfn.SINGLE(ก.พ.อา.1)+33)=ปีปฏิทิน,MONTH(_xlfn.SINGLE(ก.พ.อา.1)+33)=2),_xlfn.SINGLE(ก.พ.อา.1)+33,\"\"),IF(AND(YEAR(_xlfn.SINGLE(ก.พ.อา.1)+40)=ปีปฏิทิน,MONTH(_xlfn.SINGLE(ก.พ.อา.1)+40)=2),_xlfn.SINGLE(ก.พ.อา.1)+40,\"\"))","v":{"$error":"#NAME?"}},{"$f":"IF(DAY(_xlfn.SINGLE(ก.พ.อา.1))=1,IF(AND(YEAR(_xlfn.SINGLE(ก.พ.อา.1)+34)=ปีปฏิทิน,MONTH(_xlfn.SINGLE(ก.พ.อา.1)+34)=2),_xlfn.SINGLE(ก.พ.อา.1)+34,\"\"),IF(AND(YEAR(_xlfn.SINGLE(ก.พ.อา.1)+41)=ปีปฏิทิน,MONTH(_xlfn.SINGLE(ก.พ.อา.1)+41)=2),_xlfn.SINGLE(ก.พ.อา.1)+41,\"\"))","v":{"$error":"#NAME?"}},{"$f":"IF(DAY(_xlfn.SINGLE(ก.พ.อา.1))=1,IF(AND(YEAR(_xlfn.SINGLE(ก.พ.อา.1)+35)=ปีปฏิทิน,MONTH(_xlfn.SINGLE(ก.พ.อา.1)+35)=2),_xlfn.SINGLE(ก.พ.อา.1)+35,\"\"),IF(AND(YEAR(_xlfn.SINGLE(ก.พ.อา.1)+42)=ปีปฏิทิน,MONTH(_xlfn.SINGLE(ก.พ.อา.1)+42)=2),_xlfn.SINGLE(ก.พ.อา.1)+42,\"\"))","v":{"$error":"#NAME?"}},null,null,{"$f":"IF(DAY(_xlfn.SINGLE(MarSun1))=1,IF(AND(YEAR(_xlfn.SINGLE(MarSun1)+29)=ปีปฏิทิน,MONTH(_xlfn.SINGLE(MarSun1)+29)=3),_xlfn.SINGLE(MarSun1)+29,\"\"),IF(AND(YEAR(_xlfn.SINGLE(MarSun1)+36)=ปีปฏิทิน,MONTH(_xlfn.SINGLE(MarSun1)+36)=3),_xlfn.SINGLE(MarSun1)+36,\"\"))","v":{"$error":"#NAME?"}},{"$f":"IF(DAY(_xlfn.SINGLE(MarSun1))=1,IF(AND(YEAR(_xlfn.SINGLE(MarSun1)+30)=ปีปฏิทิน,MONTH(_xlfn.SINGLE(MarSun1)+30)=3),_xlfn.SINGLE(MarSun1)+30,\"\"),IF(AND(YEAR(_xlfn.SINGLE(MarSun1)+37)=ปีปฏิทิน,MONTH(_xlfn.SINGLE(MarSun1)+37)=3),_xlfn.SINGLE(MarSun1)+37,\"\"))","v":{"$error":"#NAME?"}},{"$f":"IF(DAY(_xlfn.SINGLE(MarSun1))=1,IF(AND(YEAR(_xlfn.SINGLE(MarSun1)+31)=ปีปฏิทิน,MONTH(_xlfn.SINGLE(MarSun1)+31)=3),_xlfn.SINGLE(MarSun1)+31,\"\"),IF(AND(YEAR(_xlfn.SINGLE(MarSun1)+38)=ปีปฏิทิน,MONTH(_xlfn.SINGLE(MarSun1)+38)=3),_xlfn.SINGLE(MarSun1)+38,\"\"))","v":{"$error":"#NAME?"}},{"$f":"IF(DAY(_xlfn.SINGLE(MarSun1))=1,IF(AND(YEAR(_xlfn.SINGLE(MarSun1)+32)=ปีปฏิทิน,MONTH(_xlfn.SINGLE(MarSun1)+32)=3),_xlfn.SINGLE(MarSun1)+32,\"\"),IF(AND(YEAR(_xlfn.SINGLE(MarSun1)+39)=ปีปฏิทิน,MONTH(_xlfn.SINGLE(MarSun1)+39)=3),_xlfn.SINGLE(MarSun1)+39,\"\"))","v":{"$error":"#NAME?"}},{"$f":"IF(DAY(_xlfn.SINGLE(MarSun1))=1,IF(AND(YEAR(_xlfn.SINGLE(MarSun1)+33)=ปีปฏิทิน,MONTH(_xlfn.SINGLE(MarSun1)+33)=3),_xlfn.SINGLE(MarSun1)+33,\"\"),IF(AND(YEAR(_xlfn.SINGLE(MarSun1)+40)=ปีปฏิทิน,MONTH(_xlfn.SINGLE(MarSun1)+40)=3),_xlfn.SINGLE(MarSun1)+40,\"\"))","v":{"$error":"#NAME?"}},{"$f":"IF(DAY(_xlfn.SINGLE(MarSun1))=1,IF(AND(YEAR(_xlfn.SINGLE(MarSun1)+34)=ปีปฏิทิน,MONTH(_xlfn.SINGLE(MarSun1)+34)=3),_xlfn.SINGLE(MarSun1)+34,\"\"),IF(AND(YEAR(_xlfn.SINGLE(MarSun1)+41)=ปีปฏิทิน,MONTH(_xlfn.SINGLE(MarSun1)+41)=3),_xlfn.SINGLE(MarSun1)+41,\"\"))","v":{"$error":"#NAME?"}},{"$f":"IF(DAY(_xlfn.SINGLE(MarSun1))=1,IF(AND(YEAR(_xlfn.SINGLE(MarSun1)+35)=ปีปฏิทิน,MONTH(_xlfn.SINGLE(MarSun1)+35)=3),_xlfn.SINGLE(MarSun1)+35,\"\"),IF(AND(YEAR(_xlfn.SINGLE(MarSun1)+42)=ปีปฏิทิน,MONTH(_xlfn.SINGLE(MarSun1)+42)=3),_xlfn.SINGLE(MarSun1)+42,\"\"))","v":{"$error":"#NAME?"}},null,null,{"$f":"IF(DAY(_xlfn.SINGLE(เม.ย.อา.1))=1,IF(AND(YEAR(_xlfn.SINGLE(เม.ย.อา.1)+29)=ปีปฏิทิน,MONTH(_xlfn.SINGLE(เม.ย.อา.1)+29)=4),_xlfn.SINGLE(เม.ย.อา.1)+29,\"\"),IF(AND(YEAR(_xlfn.SINGLE(เม.ย.อา.1)+36)=ปีปฏิทิน,MONTH(_xlfn.SINGLE(เม.ย.อา.1)+36)=4),_xlfn.SINGLE(เม.ย.อา.1)+36,\"\"))","v":{"$error":"#NAME?"}},{"$f":"IF(DAY(_xlfn.SINGLE(เม.ย.อา.1))=1,IF(AND(YEAR(_xlfn.SINGLE(เม.ย.อา.1)+30)=ปีปฏิทิน,MONTH(_xlfn.SINGLE(เม.ย.อา.1)+30)=4),_xlfn.SINGLE(เม.ย.อา.1)+30,\"\"),IF(AND(YEAR(_xlfn.SINGLE(เม.ย.อา.1)+37)=ปีปฏิทิน,MONTH(_xlfn.SINGLE(เม.ย.อา.1)+37)=4),_xlfn.SINGLE(เม.ย.อา.1)+37,\"\"))","v":{"$error":"#NAME?"}},{"$f":"IF(DAY(_xlfn.SINGLE(เม.ย.อา.1))=1,IF(AND(YEAR(_xlfn.SINGLE(เม.ย.อา.1)+31)=ปีปฏิทิน,MONTH(_xlfn.SINGLE(เม.ย.อา.1)+31)=4),_xlfn.SINGLE(เม.ย.อา.1)+31,\"\"),IF(AND(YEAR(_xlfn.SINGLE(เม.ย.อา.1)+38)=ปีปฏิทิน,MONTH(_xlfn.SINGLE(เม.ย.อา.1)+38)=4),_xlfn.SINGLE(เม.ย.อา.1)+38,\"\"))","v":{"$error":"#NAME?"}},{"$f":"IF(DAY(_xlfn.SINGLE(เม.ย.อา.1))=1,IF(AND(YEAR(_xlfn.SINGLE(เม.ย.อา.1)+32)=ปีปฏิทิน,MONTH(_xlfn.SINGLE(เม.ย.อา.1)+32)=4),_xlfn.SINGLE(เม.ย.อา.1)+32,\"\"),IF(AND(YEAR(_xlfn.SINGLE(เม.ย.อา.1)+39)=ปีปฏิทิน,MONTH(_xlfn.SINGLE(เม.ย.อา.1)+39)=4),_xlfn.SINGLE(เม.ย.อา.1)+39,\"\"))","v":{"$error":"#NAME?"}},{"$f":"IF(DAY(_xlfn.SINGLE(เม.ย.อา.1))=1,IF(AND(YEAR(_xlfn.SINGLE(เม.ย.อา.1)+33)=ปีปฏิทิน,MONTH(_xlfn.SINGLE(เม.ย.อา.1)+33)=4),_xlfn.SINGLE(เม.ย.อา.1)+33,\"\"),IF(AND(YEAR(_xlfn.SINGLE(เม.ย.อา.1)+40)=ปีปฏิทิน,MONTH(_xlfn.SINGLE(เม.ย.อา.1)+40)=4),_xlfn.SINGLE(เม.ย.อา.1)+40,\"\"))","v":{"$error":"#NAME?"}},{"$f":"IF(DAY(_xlfn.SINGLE(เม.ย.อา.1))=1,IF(AND(YEAR(_xlfn.SINGLE(เม.ย.อา.1)+34)=ปีปฏิทิน,MONTH(_xlfn.SINGLE(เม.ย.อา.1)+34)=4),_xlfn.SINGLE(เม.ย.อา.1)+34,\"\"),IF(AND(YEAR(_xlfn.SINGLE(เม.ย.อา.1)+41)=ปีปฏิทิน,MONTH(_xlfn.SINGLE(เม.ย.อา.1)+41)=4),_xlfn.SINGLE(เม.ย.อา.1)+41,\"\"))","v":{"$error":"#NAME?"}},{"$f":"IF(DAY(_xlfn.SINGLE(เม.ย.อา.1))=1,IF(AND(YEAR(_xlfn.SINGLE(เม.ย.อา.1)+35)=ปีปฏิทิน,MONTH(_xlfn.SINGLE(เม.ย.อา.1)+35)=4),_xlfn.SINGLE(เม.ย.อา.1)+35,\"\"),IF(AND(YEAR(_xlfn.SINGLE(เม.ย.อา.1)+42)=ปีปฏิทิน,MONTH(_xlfn.SINGLE(เม.ย.อา.1)+42)=4),_xlfn.SINGLE(เม.ย.อา.1)+42,\"\"))","v":{"$error":"#NAME?"}}]
["ปฏิทินเดือนพฤษภาคมอยู่ในเซลล์ C34 ถึง I40 ปฏิทินเดือนมิถุนายนอยู่ในเซลล์ L34 ถึง R40 ปฏิทินเดือนกรกฎาคมอยู่ในเซลล์ U34 ถึง AA40 และปฏิทินเดือนสิงหาคมอยู่ในเซลล์ AD34 ถึง AJ40"]
["ชื่อเดือนอยู่ในแถวนี้ ป้ายกำกับเดือนพฤษภาคมอยู่ในเซลล์ C33 ป้ายกำกับเดือนมิถุนายนอยู่ในเซลล์ L33 กรกฎาคมอยู่ใน U33 และสิงหาคมอยู่ใน AD33",null,{"$f":"DATE(ปีปฏิทิน,5,1)","v":"2019-05-01"},{"$nulls":8},{"$f":"DATE(ปีปฏิทิน,6,1)","v":"2019-06-01"},{"$nulls":8},{"$f":"DATE(ปีปฏิทิน,7,1)","v":"2019-07-01"},{"$nulls":8},{"$f":"DATE(ปีปฏิทิน,8,1)","v":"2019-08-01"}]
["ชื่อวันทำงานอยู่ในแถวนี้ ชื่อวันทำงานของเดือนพฤษภาคมอยู่ในเซลล์ C34 ถึง I34 วันทำงานของเดือนมิถุนายนอยู่ในเซลล์ L34 ถึง R34 วันทำงานของเดือนกรกฎาคมอยู่ในเซลล์ U34 ถึง AA34 และวันทำงานของเดือนสิงหาคมอยู่ในเซลล์ AD34 ถึง AJ34",null,"จ","อ","พ","พฤ","ศ","ส","อา",null,null,"จ","อ","พ","พฤ","ศ","ส","อา",null,null,"จ","อ","พ","พฤ","ศ","ส","อา",null,null,"จ","อ","พ","พฤ","ศ","ส","อา"]
["วันที่จะถูกอัปเดตโดยอัตโนมัติในแถวนี้ วันที่ของเดือนพฤษภาคมอยู่ในเซลล์ด้านขวา เซลล์ C35 ถึง I40 วันที่ของเดือนมิถุนายนอยู่ในเซลล์ L35 ถึง R40 วันที่ของเดือนกรกฎาคมอยู่ในเซลล์ U35 ถึง AA35 และสิงหาคมอยู่ในเซลล์ AD35 ถึง AJ40 คำแนะนำถัดไปอยู่ในเซลล์ A41",null,{"$f":"IF(DAY(_xlfn.SINGLE(MaySun1))=1,\"\",IF(AND(YEAR(_xlfn.SINGLE(MaySun1)+1)=ปีปฏิทิน,MONTH(_xlfn.SINGLE(MaySun1)+1)=5),_xlfn.SINGLE(MaySun1)+1,\"\"))","v":{"$error":"#NAME?"}},{"$f":"IF(DAY(_xlfn.SINGLE(MaySun1))=1,\"\",IF(AND(YEAR(_xlfn.SINGLE(MaySun1)+2)=ปีปฏิทิน,MONTH(_xlfn.SINGLE(MaySun1)+2)=5),_xlfn.SINGLE(MaySun1)+2,\"\"))","v":{"$error":"#NAME?"}},{"$f":"IF(DAY(_xlfn.SINGLE(MaySun1))=1,\"\",IF(AND(YEAR(_xlfn.SINGLE(MaySun1)+3)=ปีปฏิทิน,MONTH(_xlfn.SINGLE(MaySun1)+3)=5),_xlfn.SINGLE(MaySun1)+3,\"\"))","v":{"$error":"#NAME?"}},{"$f":"IF(DAY(_xlfn.SINGLE(MaySun1))=1,\"\",IF(AND(YEAR(_xlfn.SINGLE(MaySun1)+4)=ปีปฏิทิน,MONTH(_xlfn.SINGLE(MaySun1)+4)=5),_xlfn.SINGLE(MaySun1)+4,\"\"))","v":{"$error":"#NAME?"}},{"$f":"IF(DAY(_xlfn.SINGLE(MaySun1))=1,\"\",IF(AND(YEAR(_xlfn.SINGLE(MaySun1)+5)=ปีปฏิทิน,MONTH(_xlfn.SINGLE(MaySun1)+5)=5),_xlfn.SINGLE(MaySun1)+5,\"\"))","v":{"$error":"#NAME?"}},{"$f":"IF(DAY(_xlfn.SINGLE(MaySun1))=1,\"\",IF(AND(YEAR(_xlfn.SINGLE(MaySun1)+6)=ปีปฏิทิน,MONTH(_xlfn.SINGLE(MaySun1)+6)=5),_xlfn.SINGLE(MaySun1)+6,\"\"))","v":{"$error":"#NAME?"}},{"$f":"_xlfn.SINGLE(IF(DAY(_xlfn.SINGLE(MaySun1))=1,IF(AND(YEAR(_xlfn.SINGLE(MaySun1))=ปีปฏิทิน,MONTH(_xlfn.SINGLE(MaySun1))=5),MaySun1,\"\"),IF(AND(YEAR(_xlfn.SINGLE(MaySun1)+7)=ปีปฏิทิน,MONTH(_xlfn.SINGLE(MaySun1)+7)=5),_xlfn.SINGLE(MaySun1)+7,\"\")))","v":{"$error":"#NAME?"}},null,null,{"$f":"IF(DAY(_xlfn.SINGLE(JunSun1))=1,\"\",IF(AND(YEAR(_xlfn.SINGLE(JunSun1)+1)=ปีปฏิทิน,MONTH(_xlfn.SINGLE(JunSun1)+1)=6),_xlfn.SINGLE(JunSun1)+1,\"\"))","v":{"$error":"#NAME?"}},{"$f":"IF(DAY(_xlfn.SINGLE(JunSun1))=1,\"\",IF(AND(YEAR(_xlfn.SINGLE(JunSun1)+2)=ปีปฏิทิน,MONTH(_xlfn.SINGLE(JunSun1)+2)=6),_xlfn.SINGLE(JunSun1)+2,\"\"))","v":{"$error":"#NAME?"}},{"$f":"IF(DAY(_xlfn.SINGLE(JunSun1))=1,\"\",IF(AND(YEAR(_xlfn.SINGLE(JunSun1)+3)=ปีปฏิทิน,MONTH(_xlfn.SINGLE(JunSun1)+3)=6),_xlfn.SINGLE(JunSun1)+3,\"\"))","v":{"$error":"#NAME?"}},{"$f":"IF(DAY(_xlfn.SINGLE(JunSun1))=1,\"\",IF(AND(YEAR(_xlfn.SINGLE(JunSun1)+4)=ปีปฏิทิน,MONTH(_xlfn.SINGLE(JunSun1)+4)=6),_xlfn.SINGLE(JunSun1)+4,\"\"))","v":{"$error":"#NAME?"}},{"$f":"IF(DAY(_xlfn.SINGLE(JunSun1))=1,\"\",IF(AND(YEAR(_xlfn.SINGLE(JunSun1)+5)=ปีปฏิทิน,MONTH(_xlfn.SINGLE(JunSun1)+5)=6),_xlfn.SINGLE(JunSun1)+5,\"\"))","v":{"$error":"#NAME?"}},{"$f":"IF(DAY(_xlfn.SINGLE(JunSun1))=1,\"\",IF(AND(YEAR(_xlfn.SINGLE(JunSun1)+6)=ปีปฏิทิน,MONTH(_xlfn.SINGLE(JunSun1)+6)=6),_xlfn.SINGLE(JunSun1)+6,\"\"))","v":{"$error":"#NAME?"}},{"$f":"_xlfn.SINGLE(IF(DAY(_xlfn.SINGLE(JunSun1))=1,IF(AND(YEAR(_xlfn.SINGLE(JunSun1))=ปีปฏิทิน,MONTH(_xlfn.SINGLE(JunSun1))=6),JunSun1,\"\"),IF(AND(YEAR(_xlfn.SINGLE(JunSun1)+7)=ปีปฏิทิน,MONTH(_xlfn.SINGLE(JunSun1)+7)=6),_xlfn.SINGLE(JunSun1)+7,\"\")))","v":{"$error":"#NAME?"}},null,null,{"$f":"IF(DAY(_xlfn.SINGLE(JulSun1))=1,\"\",IF(AND(YEAR(_xlfn.SINGLE(JulSun1)+1)=ปีปฏิทิน,MONTH(_xlfn.SINGLE(JulSun1)+1)=7),_xlfn.SINGLE(JulSun1)+1,\"\"))","v":{"$error":"#NAME?"}},{"$f":"IF(DAY(_xlfn.SINGLE(JulSun1))=1,\"\",IF(AND(YEAR(_xlfn.SINGLE(JulSun1)+2)=ปีปฏิทิน,MONTH(_xlfn.SINGLE(JulSun1)+2)=7),_xlfn.SINGLE(JulSun1)+2,\"\"))","v":{"$error":"#NAME?"}},{"$f":"IF(DAY(_xlfn.SINGLE(JulSun1))=1,\"\",IF(AND(YEAR(_xlfn.SINGLE(JulSun1)+3)=ปีปฏิทิน,MONTH(_xlfn.SINGLE(JulSun1)+3)=7),_xlfn.SINGLE(JulSun1)+3,\"\"))","v":{"$error":"#NAME?"}},{"$f":"IF(DAY(_xlfn.SINGLE(JulSun1))=1,\"\",IF(AND(YEAR(_xlfn.SINGLE(JulSun1)+4)=ปีปฏิทิน,MONTH(_xlfn.SINGLE(JulSun1)+4)=7),_xlfn.SINGLE(JulSun1)+4,\"\"))","v":{"$error":"#NAME?"}},{"$f":"IF(DAY(_xlfn.SINGLE(JulSun1))=1,\"\",IF(AND(YEAR(_xlfn.SINGLE(JulSun1)+5)=ปีปฏิทิน,MONTH(_xlfn.SINGLE(JulSun1)+5)=7),_xlfn.SINGLE(JulSun1)+5,\"\"))","v":{"$error":"#NAME?"}},{"$f":"IF(DAY(_xlfn.SINGLE(JulSun1))=1,\"\",IF(AND(YEAR(_xlfn.SINGLE(JulSun1)+6)=ปีปฏิทิน,MONTH(_xlfn.SINGLE(JulSun1)+6)=7),_xlfn.SINGLE(JulSun1)+6,\"\"))","v":{"$error":"#NAME?"}},{"$f":"_xlfn.SINGLE(IF(DAY(_xlfn.SINGLE(JulSun1))=1,IF(AND(YEAR(_xlfn.SINGLE(JulSun1))=ปีปฏิทิน,MONTH(_xlfn.SINGLE(JulSun1))=7),JulSun1,\"\"),IF(AND(YEAR(_xlfn.SINGLE(JulSun1)+7)=ปีปฏิทิน,MONTH(_xlfn.SINGLE(JulSun1)+7)=7),_xlfn.SINGLE(JulSun1)+7,\"\")))","v":{"$error":"#NAME?"}},null,null,{"$f":"IF(DAY(_xlfn.SINGLE(ส.ค.อา.1))=1,\"\",IF(AND(YEAR(_xlfn.SINGLE(ส.ค.อา.1)+1)=ปีปฏิทิน,MONTH(_xlfn.SINGLE(ส.ค.อา.1)+1)=8),_xlfn.SINGLE(ส.ค.อา.1)+1,\"\"))","v":{"$error":"#NAME?"}},{"$f":"IF(DAY(_xlfn.SINGLE(ส.ค.อา.1))=1,\"\",IF(AND(YEAR(_xlfn.SINGLE(ส.ค.อา.1)+2)=ปีปฏิทิน,MONTH(_xlfn.SINGLE(ส.ค.อา.1)+2)=8),_xlfn.SINGLE(ส.ค.อา.1)+2,\"\"))","v":{"$error":"#NAME?"}},{"$f":"IF(DAY(_xlfn.SINGLE(ส.ค.อา.1))=1,\"\",IF(AND(YEAR(_xlfn.SINGLE(ส.ค.อา.1)+3)=ปีปฏิทิน,MONTH(_xlfn.SINGLE(ส.ค.อา.1)+3)=8),_xlfn.SINGLE(ส.ค.อา.1)+3,\"\"))","v":{"$error":"#NAME?"}},{"$f":"IF(DAY(_xlfn.SINGLE(ส.ค.อา.1))=1,\"\",IF(AND(YEAR(_xlfn.SINGLE(ส.ค.อา.1)+4)=ปีปฏิทิน,MONTH(_xlfn.SINGLE(ส.ค.อา.1)+4)=8),_xlfn.SINGLE(ส.ค.อา.1)+4,\"\"))","v":{"$error":"#NAME?"}},{"$f":"IF(DAY(_xlfn.SINGLE(ส.ค.อา.1))=1,\"\",IF(AND(YEAR(_xlfn.SINGLE(ส.ค.อา.1)+5)=ปีปฏิทิน,MONTH(_xlfn.SINGLE(ส.ค.อา.1)+5)=8),_xlfn.SINGLE(ส.ค.อา.1)+5,\"\"))","v":{"$error":"#NAME?"}},{"$f":"IF(DAY(_xlfn.SINGLE(ส.ค.อา.1))=1,\"\",IF(AND(YEAR(_xlfn.SINGLE(ส.ค.อา.1)+6)=ปีปฏิทิน,MONTH(_xlfn.SINGLE(ส.ค.อา.1)+6)=8),_xlfn.SINGLE(ส.ค.อา.1)+6,\"\"))","v":{"$error":"#NAME?"}},{"$f":"_xlfn.SINGLE(IF(DAY(_xlfn.SINGLE(ส.ค.อา.1))=1,IF(AND(YEAR(_xlfn.SINGLE(ส.ค.อา.1))=ปีปฏิทิน,MONTH(_xlfn.SINGLE(ส.ค.อา.1))=8),ส.ค.อา.1,\"\"),IF(AND(YEAR(_xlfn.SINGLE(ส.ค.อา.1)+7)=ปีปฏิทิน,MONTH(_xlfn.SINGLE(ส.ค.อา.1)+7)=8),_xlfn.SINGLE(ส.ค.อา.1)+7,\"\")))","v":{"$error":"#NAME?"}}]
[null,null,{"$f":"IF(DAY(_xlfn.SINGLE(MaySun1))=1,IF(AND(YEAR(_xlfn.SINGLE(MaySun1)+1)=ปีปฏิทิน,MONTH(_xlfn.SINGLE(MaySun1)+1)=5),_xlfn.SINGLE(MaySun1)+1,\"\"),IF(AND(YEAR(_xlfn.SINGLE(MaySun1)+8)=ปีปฏิทิน,MONTH(_xlfn.SINGLE(MaySun1)+8)=5),_xlfn.SINGLE(MaySun1)+8,\"\"))","v":{"$error":"#NAME?"}},{"$f":"IF(DAY(_xlfn.SINGLE(MaySun1))=1,IF(AND(YEAR(_xlfn.SINGLE(MaySun1)+2)=ปีปฏิทิน,MONTH(_xlfn.SINGLE(MaySun1)+2)=5),_xlfn.SINGLE(MaySun1)+2,\"\"),IF(AND(YEAR(_xlfn.SINGLE(MaySun1)+9)=ปีปฏิทิน,MONTH(_xlfn.SINGLE(MaySun1)+9)=5),_xlfn.SINGLE(MaySun1)+9,\"\"))","v":{"$error":"#NAME?"}},{"$f":"IF(DAY(_xlfn.SINGLE(MaySun1))=1,IF(AND(YEAR(_xlfn.SINGLE(MaySun1)+3)=ปีปฏิทิน,MONTH(_xlfn.SINGLE(MaySun1)+3)=5),_xlfn.SINGLE(MaySun1)+3,\"\"),IF(AND(YEAR(_xlfn.SINGLE(MaySun1)+10)=ปีปฏิทิน,MONTH(_xlfn.SINGLE(MaySun1)+10)=5),_xlfn.SINGLE(MaySun1)+10,\"\"))","v":{"$error":"#NAME?"}},{"$f":"IF(DAY(_xlfn.SINGLE(MaySun1))=1,IF(AND(YEAR(_xlfn.SINGLE(MaySun1)+4)=ปีปฏิทิน,MONTH(_xlfn.SINGLE(MaySun1)+4)=5),_xlfn.SINGLE(MaySun1)+4,\"\"),IF(AND(YEAR(_xlfn.SINGLE(MaySun1)+11)=ปีปฏิทิน,MONTH(_xlfn.SINGLE(MaySun1)+11)=5),_xlfn.SINGLE(MaySun1)+11,\"\"))","v":{"$error":"#NAME?"}},{"$f":"IF(DAY(_xlfn.SINGLE(MaySun1))=1,IF(AND(YEAR(_xlfn.SINGLE(MaySun1)+5)=ปีปฏิทิน,MONTH(_xlfn.SINGLE(MaySun1)+5)=5),_xlfn.SINGLE(MaySun1)+5,\"\"),IF(AND(YEAR(_xlfn.SINGLE(MaySun1)+12)=ปีปฏิทิน,MONTH(_xlfn.SINGLE(MaySun1)+12)=5),_xlfn.SINGLE(MaySun1)+12,\"\"))","v":{"$error":"#NAME?"}},{"$f":"IF(DAY(_xlfn.SINGLE(MaySun1))=1,IF(AND(YEAR(_xlfn.SINGLE(MaySun1)+6)=ปีปฏิทิน,MONTH(_xlfn.SINGLE(MaySun1)+6)=5),_xlfn.SINGLE(MaySun1)+6,\"\"),IF(AND(YEAR(_xlfn.SINGLE(MaySun1)+13)=ปีปฏิทิน,MONTH(_xlfn.SINGLE(MaySun1)+13)=5),_xlfn.SINGLE(MaySun1)+13,\"\"))","v":{"$error":"#NAME?"}},{"$f":"IF(DAY(_xlfn.SINGLE(MaySun1))=1,IF(AND(YEAR(_xlfn.SINGLE(MaySun1)+7)=ปีปฏิทิน,MONTH(_xlfn.SINGLE(MaySun1)+7)=5),_xlfn.SINGLE(MaySun1)+7,\"\"),IF(AND(YEAR(_xlfn.SINGLE(MaySun1)+14)=ปีปฏิทิน,MONTH(_xlfn.SINGLE(MaySun1)+14)=5),_xlfn.SINGLE(MaySun1)+14,\"\"))","v":{"$error":"#NAME?"}},null,null,{"$f":"IF(DAY(_xlfn.SINGLE(JunSun1))=1,IF(AND(YEAR(_xlfn.SINGLE(JunSun1)+1)=ปีปฏิทิน,MONTH(_xlfn.SINGLE(JunSun1)+1)=6),_xlfn.SINGLE(JunSun1)+1,\"\"),IF(AND(YEAR(_xlfn.SINGLE(JunSun1)+8)=ปีปฏิทิน,MONTH(_xlfn.SINGLE(JunSun1)+8)=6),_xlfn.SINGLE(JunSun1)+8,\"\"))","v":{"$error":"#NAME?"}},{"$f":"IF(DAY(_xlfn.SINGLE(JunSun1))=1,IF(AND(YEAR(_xlfn.SINGLE(JunSun1)+2)=ปีปฏิทิน,MONTH(_xlfn.SINGLE(JunSun1)+2)=6),_xlfn.SINGLE(JunSun1)+2,\"\"),IF(AND(YEAR(_xlfn.SINGLE(JunSun1)+9)=ปีปฏิทิน,MONTH(_xlfn.SINGLE(JunSun1)+9)=6),_xlfn.SINGLE(JunSun1)+9,\"\"))","v":{"$error":"#NAME?"}},{"$f":"IF(DAY(_xlfn.SINGLE(JunSun1))=1,IF(AND(YEAR(_xlfn.SINGLE(JunSun1)+3)=ปีปฏิทิน,MONTH(_xlfn.SINGLE(JunSun1)+3)=6),_xlfn.SINGLE(JunSun1)+3,\"\"),IF(AND(YEAR(_xlfn.SINGLE(JunSun1)+10)=ปีปฏิทิน,MONTH(_xlfn.SINGLE(JunSun1)+10)=6),_xlfn.SINGLE(JunSun1)+10,\"\"))","v":{"$error":"#NAME?"}},{"$f":"IF(DAY(_xlfn.SINGLE(JunSun1))=1,IF(AND(YEAR(_xlfn.SINGLE(JunSun1)+4)=ปีปฏิทิน,MONTH(_xlfn.SINGLE(JunSun1)+4)=6),_xlfn.SINGLE(JunSun1)+4,\"\"),IF(AND(YEAR(_xlfn.SINGLE(JunSun1)+11)=ปีปฏิทิน,MONTH(_xlfn.SINGLE(JunSun1)+11)=6),_xlfn.SINGLE(JunSun1)+11,\"\"))","v":{"$error":"#NAME?"}},{"$f":"IF(DAY(_xlfn.SINGLE(JunSun1))=1,IF(AND(YEAR(_xlfn.SINGLE(JunSun1)+5)=ปีปฏิทิน,MONTH(_xlfn.SINGLE(JunSun1)+5)=6),_xlfn.SINGLE(JunSun1)+5,\"\"),IF(AND(YEAR(_xlfn.SINGLE(JunSun1)+12)=ปีปฏิทิน,MONTH(_xlfn.SINGLE(JunSun1)+12)=6),_xlfn.SINGLE(JunSun1)+12,\"\"))","v":{"$error":"#NAME?"}},{"$f":"IF(DAY(_xlfn.SINGLE(JunSun1))=1,IF(AND(YEAR(_xlfn.SINGLE(JunSun1)+6)=ปีปฏิทิน,MONTH(_xlfn.SINGLE(JunSun1)+6)=6),_xlfn.SINGLE(JunSun1)+6,\"\"),IF(AND(YEAR(_xlfn.SINGLE(JunSun1)+13)=ปีปฏิทิน,MONTH(_xlfn.SINGLE(JunSun1)+13)=6),_xlfn.SINGLE(JunSun1)+13,\"\"))","v":{"$error":"#NAME?"}},{"$f":"IF(DAY(_xlfn.SINGLE(JunSun1))=1,IF(AND(YEAR(_xlfn.SINGLE(JunSun1)+7)=ปีปฏิทิน,MONTH(_xlfn.SINGLE(JunSun1)+7)=6),_xlfn.SINGLE(JunSun1)+7,\"\"),IF(AND(YEAR(_xlfn.SINGLE(JunSun1)+14)=ปีปฏิทิน,MONTH(_xlfn.SINGLE(JunSun1)+14)=6),_xlfn.SINGLE(JunSun1)+14,\"\"))","v":{"$error":"#NAME?"}},null,null,{"$f":"IF(DAY(_xlfn.SINGLE(JulSun1))=1,IF(AND(YEAR(_xlfn.SINGLE(JulSun1)+1)=ปีปฏิทิน,MONTH(_xlfn.SINGLE(JulSun1)+1)=7),_xlfn.SINGLE(JulSun1)+1,\"\"),IF(AND(YEAR(_xlfn.SINGLE(JulSun1)+8)=ปีปฏิทิน,MONTH(_xlfn.SINGLE(JulSun1)+8)=7),_xlfn.SINGLE(JulSun1)+8,\"\"))","v":{"$error":"#NAME?"}},{"$f":"IF(DAY(_xlfn.SINGLE(JulSun1))=1,IF(AND(YEAR(_xlfn.SINGLE(JulSun1)+2)=ปีปฏิทิน,MONTH(_xlfn.SINGLE(JulSun1)+2)=7),_xlfn.SINGLE(JulSun1)+2,\"\"),IF(AND(YEAR(_xlfn.SINGLE(JulSun1)+9)=ปีปฏิทิน,MONTH(_xlfn.SINGLE(JulSun1)+9)=7),_xlfn.SINGLE(JulSun1)+9,\"\"))","v":{"$error":"#NAME?"}},{"$f":"IF(DAY(_xlfn.SINGLE(JulSun1))=1,IF(AND(YEAR(_xlfn.SINGLE(JulSun1)+3)=ปีปฏิทิน,MONTH(_xlfn.SINGLE(JulSun1)+3)=7),_xlfn.SINGLE(JulSun1)+3,\"\"),IF(AND(YEAR(_xlfn.SINGLE(JulSun1)+10)=ปีปฏิทิน,MONTH(_xlfn.SINGLE(JulSun1)+10)=7),_xlfn.SINGLE(JulSun1)+10,\"\"))","v":{"$error":"#NAME?"}},{"$f":"IF(DAY(_xlfn.SINGLE(JulSun1))=1,IF(AND(YEAR(_xlfn.SINGLE(JulSun1)+4)=ปีปฏิทิน,MONTH(_xlfn.SINGLE(JulSun1)+4)=7),_xlfn.SINGLE(JulSun1)+4,\"\"),IF(AND(YEAR(_xlfn.SINGLE(JulSun1)+11)=ปีปฏิทิน,MONTH(_xlfn.SINGLE(JulSun1)+11)=7),_xlfn.SINGLE(JulSun1)+11,\"\"))","v":{"$error":"#NAME?"}},{"$f":"IF(DAY(_xlfn.SINGLE(JulSun1))=1,IF(AND(YEAR(_xlfn.SINGLE(JulSun1)+5)=ปีปฏิทิน,MONTH(_xlfn.SINGLE(JulSun1)+5)=7),_xlfn.SINGLE(JulSun1)+5,\"\"),IF(AND(YEAR(_xlfn.SINGLE(JulSun1)+12)=ปีปฏิทิน,MONTH(_xlfn.SINGLE(JulSun1)+12)=7),_xlfn.SINGLE(JulSun1)+12,\"\"))","v":{"$error":"#NAME?"}},{"$f":"IF(DAY(_xlfn.SINGLE(JulSun1))=1,IF(AND(YEAR(_xlfn.SINGLE(JulSun1)+6)=ปีปฏิทิน,MONTH(_xlfn.SINGLE(JulSun1)+6)=7),_xlfn.SINGLE(JulSun1)+6,\"\"),IF(AND(YEAR(_xlfn.SINGLE(JulSun1)+13)=ปีปฏิทิน,MONTH(_xlfn.SINGLE(JulSun1)+13)=7),_xlfn.SINGLE(JulSun1)+13,\"\"))","v":{"$error":"#NAME?"}},{"$f":"IF(DAY(_xlfn.SINGLE(JulSun1))=1,IF(AND(YEAR(_xlfn.SINGLE(JulSun1)+7)=ปีปฏิทิน,MONTH(_xlfn.SINGLE(JulSun1)+7)=7),_xlfn.SINGLE(JulSun1)+7,\"\"),IF(AND(YEAR(_xlfn.SINGLE(JulSun1)+14)=ปีปฏิทิน,MONTH(_xlfn.SINGLE(JulSun1)+14)=7),_xlfn.SINGLE(JulSun1)+14,\"\"))","v":{"$error":"#NAME?"}},null,null,{"$f":"IF(DAY(_xlfn.SINGLE(ส.ค.อา.1))=1,IF(AND(YEAR(_xlfn.SINGLE(ส.ค.อา.1)+1)=ปีปฏิทิน,MONTH(_xlfn.SINGLE(ส.ค.อา.1)+1)=8),_xlfn.SINGLE(ส.ค.อา.1)+1,\"\"),IF(AND(YEAR(_xlfn.SINGLE(ส.ค.อา.1)+8)=ปีปฏิทิน,MONTH(_xlfn.SINGLE(ส.ค.อา.1)+8)=8),_xlfn.SINGLE(ส.ค.อา.1)+8,\"\"))","v":{"$error":"#NAME?"}},{"$f":"IF(DAY(_xlfn.SINGLE(ส.ค.อา.1))=1,IF(AND(YEAR(_xlfn.SINGLE(ส.ค.อา.1)+2)=ปีปฏิทิน,MONTH(_xlfn.SINGLE(ส.ค.อา.1)+2)=8),_xlfn.SINGLE(ส.ค.อา.1)+2,\"\"),IF(AND(YEAR(_xlfn.SINGLE(ส.ค.อา.1)+9)=ปีปฏิทิน,MONTH(_xlfn.SINGLE(ส.ค.อา.1)+9)=8),_xlfn.SINGLE(ส.ค.อา.1)+9,\"\"))","v":{"$error":"#NAME?"}},{"$f":"IF(DAY(_xlfn.SINGLE(ส.ค.อา.1))=1,IF(AND(YEAR(_xlfn.SINGLE(ส.ค.อา.1)+3)=ปีปฏิทิน,MONTH(_xlfn.SINGLE(ส.ค.อา.1)+3)=8),_xlfn.SINGLE(ส.ค.อา.1)+3,\"\"),IF(AND(YEAR(_xlfn.SINGLE(ส.ค.อา.1)+10)=ปีปฏิทิน,MONTH(_xlfn.SINGLE(ส.ค.อา.1)+10)=8),_xlfn.SINGLE(ส.ค.อา.1)+10,\"\"))","v":{"$error":"#NAME?"}},{"$f":"IF(DAY(_xlfn.SINGLE(ส.ค.อา.1))=1,IF(AND(YEAR(_xlfn.SINGLE(ส.ค.อา.1)+4)=ปีปฏิทิน,MONTH(_xlfn.SINGLE(ส.ค.อา.1)+4)=8),_xlfn.SINGLE(ส.ค.อา.1)+4,\"\"),IF(AND(YEAR(_xlfn.SINGLE(ส.ค.อา.1)+11)=ปีปฏิทิน,MONTH(_xlfn.SINGLE(ส.ค.อา.1)+11)=8),_xlfn.SINGLE(ส.ค.อา.1)+11,\"\"))","v":{"$error":"#NAME?"}},{"$f":"IF(DAY(_xlfn.SINGLE(ส.ค.อา.1))=1,IF(AND(YEAR(_xlfn.SINGLE(ส.ค.อา.1)+5)=ปีปฏิทิน,MONTH(_xlfn.SINGLE(ส.ค.อา.1)+5)=8),_xlfn.SINGLE(ส.ค.อา.1)+5,\"\"),IF(AND(YEAR(_xlfn.SINGLE(ส.ค.อา.1)+12)=ปีปฏิทิน,MONTH(_xlfn.SINGLE(ส.ค.อา.1)+12)=8),_xlfn.SINGLE(ส.ค.อา.1)+12,\"\"))","v":{"$error":"#NAME?"}},{"$f":"IF(DAY(_xlfn.SINGLE(ส.ค.อา.1))=1,IF(AND(YEAR(_xlfn.SINGLE(ส.ค.อา.1)+6)=ปีปฏิทิน,MONTH(_xlfn.SINGLE(ส.ค.อา.1)+6)=8),_xlfn.SINGLE(ส.ค.อา.1)+6,\"\"),IF(AND(YEAR(_xlfn.SINGLE(ส.ค.อา.1)+13)=ปีปฏิทิน,MONTH(_xlfn.SINGLE(ส.ค.อา.1)+13)=8),_xlfn.SINGLE(ส.ค.อา.1)+13,\"\"))","v":{"$error":"#NAME?"}},{"$f":"IF(DAY(_xlfn.SINGLE(ส.ค.อา.1))=1,IF(AND(YEAR(_xlfn.SINGLE(ส.ค.อา.1)+7)=ปีปฏิทิน,MONTH(_xlfn.SINGLE(ส.ค.อา.1)+7)=8),_xlfn.SINGLE(ส.ค.อา.1)+7,\"\"),IF(AND(YEAR(_xlfn.SINGLE(ส.ค.อา.1)+14)=ปีปฏิทิน,MONTH(_xlfn.SINGLE(ส.ค.อา.1)+14)=8),_xlfn.SINGLE(ส.ค.อา.1)+14,\"\"))","v":{"$error":"#NAME?"}}]
[null,null,{"$f":"IF(DAY(_xlfn.SINGLE(MaySun1))=1,IF(AND(YEAR(_xlfn.SINGLE(MaySun1)+8)=ปีปฏิทิน,MONTH(_xlfn.SINGLE(MaySun1)+8)=5),_xlfn.SINGLE(MaySun1)+8,\"\"),IF(AND(YEAR(_xlfn.SINGLE(MaySun1)+15)=ปีปฏิทิน,MONTH(_xlfn.SINGLE(MaySun1)+15)=5),_xlfn.SINGLE(MaySun1)+15,\"\"))","v":{"$error":"#NAME?"}},{"$f":"IF(DAY(_xlfn.SINGLE(MaySun1))=1,IF(AND(YEAR(_xlfn.SINGLE(MaySun1)+9)=ปีปฏิทิน,MONTH(_xlfn.SINGLE(MaySun1)+9)=5),_xlfn.SINGLE(MaySun1)+9,\"\"),IF(AND(YEAR(_xlfn.SINGLE(MaySun1)+16)=ปีปฏิทิน,MONTH(_xlfn.SINGLE(MaySun1)+16)=5),_xlfn.SINGLE(MaySun1)+16,\"\"))","v":{"$error":"#NAME?"}},{"$f":"IF(DAY(_xlfn.SINGLE(MaySun1))=1,IF(AND(YEAR(_xlfn.SINGLE(MaySun1)+10)=ปีปฏิทิน,MONTH(_xlfn.SINGLE(MaySun1)+10)=5),_xlfn.SINGLE(MaySun1)+10,\"\"),IF(AND(YEAR(_xlfn.SINGLE(MaySun1)+17)=ปีปฏิทิน,MONTH(_xlfn.SINGLE(MaySun1)+17)=5),_xlfn.SINGLE(MaySun1)+17,\"\"))","v":{"$error":"#NAME?"}},{"$f":"IF(DAY(_xlfn.SINGLE(MaySun1))=1,IF(AND(YEAR(_xlfn.SINGLE(MaySun1)+11)=ปีปฏิทิน,MONTH(_xlfn.SINGLE(MaySun1)+11)=5),_xlfn.SINGLE(MaySun1)+11,\"\"),IF(AND(YEAR(_xlfn.SINGLE(MaySun1)+18)=ปีปฏิทิน,MONTH(_xlfn.SINGLE(MaySun1)+18)=5),_xlfn.SINGLE(MaySun1)+18,\"\"))","v":{"$error":"#NAME?"}},{"$f":"IF(DAY(_xlfn.SINGLE(MaySun1))=1,IF(AND(YEAR(_xlfn.SINGLE(MaySun1)+12)=ปีปฏิทิน,MONTH(_xlfn.SINGLE(MaySun1)+12)=5),_xlfn.SINGLE(MaySun1)+12,\"\"),IF(AND(YEAR(_xlfn.SINGLE(MaySun1)+19)=ปีปฏิทิน,MONTH(_xlfn.SINGLE(MaySun1)+19)=5),_xlfn.SINGLE(MaySun1)+19,\"\"))","v":{"$error":"#NAME?"}},{"$f":"IF(DAY(_xlfn.SINGLE(MaySun1))=1,IF(AND(YEAR(_xlfn.SINGLE(MaySun1)+13)=ปีปฏิทิน,MONTH(_xlfn.SINGLE(MaySun1)+13)=5),_xlfn.SINGLE(MaySun1)+13,\"\"),IF(AND(YEAR(_xlfn.SINGLE(MaySun1)+20)=ปีปฏิทิน,MONTH(_xlfn.SINGLE(MaySun1)+20)=5),_xlfn.SINGLE(MaySun1)+20,\"\"))","v":{"$error":"#NAME?"}},{"$f":"IF(DAY(_xlfn.SINGLE(MaySun1))=1,IF(AND(YEAR(_xlfn.SINGLE(MaySun1)+14)=ปีปฏิทิน,MONTH(_xlfn.SINGLE(MaySun1)+14)=5),_xlfn.SINGLE(MaySun1)+14,\"\"),IF(AND(YEAR(_xlfn.SINGLE(MaySun1)+21)=ปีปฏิทิน,MONTH(_xlfn.SINGLE(MaySun1)+21)=5),_xlfn.SINGLE(MaySun1)+21,\"\"))","v":{"$error":"#NAME?"}},null,null,{"$f":"IF(DAY(_xlfn.SINGLE(JunSun1))=1,IF(AND(YEAR(_xlfn.SINGLE(JunSun1)+8)=ปีปฏิทิน,MONTH(_xlfn.SINGLE(JunSun1)+8)=6),_xlfn.SINGLE(JunSun1)+8,\"\"),IF(AND(YEAR(_xlfn.SINGLE(JunSun1)+15)=ปีปฏิทิน,MONTH(_xlfn.SINGLE(JunSun1)+15)=6),_xlfn.SINGLE(JunSun1)+15,\"\"))","v":{"$error":"#NAME?"}},{"$f":"IF(DAY(_xlfn.SINGLE(JunSun1))=1,IF(AND(YEAR(_xlfn.SINGLE(JunSun1)+9)=ปีปฏิทิน,MONTH(_xlfn.SINGLE(JunSun1)+9)=6),_xlfn.SINGLE(JunSun1)+9,\"\"),IF(AND(YEAR(_xlfn.SINGLE(JunSun1)+16)=ปีปฏิทิน,MONTH(_xlfn.SINGLE(JunSun1)+16)=6),_xlfn.SINGLE(JunSun1)+16,\"\"))","v":{"$error":"#NAME?"}},{"$f":"IF(DAY(_xlfn.SINGLE(JunSun1))=1,IF(AND(YEAR(_xlfn.SINGLE(JunSun1)+10)=ปีปฏิทิน,MONTH(_xlfn.SINGLE(JunSun1)+10)=6),_xlfn.SINGLE(JunSun1)+10,\"\"),IF(AND(YEAR(_xlfn.SINGLE(JunSun1)+17)=ปีปฏิทิน,MONTH(_xlfn.SINGLE(JunSun1)+17)=6),_xlfn.SINGLE(JunSun1)+17,\"\"))","v":{"$error":"#NAME?"}},{"$f":"IF(DAY(_xlfn.SINGLE(JunSun1))=1,IF(AND(YEAR(_xlfn.SINGLE(JunSun1)+11)=ปีปฏิทิน,MONTH(_xlfn.SINGLE(JunSun1)+11)=6),_xlfn.SINGLE(JunSun1)+11,\"\"),IF(AND(YEAR(_xlfn.SINGLE(JunSun1)+18)=ปีปฏิทิน,MONTH(_xlfn.SINGLE(JunSun1)+18)=6),_xlfn.SINGLE(JunSun1)+18,\"\"))","v":{"$error":"#NAME?"}},{"$f":"IF(DAY(_xlfn.SINGLE(JunSun1))=1,IF(AND(YEAR(_xlfn.SINGLE(JunSun1)+12)=ปีปฏิทิน,MONTH(_xlfn.SINGLE(JunSun1)+12)=6),_xlfn.SINGLE(JunSun1)+12,\"\"),IF(AND(YEAR(_xlfn.SINGLE(JunSun1)+19)=ปีปฏิทิน,MONTH(_xlfn.SINGLE(JunSun1)+19)=6),_xlfn.SINGLE(JunSun1)+19,\"\"))","v":{"$error":"#NAME?"}},{"$f":"IF(DAY(_xlfn.SINGLE(JunSun1))=1,IF(AND(YEAR(_xlfn.SINGLE(JunSun1)+13)=ปีปฏิทิน,MONTH(_xlfn.SINGLE(JunSun1)+13)=6),_xlfn.SINGLE(JunSun1)+13,\"\"),IF(AND(YEAR(_xlfn.SINGLE(JunSun1)+20)=ปีปฏิทิน,MONTH(_xlfn.SINGLE(JunSun1)+20)=6),_xlfn.SINGLE(JunSun1)+20,\"\"))","v":{"$error":"#NAME?"}},{"$f":"IF(DAY(_xlfn.SINGLE(JunSun1))=1,IF(AND(YEAR(_xlfn.SINGLE(JunSun1)+14)=ปีปฏิทิน,MONTH(_xlfn.SINGLE(JunSun1)+14)=6),_xlfn.SINGLE(JunSun1)+14,\"\"),IF(AND(YEAR(_xlfn.SINGLE(JunSun1)+21)=ปีปฏิทิน,MONTH(_xlfn.SINGLE(JunSun1)+21)=6),_xlfn.SINGLE(JunSun1)+21,\"\"))","v":{"$error":"#NAME?"}},null,null,{"$f":"IF(DAY(_xlfn.SINGLE(JulSun1))=1,IF(AND(YEAR(_xlfn.SINGLE(JulSun1)+8)=ปีปฏิทิน,MONTH(_xlfn.SINGLE(JulSun1)+8)=7),_xlfn.SINGLE(JulSun1)+8,\"\"),IF(AND(YEAR(_xlfn.SINGLE(JulSun1)+15)=ปีปฏิทิน,MONTH(_xlfn.SINGLE(JulSun1)+15)=7),_xlfn.SINGLE(JulSun1)+15,\"\"))","v":{"$error":"#NAME?"}},{"$f":"IF(DAY(_xlfn.SINGLE(JulSun1))=1,IF(AND(YEAR(_xlfn.SINGLE(JulSun1)+9)=ปีปฏิทิน,MONTH(_xlfn.SINGLE(JulSun1)+9)=7),_xlfn.SINGLE(JulSun1)+9,\"\"),IF(AND(YEAR(_xlfn.SINGLE(JulSun1)+16)=ปีปฏิทิน,MONTH(_xlfn.SINGLE(JulSun1)+16)=7),_xlfn.SINGLE(JulSun1)+16,\"\"))","v":{"$error":"#NAME?"}},{"$f":"IF(DAY(_xlfn.SINGLE(JulSun1))=1,IF(AND(YEAR(_xlfn.SINGLE(JulSun1)+10)=ปีปฏิทิน,MONTH(_xlfn.SINGLE(JulSun1)+10)=7),_xlfn.SINGLE(JulSun1)+10,\"\"),IF(AND(YEAR(_xlfn.SINGLE(JulSun1)+17)=ปีปฏิทิน,MONTH(_xlfn.SINGLE(JulSun1)+17)=7),_xlfn.SINGLE(JulSun1)+17,\"\"))","v":{"$error":"#NAME?"}},{"$f":"IF(DAY(_xlfn.SINGLE(JulSun1))=1,IF(AND(YEAR(_xlfn.SINGLE(JulSun1)+11)=ปีปฏิทิน,MONTH(_xlfn.SINGLE(JulSun1)+11)=7),_xlfn.SINGLE(JulSun1)+11,\"\"),IF(AND(YEAR(_xlfn.SINGLE(JulSun1)+18)=ปีปฏิทิน,MONTH(_xlfn.SINGLE(JulSun1)+18)=7),_xlfn.SINGLE(JulSun1)+18,\"\"))","v":{"$error":"#NAME?"}},{"$f":"IF(DAY(_xlfn.SINGLE(JulSun1))=1,IF(AND(YEAR(_xlfn.SINGLE(JulSun1)+12)=ปีปฏิทิน,MONTH(_xlfn.SINGLE(JulSun1)+12)=7),_xlfn.SINGLE(JulSun1)+12,\"\"),IF(AND(YEAR(_xlfn.SINGLE(JulSun1)+19)=ปีปฏิทิน,MONTH(_xlfn.SINGLE(JulSun1)+19)=7),_xlfn.SINGLE(JulSun1)+19,\"\"))","v":{"$error":"#NAME?"}},{"$f":"IF(DAY(_xlfn.SINGLE(JulSun1))=1,IF(AND(YEAR(_xlfn.SINGLE(JulSun1)+13)=ปีปฏิทิน,MONTH(_xlfn.SINGLE(JulSun1)+13)=7),_xlfn.SINGLE(JulSun1)+13,\"\"),IF(AND(YEAR(_xlfn.SINGLE(JulSun1)+20)=ปีปฏิทิน,MONTH(_xlfn.SINGLE(JulSun1)+20)=7),_xlfn.SINGLE(JulSun1)+20,\"\"))","v":{"$error":"#NAME?"}},{"$f":"IF(DAY(_xlfn.SINGLE(JulSun1))=1,IF(AND(YEAR(_xlfn.SINGLE(JulSun1)+14)=ปีปฏิทิน,MONTH(_xlfn.SINGLE(JulSun1)+14)=7),_xlfn.SINGLE(JulSun1)+14,\"\"),IF(AND(YEAR(_xlfn.SINGLE(JulSun1)+21)=ปีปฏิทิน,MONTH(_xlfn.SINGLE(JulSun1)+21)=7),_xlfn.SINGLE(JulSun1)+21,\"\"))","v":{"$error":"#NAME?"}},null,null,{"$f":"IF(DAY(_xlfn.SINGLE(ส.ค.อา.1))=1,IF(AND(YEAR(_xlfn.SINGLE(ส.ค.อา.1)+8)=ปีปฏิทิน,MONTH(_xlfn.SINGLE(ส.ค.อา.1)+8)=8),_xlfn.SINGLE(ส.ค.อา.1)+8,\"\"),IF(AND(YEAR(_xlfn.SINGLE(ส.ค.อา.1)+15)=ปีปฏิทิน,MONTH(_xlfn.SINGLE(ส.ค.อา.1)+15)=8),_xlfn.SINGLE(ส.ค.อา.1)+15,\"\"))","v":{"$error":"#NAME?"}},{"$f":"IF(DAY(_xlfn.SINGLE(ส.ค.อา.1))=1,IF(AND(YEAR(_xlfn.SINGLE(ส.ค.อา.1)+9)=ปีปฏิทิน,MONTH(_xlfn.SINGLE(ส.ค.อา.1)+9)=8),_xlfn.SINGLE(ส.ค.อา.1)+9,\"\"),IF(AND(YEAR(_xlfn.SINGLE(ส.ค.อา.1)+16)=ปีปฏิทิน,MONTH(_xlfn.SINGLE(ส.ค.อา.1)+16)=8),_xlfn.SINGLE(ส.ค.อา.1)+16,\"\"))","v":{"$error":"#NAME?"}},{"$f":"IF(DAY(_xlfn.SINGLE(ส.ค.อา.1))=1,IF(AND(YEAR(_xlfn.SINGLE(ส.ค.อา.1)+10)=ปีปฏิทิน,MONTH(_xlfn.SINGLE(ส.ค.อา.1)+10)=8),_xlfn.SINGLE(ส.ค.อา.1)+10,\"\"),IF(AND(YEAR(_xlfn.SINGLE(ส.ค.อา.1)+17)=ปีปฏิทิน,MONTH(_xlfn.SINGLE(ส.ค.อา.1)+17)=8),_xlfn.SINGLE(ส.ค.อา.1)+17,\"\"))","v":{"$error":"#NAME?"}},{"$f":"IF(DAY(_xlfn.SINGLE(ส.ค.อา.1))=1,IF(AND(YEAR(_xlfn.SINGLE(ส.ค.อา.1)+11)=ปีปฏิทิน,MONTH(_xlfn.SINGLE(ส.ค.อา.1)+11)=8),_xlfn.SINGLE(ส.ค.อา.1)+11,\"\"),IF(AND(YEAR(_xlfn.SINGLE(ส.ค.อา.1)+18)=ปีปฏิทิน,MONTH(_xlfn.SINGLE(ส.ค.อา.1)+18)=8),_xlfn.SINGLE(ส.ค.อา.1)+18,\"\"))","v":{"$error":"#NAME?"}},{"$f":"IF(DAY(_xlfn.SINGLE(ส.ค.อา.1))=1,IF(AND(YEAR(_xlfn.SINGLE(ส.ค.อา.1)+12)=ปีปฏิทิน,MONTH(_xlfn.SINGLE(ส.ค.อา.1)+12)=8),_xlfn.SINGLE(ส.ค.อา.1)+12,\"\"),IF(AND(YEAR(_xlfn.SINGLE(ส.ค.อา.1)+19)=ปีปฏิทิน,MONTH(_xlfn.SINGLE(ส.ค.อา.1)+19)=8),_xlfn.SINGLE(ส.ค.อา.1)+19,\"\"))","v":{"$error":"#NAME?"}},{"$f":"IF(DAY(_xlfn.SINGLE(ส.ค.อา.1))=1,IF(AND(YEAR(_xlfn.SINGLE(ส.ค.อา.1)+13)=ปีปฏิทิน,MONTH(_xlfn.SINGLE(ส.ค.อา.1)+13)=8),_xlfn.SINGLE(ส.ค.อา.1)+13,\"\"),IF(AND(YEAR(_xlfn.SINGLE(ส.ค.อา.1)+20)=ปีปฏิทิน,MONTH(_xlfn.SINGLE(ส.ค.อา.1)+20)=8),_xlfn.SINGLE(ส.ค.อา.1)+20,\"\"))","v":{"$error":"#NAME?"}},{"$f":"IF(DAY(_xlfn.SINGLE(ส.ค.อา.1))=1,IF(AND(YEAR(_xlfn.SINGLE(ส.ค.อา.1)+14)=ปีปฏิทิน,MONTH(_xlfn.SINGLE(ส.ค.อา.1)+14)=8),_xlfn.SINGLE(ส.ค.อา.1)+14,\"\"),IF(AND(YEAR(_xlfn.SINGLE(ส.ค.อา.1)+21)=ปีปฏิทิน,MONTH(_xlfn.SINGLE(ส.ค.อา.1)+21)=8),_xlfn.SINGLE(ส.ค.อา.1)+21,\"\"))","v":{"$error":"#NAME?"}}]
[null,null,{"$f":"IF(DAY(_xlfn.SINGLE(MaySun1))=1,IF(AND(YEAR(_xlfn.SINGLE(MaySun1)+15)=ปีปฏิทิน,MONTH(_xlfn.SINGLE(MaySun1)+15)=5),_xlfn.SINGLE(MaySun1)+15,\"\"),IF(AND(YEAR(_xlfn.SINGLE(MaySun1)+22)=ปีปฏิทิน,MONTH(_xlfn.SINGLE(MaySun1)+22)=5),_xlfn.SINGLE(MaySun1)+22,\"\"))","v":{"$error":"#NAME?"}},{"$f":"IF(DAY(_xlfn.SINGLE(MaySun1))=1,IF(AND(YEAR(_xlfn.SINGLE(MaySun1)+16)=ปีปฏิทิน,MONTH(_xlfn.SINGLE(MaySun1)+16)=5),_xlfn.SINGLE(MaySun1)+16,\"\"),IF(AND(YEAR(_xlfn.SINGLE(MaySun1)+23)=ปีปฏิทิน,MONTH(_xlfn.SINGLE(MaySun1)+23)=5),_xlfn.SINGLE(MaySun1)+23,\"\"))","v":{"$error":"#NAME?"}},{"$f":"IF(DAY(_xlfn.SINGLE(MaySun1))=1,IF(AND(YEAR(_xlfn.SINGLE(MaySun1)+17)=ปีปฏิทิน,MONTH(_xlfn.SINGLE(MaySun1)+17)=5),_xlfn.SINGLE(MaySun1)+17,\"\"),IF(AND(YEAR(_xlfn.SINGLE(MaySun1)+24)=ปีปฏิทิน,MONTH(_xlfn.SINGLE(MaySun1)+24)=5),_xlfn.SINGLE(MaySun1)+24,\"\"))","v":{"$error":"#NAME?"}},{"$f":"IF(DAY(_xlfn.SINGLE(MaySun1))=1,IF(AND(YEAR(_xlfn.SINGLE(MaySun1)+18)=ปีปฏิทิน,MONTH(_xlfn.SINGLE(MaySun1)+18)=5),_xlfn.SINGLE(MaySun1)+18,\"\"),IF(AND(YEAR(_xlfn.SINGLE(MaySun1)+25)=ปีปฏิทิน,MONTH(_xlfn.SINGLE(MaySun1)+25)=5),_xlfn.SINGLE(MaySun1)+25,\"\"))","v":{"$error":"#NAME?"}},{"$f":"IF(DAY(_xlfn.SINGLE(MaySun1))=1,IF(AND(YEAR(_xlfn.SINGLE(MaySun1)+19)=ปีปฏิทิน,MONTH(_xlfn.SINGLE(MaySun1)+19)=5),_xlfn.SINGLE(MaySun1)+19,\"\"),IF(AND(YEAR(_xlfn.SINGLE(MaySun1)+26)=ปีปฏิทิน,MONTH(_xlfn.SINGLE(MaySun1)+26)=5),_xlfn.SINGLE(MaySun1)+26,\"\"))","v":{"$error":"#NAME?"}},{"$f":"IF(DAY(_xlfn.SINGLE(MaySun1))=1,IF(AND(YEAR(_xlfn.SINGLE(MaySun1)+20)=ปีปฏิทิน,MONTH(_xlfn.SINGLE(MaySun1)+20)=5),_xlfn.SINGLE(MaySun1)+20,\"\"),IF(AND(YEAR(_xlfn.SINGLE(MaySun1)+27)=ปีปฏิทิน,MONTH(_xlfn.SINGLE(MaySun1)+27)=5),_xlfn.SINGLE(MaySun1)+27,\"\"))","v":{"$error":"#NAME?"}},{"$f":"IF(DAY(_xlfn.SINGLE(MaySun1))=1,IF(AND(YEAR(_xlfn.SINGLE(MaySun1)+21)=ปีปฏิทิน,MONTH(_xlfn.SINGLE(MaySun1)+21)=5),_xlfn.SINGLE(MaySun1)+21,\"\"),IF(AND(YEAR(_xlfn.SINGLE(MaySun1)+28)=ปีปฏิทิน,MONTH(_xlfn.SINGLE(MaySun1)+28)=5),_xlfn.SINGLE(MaySun1)+28,\"\"))","v":{"$error":"#NAME?"}},null,null,{"$f":"IF(DAY(_xlfn.SINGLE(JunSun1))=1,IF(AND(YEAR(_xlfn.SINGLE(JunSun1)+15)=ปีปฏิทิน,MONTH(_xlfn.SINGLE(JunSun1)+15)=6),_xlfn.SINGLE(JunSun1)+15,\"\"),IF(AND(YEAR(_xlfn.SINGLE(JunSun1)+22)=ปีปฏิทิน,MONTH(_xlfn.SINGLE(JunSun1)+22)=6),_xlfn.SINGLE(JunSun1)+22,\"\"))","v":{"$error":"#NAME?"}},{"$f":"IF(DAY(_xlfn.SINGLE(JunSun1))=1,IF(AND(YEAR(_xlfn.SINGLE(JunSun1)+16)=ปีปฏิทิน,MONTH(_xlfn.SINGLE(JunSun1)+16)=6),_xlfn.SINGLE(JunSun1)+16,\"\"),IF(AND(YEAR(_xlfn.SINGLE(JunSun1)+23)=ปีปฏิทิน,MONTH(_xlfn.SINGLE(JunSun1)+23)=6),_xlfn.SINGLE(JunSun1)+23,\"\"))","v":{"$error":"#NAME?"}},{"$f":"IF(DAY(_xlfn.SINGLE(JunSun1))=1,IF(AND(YEAR(_xlfn.SINGLE(JunSun1)+17)=ปีปฏิทิน,MONTH(_xlfn.SINGLE(JunSun1)+17)=6),_xlfn.SINGLE(JunSun1)+17,\"\"),IF(AND(YEAR(_xlfn.SINGLE(JunSun1)+24)=ปีปฏิทิน,MONTH(_xlfn.SINGLE(JunSun1)+24)=6),_xlfn.SINGLE(JunSun1)+24,\"\"))","v":{"$error":"#NAME?"}},{"$f":"IF(DAY(_xlfn.SINGLE(JunSun1))=1,IF(AND(YEAR(_xlfn.SINGLE(JunSun1)+18)=ปีปฏิทิน,MONTH(_xlfn.SINGLE(JunSun1)+18)=6),_xlfn.SINGLE(JunSun1)+18,\"\"),IF(AND(YEAR(_xlfn.SINGLE(JunSun1)+25)=ปีปฏิทิน,MONTH(_xlfn.SINGLE(JunSun1)+25)=6),_xlfn.SINGLE(JunSun1)+25,\"\"))","v":{"$error":"#NAME?"}},{"$f":"IF(DAY(_xlfn.SINGLE(JunSun1))=1,IF(AND(YEAR(_xlfn.SINGLE(JunSun1)+19)=ปีปฏิทิน,MONTH(_xlfn.SINGLE(JunSun1)+19)=6),_xlfn.SINGLE(JunSun1)+19,\"\"),IF(AND(YEAR(_xlfn.SINGLE(JunSun1)+26)=ปีปฏิทิน,MONTH(_xlfn.SINGLE(JunSun1)+26)=6),_xlfn.SINGLE(JunSun1)+26,\"\"))","v":{"$error":"#NAME?"}},{"$f":"IF(DAY(_xlfn.SINGLE(JunSun1))=1,IF(AND(YEAR(_xlfn.SINGLE(JunSun1)+20)=ปีปฏิทิน,MONTH(_xlfn.SINGLE(JunSun1)+20)=6),_xlfn.SINGLE(JunSun1)+20,\"\"),IF(AND(YEAR(_xlfn.SINGLE(JunSun1)+27)=ปีปฏิทิน,MONTH(_xlfn.SINGLE(JunSun1)+27)=6),_xlfn.SINGLE(JunSun1)+27,\"\"))","v":{"$error":"#NAME?"}},{"$f":"IF(DAY(_xlfn.SINGLE(JunSun1))=1,IF(AND(YEAR(_xlfn.SINGLE(JunSun1)+21)=ปีปฏิทิน,MONTH(_xlfn.SINGLE(JunSun1)+21)=6),_xlfn.SINGLE(JunSun1)+21,\"\"),IF(AND(YEAR(_xlfn.SINGLE(JunSun1)+28)=ปีปฏิทิน,MONTH(_xlfn.SINGLE(JunSun1)+28)=6),_xlfn.SINGLE(JunSun1)+28,\"\"))","v":{"$error":"#NAME?"}},null,null,{"$f":"IF(DAY(_xlfn.SINGLE(JulSun1))=1,IF(AND(YEAR(_xlfn.SINGLE(JulSun1)+15)=ปีปฏิทิน,MONTH(_xlfn.SINGLE(JulSun1)+15)=7),_xlfn.SINGLE(JulSun1)+15,\"\"),IF(AND(YEAR(_xlfn.SINGLE(JulSun1)+22)=ปีปฏิทิน,MONTH(_xlfn.SINGLE(JulSun1)+22)=7),_xlfn.SINGLE(JulSun1)+22,\"\"))","v":{"$error":"#NAME?"}},{"$f":"IF(DAY(_xlfn.SINGLE(JulSun1))=1,IF(AND(YEAR(_xlfn.SINGLE(JulSun1)+16)=ปีปฏิทิน,MONTH(_xlfn.SINGLE(JulSun1)+16)=7),_xlfn.SINGLE(JulSun1)+16,\"\"),IF(AND(YEAR(_xlfn.SINGLE(JulSun1)+23)=ปีปฏิทิน,MONTH(_xlfn.SINGLE(JulSun1)+23)=7),_xlfn.SINGLE(JulSun1)+23,\"\"))","v":{"$error":"#NAME?"}},{"$f":"IF(DAY(_xlfn.SINGLE(JulSun1))=1,IF(AND(YEAR(_xlfn.SINGLE(JulSun1)+17)=ปีปฏิทิน,MONTH(_xlfn.SINGLE(JulSun1)+17)=7),_xlfn.SINGLE(JulSun1)+17,\"\"),IF(AND(YEAR(_xlfn.SINGLE(JulSun1)+24)=ปีปฏิทิน,MONTH(_xlfn.SINGLE(JulSun1)+24)=7),_xlfn.SINGLE(JulSun1)+24,\"\"))","v":{"$error":"#NAME?"}},{"$f":"IF(DAY(_xlfn.SINGLE(JulSun1))=1,IF(AND(YEAR(_xlfn.SINGLE(JulSun1)+18)=ปีปฏิทิน,MONTH(_xlfn.SINGLE(JulSun1)+18)=7),_xlfn.SINGLE(JulSun1)+18,\"\"),IF(AND(YEAR(_xlfn.SINGLE(JulSun1)+25)=ปีปฏิทิน,MONTH(_xlfn.SINGLE(JulSun1)+25)=7),_xlfn.SINGLE(JulSun1)+25,\"\"))","v":{"$error":"#NAME?"}},{"$f":"IF(DAY(_xlfn.SINGLE(JulSun1))=1,IF(AND(YEAR(_xlfn.SINGLE(JulSun1)+19)=ปีปฏิทิน,MONTH(_xlfn.SINGLE(JulSun1)+19)=7),_xlfn.SINGLE(JulSun1)+19,\"\"),IF(AND(YEAR(_xlfn.SINGLE(JulSun1)+26)=ปีปฏิทิน,MONTH(_xlfn.SINGLE(JulSun1)+26)=7),_xlfn.SINGLE(JulSun1)+26,\"\"))","v":{"$error":"#NAME?"}},{"$f":"IF(DAY(_xlfn.SINGLE(JulSun1))=1,IF(AND(YEAR(_xlfn.SINGLE(JulSun1)+20)=ปีปฏิทิน,MONTH(_xlfn.SINGLE(JulSun1)+20)=7),_xlfn.SINGLE(JulSun1)+20,\"\"),IF(AND(YEAR(_xlfn.SINGLE(JulSun1)+27)=ปีปฏิทิน,MONTH(_xlfn.SINGLE(JulSun1)+27)=7),_xlfn.SINGLE(JulSun1)+27,\"\"))","v":{"$error":"#NAME?"}},{"$f":"IF(DAY(_xlfn.SINGLE(JulSun1))=1,IF(AND(YEAR(_xlfn.SINGLE(JulSun1)+21)=ปีปฏิทิน,MONTH(_xlfn.SINGLE(JulSun1)+21)=7),_xlfn.SINGLE(JulSun1)+21,\"\"),IF(AND(YEAR(_xlfn.SINGLE(JulSun1)+28)=ปีปฏิทิน,MONTH(_xlfn.SINGLE(JulSun1)+28)=7),_xlfn.SINGLE(JulSun1)+28,\"\"))","v":{"$error":"#NAME?"}},null,null,{"$f":"IF(DAY(_xlfn.SINGLE(ส.ค.อา.1))=1,IF(AND(YEAR(_xlfn.SINGLE(ส.ค.อา.1)+15)=ปีปฏิทิน,MONTH(_xlfn.SINGLE(ส.ค.อา.1)+15)=8),_xlfn.SINGLE(ส.ค.อา.1)+15,\"\"),IF(AND(YEAR(_xlfn.SINGLE(ส.ค.อา.1)+22)=ปีปฏิทิน,MONTH(_xlfn.SINGLE(ส.ค.อา.1)+22)=8),_xlfn.SINGLE(ส.ค.อา.1)+22,\"\"))","v":{"$error":"#NAME?"}},{"$f":"IF(DAY(_xlfn.SINGLE(ส.ค.อา.1))=1,IF(AND(YEAR(_xlfn.SINGLE(ส.ค.อา.1)+16)=ปีปฏิทิน,MONTH(_xlfn.SINGLE(ส.ค.อา.1)+16)=8),_xlfn.SINGLE(ส.ค.อา.1)+16,\"\"),IF(AND(YEAR(_xlfn.SINGLE(ส.ค.อา.1)+23)=ปีปฏิทิน,MONTH(_xlfn.SINGLE(ส.ค.อา.1)+23)=8),_xlfn.SINGLE(ส.ค.อา.1)+23,\"\"))","v":{"$error":"#NAME?"}},{"$f":"IF(DAY(_xlfn.SINGLE(ส.ค.อา.1))=1,IF(AND(YEAR(_xlfn.SINGLE(ส.ค.อา.1)+17)=ปีปฏิทิน,MONTH(_xlfn.SINGLE(ส.ค.อา.1)+17)=8),_xlfn.SINGLE(ส.ค.อา.1)+17,\"\"),IF(AND(YEAR(_xlfn.SINGLE(ส.ค.อา.1)+24)=ปีปฏิทิน,MONTH(_xlfn.SINGLE(ส.ค.อา.1)+24)=8),_xlfn.SINGLE(ส.ค.อา.1)+24,\"\"))","v":{"$error":"#NAME?"}},{"$f":"IF(DAY(_xlfn.SINGLE(ส.ค.อา.1))=1,IF(AND(YEAR(_xlfn.SINGLE(ส.ค.อา.1)+18)=ปีปฏิทิน,MONTH(_xlfn.SINGLE(ส.ค.อา.1)+18)=8),_xlfn.SINGLE(ส.ค.อา.1)+18,\"\"),IF(AND(YEAR(_xlfn.SINGLE(ส.ค.อา.1)+25)=ปีปฏิทิน,MONTH(_xlfn.SINGLE(ส.ค.อา.1)+25)=8),_xlfn.SINGLE(ส.ค.อา.1)+25,\"\"))","v":{"$error":"#NAME?"}},{"$f":"IF(DAY(_xlfn.SINGLE(ส.ค.อา.1))=1,IF(AND(YEAR(_xlfn.SINGLE(ส.ค.อา.1)+19)=ปีปฏิทิน,MONTH(_xlfn.SINGLE(ส.ค.อา.1)+19)=8),_xlfn.SINGLE(ส.ค.อา.1)+19,\"\"),IF(AND(YEAR(_xlfn.SINGLE(ส.ค.อา.1)+26)=ปีปฏิทิน,MONTH(_xlfn.SINGLE(ส.ค.อา.1)+26)=8),_xlfn.SINGLE(ส.ค.อา.1)+26,\"\"))","v":{"$error":"#NAME?"}},{"$f":"IF(DAY(_xlfn.SINGLE(ส.ค.อา.1))=1,IF(AND(YEAR(_xlfn.SINGLE(ส.ค.อา.1)+20)=ปีปฏิทิน,MONTH(_xlfn.SINGLE(ส.ค.อา.1)+20)=8),_xlfn.SINGLE(ส.ค.อา.1)+20,\"\"),IF(AND(YEAR(_xlfn.SINGLE(ส.ค.อา.1)+27)=ปีปฏิทิน,MONTH(_xlfn.SINGLE(ส.ค.อา.1)+27)=8),_xlfn.SINGLE(ส.ค.อา.1)+27,\"\"))","v":{"$error":"#NAME?"}},{"$f":"IF(DAY(_xlfn.SINGLE(ส.ค.อา.1))=1,IF(AND(YEAR(_xlfn.SINGLE(ส.ค.อา.1)+21)=ปีปฏิทิน,MONTH(_xlfn.SINGLE(ส.ค.อา.1)+21)=8),_xlfn.SINGLE(ส.ค.อา.1)+21,\"\"),IF(AND(YEAR(_xlfn.SINGLE(ส.ค.อา.1)+28)=ปีปฏิทิน,MONTH(_xlfn.SINGLE(ส.ค.อา.1)+28)=8),_xlfn.SINGLE(ส.ค.อา.1)+28,\"\"))","v":{"$error":"#NAME?"}}]
[null,null,{"$f":"IF(DAY(_xlfn.SINGLE(MaySun1))=1,IF(AND(YEAR(_xlfn.SINGLE(MaySun1)+22)=ปีปฏิทิน,MONTH(_xlfn.SINGLE(MaySun1)+22)=5),_xlfn.SINGLE(MaySun1)+22,\"\"),IF(AND(YEAR(_xlfn.SINGLE(MaySun1)+29)=ปีปฏิทิน,MONTH(_xlfn.SINGLE(MaySun1)+29)=5),_xlfn.SINGLE(MaySun1)+29,\"\"))","v":{"$error":"#NAME?"}},{"$f":"IF(DAY(_xlfn.SINGLE(MaySun1))=1,IF(AND(YEAR(_xlfn.SINGLE(MaySun1)+23)=ปีปฏิทิน,MONTH(_xlfn.SINGLE(MaySun1)+23)=5),_xlfn.SINGLE(MaySun1)+23,\"\"),IF(AND(YEAR(_xlfn.SINGLE(MaySun1)+30)=ปีปฏิทิน,MONTH(_xlfn.SINGLE(MaySun1)+30)=5),_xlfn.SINGLE(MaySun1)+30,\"\"))","v":{"$error":"#NAME?"}},{"$f":"IF(DAY(_xlfn.SINGLE(MaySun1))=1,IF(AND(YEAR(_xlfn.SINGLE(MaySun1)+24)=ปีปฏิทิน,MONTH(_xlfn.SINGLE(MaySun1)+24)=5),_xlfn.SINGLE(MaySun1)+24,\"\"),IF(AND(YEAR(_xlfn.SINGLE(MaySun1)+31)=ปีปฏิทิน,MONTH(_xlfn.SINGLE(MaySun1)+31)=5),_xlfn.SINGLE(MaySun1)+31,\"\"))","v":{"$error":"#NAME?"}},{"$f":"IF(DAY(_xlfn.SINGLE(MaySun1))=1,IF(AND(YEAR(_xlfn.SINGLE(MaySun1)+25)=ปีปฏิทิน,MONTH(_xlfn.SINGLE(MaySun1)+25)=5),_xlfn.SINGLE(MaySun1)+25,\"\"),IF(AND(YEAR(_xlfn.SINGLE(MaySun1)+32)=ปีปฏิทิน,MONTH(_xlfn.SINGLE(MaySun1)+32)=5),_xlfn.SINGLE(MaySun1)+32,\"\"))","v":{"$error":"#NAME?"}},{"$f":"IF(DAY(_xlfn.SINGLE(MaySun1))=1,IF(AND(YEAR(_xlfn.SINGLE(MaySun1)+26)=ปีปฏิทิน,MONTH(_xlfn.SINGLE(MaySun1)+26)=5),_xlfn.SINGLE(MaySun1)+26,\"\"),IF(AND(YEAR(_xlfn.SINGLE(MaySun1)+33)=ปีปฏิทิน,MONTH(_xlfn.SINGLE(MaySun1)+33)=5),_xlfn.SINGLE(MaySun1)+33,\"\"))","v":{"$error":"#NAME?"}},{"$f":"IF(DAY(_xlfn.SINGLE(MaySun1))=1,IF(AND(YEAR(_xlfn.SINGLE(MaySun1)+27)=ปีปฏิทิน,MONTH(_xlfn.SINGLE(MaySun1)+27)=5),_xlfn.SINGLE(MaySun1)+27,\"\"),IF(AND(YEAR(_xlfn.SINGLE(MaySun1)+34)=ปีปฏิทิน,MONTH(_xlfn.SINGLE(MaySun1)+34)=5),_xlfn.SINGLE(MaySun1)+34,\"\"))","v":{"$error":"#NAME?"}},{"$f":"IF(DAY(_xlfn.SINGLE(MaySun1))=1,IF(AND(YEAR(_xlfn.SINGLE(MaySun1)+28)=ปีปฏิทิน,MONTH(_xlfn.SINGLE(MaySun1)+28)=5),_xlfn.SINGLE(MaySun1)+28,\"\"),IF(AND(YEAR(_xlfn.SINGLE(MaySun1)+35)=ปีปฏิทิน,MONTH(_xlfn.SINGLE(MaySun1)+35)=5),_xlfn.SINGLE(MaySun1)+35,\"\"))","v":{"$error":"#NAME?"}},null,null,{"$f":"IF(DAY(_xlfn.SINGLE(JunSun1))=1,IF(AND(YEAR(_xlfn.SINGLE(JunSun1)+22)=ปีปฏิทิน,MONTH(_xlfn.SINGLE(JunSun1)+22)=6),_xlfn.SINGLE(JunSun1)+22,\"\"),IF(AND(YEAR(_xlfn.SINGLE(JunSun1)+29)=ปีปฏิทิน,MONTH(_xlfn.SINGLE(JunSun1)+29)=6),_xlfn.SINGLE(JunSun1)+29,\"\"))","v":{"$error":"#NAME?"}},{"$f":"IF(DAY(_xlfn.SINGLE(JunSun1))=1,IF(AND(YEAR(_xlfn.SINGLE(JunSun1)+23)=ปีปฏิทิน,MONTH(_xlfn.SINGLE(JunSun1)+23)=6),_xlfn.SINGLE(JunSun1)+23,\"\"),IF(AND(YEAR(_xlfn.SINGLE(JunSun1)+30)=ปีปฏิทิน,MONTH(_xlfn.SINGLE(JunSun1)+30)=6),_xlfn.SINGLE(JunSun1)+30,\"\"))","v":{"$error":"#NAME?"}},{"$f":"IF(DAY(_xlfn.SINGLE(JunSun1))=1,IF(AND(YEAR(_xlfn.SINGLE(JunSun1)+24)=ปีปฏิทิน,MONTH(_xlfn.SINGLE(JunSun1)+24)=6),_xlfn.SINGLE(JunSun1)+24,\"\"),IF(AND(YEAR(_xlfn.SINGLE(JunSun1)+31)=ปีปฏิทิน,MONTH(_xlfn.SINGLE(JunSun1)+31)=6),_xlfn.SINGLE(JunSun1)+31,\"\"))","v":{"$error":"#NAME?"}},{"$f":"IF(DAY(_xlfn.SINGLE(JunSun1))=1,IF(AND(YEAR(_xlfn.SINGLE(JunSun1)+25)=ปีปฏิทิน,MONTH(_xlfn.SINGLE(JunSun1)+25)=6),_xlfn.SINGLE(JunSun1)+25,\"\"),IF(AND(YEAR(_xlfn.SINGLE(JunSun1)+32)=ปีปฏิทิน,MONTH(_xlfn.SINGLE(JunSun1)+32)=6),_xlfn.SINGLE(JunSun1)+32,\"\"))","v":{"$error":"#NAME?"}},{"$f":"IF(DAY(_xlfn.SINGLE(JunSun1))=1,IF(AND(YEAR(_xlfn.SINGLE(JunSun1)+26)=ปีปฏิทิน,MONTH(_xlfn.SINGLE(JunSun1)+26)=6),_xlfn.SINGLE(JunSun1)+26,\"\"),IF(AND(YEAR(_xlfn.SINGLE(JunSun1)+33)=ปีปฏิทิน,MONTH(_xlfn.SINGLE(JunSun1)+33)=6),_xlfn.SINGLE(JunSun1)+33,\"\"))","v":{"$error":"#NAME?"}},{"$f":"IF(DAY(_xlfn.SINGLE(JunSun1))=1,IF(AND(YEAR(_xlfn.SINGLE(JunSun1)+27)=ปีปฏิทิน,MONTH(_xlfn.SINGLE(JunSun1)+27)=6),_xlfn.SINGLE(JunSun1)+27,\"\"),IF(AND(YEAR(_xlfn.SINGLE(JunSun1)+34)=ปีปฏิทิน,MONTH(_xlfn.SINGLE(JunSun1)+34)=6),_xlfn.SINGLE(JunSun1)+34,\"\"))","v":{"$error":"#NAME?"}},{"$f":"IF(DAY(_xlfn.SINGLE(JunSun1))=1,IF(AND(YEAR(_xlfn.SINGLE(JunSun1)+28)=ปีปฏิทิน,MONTH(_xlfn.SINGLE(JunSun1)+28)=6),_xlfn.SINGLE(JunSun1)+28,\"\"),IF(AND(YEAR(_xlfn.SINGLE(JunSun1)+35)=ปีปฏิทิน,MONTH(_xlfn.SINGLE(JunSun1)+35)=6),_xlfn.SINGLE(JunSun1)+35,\"\"))","v":{"$error":"#NAME?"}},null,null,{"$f":"IF(DAY(_xlfn.SINGLE(JulSun1))=1,IF(AND(YEAR(_xlfn.SINGLE(JulSun1)+22)=ปีปฏิทิน,MONTH(_xlfn.SINGLE(JulSun1)+22)=7),_xlfn.SINGLE(JulSun1)+22,\"\"),IF(AND(YEAR(_xlfn.SINGLE(JulSun1)+29)=ปีปฏิทิน,MONTH(_xlfn.SINGLE(JulSun1)+29)=7),_xlfn.SINGLE(JulSun1)+29,\"\"))","v":{"$error":"#NAME?"}},{"$f":"IF(DAY(_xlfn.SINGLE(JulSun1))=1,IF(AND(YEAR(_xlfn.SINGLE(JulSun1)+23)=ปีปฏิทิน,MONTH(_xlfn.SINGLE(JulSun1)+23)=7),_xlfn.SINGLE(JulSun1)+23,\"\"),IF(AND(YEAR(_xlfn.SINGLE(JulSun1)+30)=ปีปฏิทิน,MONTH(_xlfn.SINGLE(JulSun1)+30)=7),_xlfn.SINGLE(JulSun1)+30,\"\"))","v":{"$error":"#NAME?"}},{"$f":"IF(DAY(_xlfn.SINGLE(JulSun1))=1,IF(AND(YEAR(_xlfn.SINGLE(JulSun1)+24)=ปีปฏิทิน,MONTH(_xlfn.SINGLE(JulSun1)+24)=7),_xlfn.SINGLE(JulSun1)+24,\"\"),IF(AND(YEAR(_xlfn.SINGLE(JulSun1)+31)=ปีปฏิทิน,MONTH(_xlfn.SINGLE(JulSun1)+31)=7),_xlfn.SINGLE(JulSun1)+31,\"\"))","v":{"$error":"#NAME?"}},{"$f":"IF(DAY(_xlfn.SINGLE(JulSun1))=1,IF(AND(YEAR(_xlfn.SINGLE(JulSun1)+25)=ปีปฏิทิน,MONTH(_xlfn.SINGLE(JulSun1)+25)=7),_xlfn.SINGLE(JulSun1)+25,\"\"),IF(AND(YEAR(_xlfn.SINGLE(JulSun1)+32)=ปีปฏิทิน,MONTH(_xlfn.SINGLE(JulSun1)+32)=7),_xlfn.SINGLE(JulSun1)+32,\"\"))","v":{"$error":"#NAME?"}},{"$f":"IF(DAY(_xlfn.SINGLE(JulSun1))=1,IF(AND(YEAR(_xlfn.SINGLE(JulSun1)+26)=ปีปฏิทิน,MONTH(_xlfn.SINGLE(JulSun1)+26)=7),_xlfn.SINGLE(JulSun1)+26,\"\"),IF(AND(YEAR(_xlfn.SINGLE(JulSun1)+33)=ปีปฏิทิน,MONTH(_xlfn.SINGLE(JulSun1)+33)=7),_xlfn.SINGLE(JulSun1)+33,\"\"))","v":{"$error":"#NAME?"}},{"$f":"IF(DAY(_xlfn.SINGLE(JulSun1))=1,IF(AND(YEAR(_xlfn.SINGLE(JulSun1)+27)=ปีปฏิทิน,MONTH(_xlfn.SINGLE(JulSun1)+27)=7),_xlfn.SINGLE(JulSun1)+27,\"\"),IF(AND(YEAR(_xlfn.SINGLE(JulSun1)+34)=ปีปฏิทิน,MONTH(_xlfn.SINGLE(JulSun1)+34)=7),_xlfn.SINGLE(JulSun1)+34,\"\"))","v":{"$error":"#NAME?"}},{"$f":"IF(DAY(_xlfn.SINGLE(JulSun1))=1,IF(AND(YEAR(_xlfn.SINGLE(JulSun1)+28)=ปีปฏิทิน,MONTH(_xlfn.SINGLE(JulSun1)+28)=7),_xlfn.SINGLE(JulSun1)+28,\"\"),IF(AND(YEAR(_xlfn.SINGLE(JulSun1)+35)=ปีปฏิทิน,MONTH(_xlfn.SINGLE(JulSun1)+35)=7),_xlfn.SINGLE(JulSun1)+35,\"\"))","v":{"$error":"#NAME?"}},null,null,{"$f":"IF(DAY(_xlfn.SINGLE(ส.ค.อา.1))=1,IF(AND(YEAR(_xlfn.SINGLE(ส.ค.อา.1)+22)=ปีปฏิทิน,MONTH(_xlfn.SINGLE(ส.ค.อา.1)+22)=8),_xlfn.SINGLE(ส.ค.อา.1)+22,\"\"),IF(AND(YEAR(_xlfn.SINGLE(ส.ค.อา.1)+29)=ปีปฏิทิน,MONTH(_xlfn.SINGLE(ส.ค.อา.1)+29)=8),_xlfn.SINGLE(ส.ค.อา.1)+29,\"\"))","v":{"$error":"#NAME?"}},{"$f":"IF(DAY(_xlfn.SINGLE(ส.ค.อา.1))=1,IF(AND(YEAR(_xlfn.SINGLE(ส.ค.อา.1)+23)=ปีปฏิทิน,MONTH(_xlfn.SINGLE(ส.ค.อา.1)+23)=8),_xlfn.SINGLE(ส.ค.อา.1)+23,\"\"),IF(AND(YEAR(_xlfn.SINGLE(ส.ค.อา.1)+30)=ปีปฏิทิน,MONTH(_xlfn.SINGLE(ส.ค.อา.1)+30)=8),_xlfn.SINGLE(ส.ค.อา.1)+30,\"\"))","v":{"$error":"#NAME?"}},{"$f":"IF(DAY(_xlfn.SINGLE(ส.ค.อา.1))=1,IF(AND(YEAR(_xlfn.SINGLE(ส.ค.อา.1)+24)=ปีปฏิทิน,MONTH(_xlfn.SINGLE(ส.ค.อา.1)+24)=8),_xlfn.SINGLE(ส.ค.อา.1)+24,\"\"),IF(AND(YEAR(_xlfn.SINGLE(ส.ค.อา.1)+31)=ปีปฏิทิน,MONTH(_xlfn.SINGLE(ส.ค.อา.1)+31)=8),_xlfn.SINGLE(ส.ค.อา.1)+31,\"\"))","v":{"$error":"#NAME?"}},{"$f":"IF(DAY(_xlfn.SINGLE(ส.ค.อา.1))=1,IF(AND(YEAR(_xlfn.SINGLE(ส.ค.อา.1)+25)=ปีปฏิทิน,MONTH(_xlfn.SINGLE(ส.ค.อา.1)+25)=8),_xlfn.SINGLE(ส.ค.อา.1)+25,\"\"),IF(AND(YEAR(_xlfn.SINGLE(ส.ค.อา.1)+32)=ปีปฏิทิน,MONTH(_xlfn.SINGLE(ส.ค.อา.1)+32)=8),_xlfn.SINGLE(ส.ค.อา.1)+32,\"\"))","v":{"$error":"#NAME?"}},{"$f":"IF(DAY(_xlfn.SINGLE(ส.ค.อา.1))=1,IF(AND(YEAR(_xlfn.SINGLE(ส.ค.อา.1)+26)=ปีปฏิทิน,MONTH(_xlfn.SINGLE(ส.ค.อา.1)+26)=8),_xlfn.SINGLE(ส.ค.อา.1)+26,\"\"),IF(AND(YEAR(_xlfn.SINGLE(ส.ค.อา.1)+33)=ปีปฏิทิน,MONTH(_xlfn.SINGLE(ส.ค.อา.1)+33)=8),_xlfn.SINGLE(ส.ค.อา.1)+33,\"\"))","v":{"$error":"#NAME?"}},{"$f":"IF(DAY(_xlfn.SINGLE(ส.ค.อา.1))=1,IF(AND(YEAR(_xlfn.SINGLE(ส.ค.อา.1)+27)=ปีปฏิทิน,MONTH(_xlfn.SINGLE(ส.ค.อา.1)+27)=8),_xlfn.SINGLE(ส.ค.อา.1)+27,\"\"),IF(AND(YEAR(_xlfn.SINGLE(ส.ค.อา.1)+34)=ปีปฏิทิน,MONTH(_xlfn.SINGLE(ส.ค.อา.1)+34)=8),_xlfn.SINGLE(ส.ค.อา.1)+34,\"\"))","v":{"$error":"#NAME?"}},{"$f":"IF(DAY(_xlfn.SINGLE(ส.ค.อา.1))=1,IF(AND(YEAR(_xlfn.SINGLE(ส.ค.อา.1)+28)=ปีปฏิทิน,MONTH(_xlfn.SINGLE(ส.ค.อา.1)+28)=8),_xlfn.SINGLE(ส.ค.อา.1)+28,\"\"),IF(AND(YEAR(_xlfn.SINGLE(ส.ค.อา.1)+35)=ปีปฏิทิน,MONTH(_xlfn.SINGLE(ส.ค.อา.1)+35)=8),_xlfn.SINGLE(ส.ค.อา.1)+35,\"\"))","v":{"$error":"#NAME?"}}]
[null,null,{"$f":"IF(DAY(_xlfn.SINGLE(MaySun1))=1,IF(AND(YEAR(_xlfn.SINGLE(MaySun1)+29)=ปีปฏิทิน,MONTH(_xlfn.SINGLE(MaySun1)+29)=5),_xlfn.SINGLE(MaySun1)+29,\"\"),IF(AND(YEAR(_xlfn.SINGLE(MaySun1)+36)=ปีปฏิทิน,MONTH(_xlfn.SINGLE(MaySun1)+36)=5),_xlfn.SINGLE(MaySun1)+36,\"\"))","v":{"$error":"#NAME?"}},{"$f":"IF(DAY(_xlfn.SINGLE(MaySun1))=1,IF(AND(YEAR(_xlfn.SINGLE(MaySun1)+30)=ปีปฏิทิน,MONTH(_xlfn.SINGLE(MaySun1)+30)=5),_xlfn.SINGLE(MaySun1)+30,\"\"),IF(AND(YEAR(_xlfn.SINGLE(MaySun1)+37)=ปีปฏิทิน,MONTH(_xlfn.SINGLE(MaySun1)+37)=5),_xlfn.SINGLE(MaySun1)+37,\"\"))","v":{"$error":"#NAME?"}},{"$f":"IF(DAY(_xlfn.SINGLE(MaySun1))=1,IF(AND(YEAR(_xlfn.SINGLE(MaySun1)+31)=ปีปฏิทิน,MONTH(_xlfn.SINGLE(MaySun1)+31)=5),_xlfn.SINGLE(MaySun1)+31,\"\"),IF(AND(YEAR(_xlfn.SINGLE(MaySun1)+38)=ปีปฏิทิน,MONTH(_xlfn.SINGLE(MaySun1)+38)=5),_xlfn.SINGLE(MaySun1)+38,\"\"))","v":{"$error":"#NAME?"}},{"$f":"IF(DAY(_xlfn.SINGLE(MaySun1))=1,IF(AND(YEAR(_xlfn.SINGLE(MaySun1)+32)=ปีปฏิทิน,MONTH(_xlfn.SINGLE(MaySun1)+32)=5),_xlfn.SINGLE(MaySun1)+32,\"\"),IF(AND(YEAR(_xlfn.SINGLE(MaySun1)+39)=ปีปฏิทิน,MONTH(_xlfn.SINGLE(MaySun1)+39)=5),_xlfn.SINGLE(MaySun1)+39,\"\"))","v":{"$error":"#NAME?"}},{"$f":"IF(DAY(_xlfn.SINGLE(MaySun1))=1,IF(AND(YEAR(_xlfn.SINGLE(MaySun1)+33)=ปีปฏิทิน,MONTH(_xlfn.SINGLE(MaySun1)+33)=5),_xlfn.SINGLE(MaySun1)+33,\"\"),IF(AND(YEAR(_xlfn.SINGLE(MaySun1)+40)=ปีปฏิทิน,MONTH(_xlfn.SINGLE(MaySun1)+40)=5),_xlfn.SINGLE(MaySun1)+40,\"\"))","v":{"$error":"#NAME?"}},{"$f":"IF(DAY(_xlfn.SINGLE(MaySun1))=1,IF(AND(YEAR(_xlfn.SINGLE(MaySun1)+34)=ปีปฏิทิน,MONTH(_xlfn.SINGLE(MaySun1)+34)=5),_xlfn.SINGLE(MaySun1)+34,\"\"),IF(AND(YEAR(_xlfn.SINGLE(MaySun1)+41)=ปีปฏิทิน,MONTH(_xlfn.SINGLE(MaySun1)+41)=5),_xlfn.SINGLE(MaySun1)+41,\"\"))","v":{"$error":"#NAME?"}},{"$f":"IF(DAY(_xlfn.SINGLE(MaySun1))=1,IF(AND(YEAR(_xlfn.SINGLE(MaySun1)+35)=ปีปฏิทิน,MONTH(_xlfn.SINGLE(MaySun1)+35)=5),_xlfn.SINGLE(MaySun1)+35,\"\"),IF(AND(YEAR(_xlfn.SINGLE(MaySun1)+42)=ปีปฏิทิน,MONTH(_xlfn.SINGLE(MaySun1)+42)=5),_xlfn.SINGLE(MaySun1)+42,\"\"))","v":{"$error":"#NAME?"}},null,null,{"$f":"IF(DAY(_xlfn.SINGLE(JunSun1))=1,IF(AND(YEAR(_xlfn.SINGLE(JunSun1)+29)=ปีปฏิทิน,MONTH(_xlfn.SINGLE(JunSun1)+29)=6),_xlfn.SINGLE(JunSun1)+29,\"\"),IF(AND(YEAR(_xlfn.SINGLE(JunSun1)+36)=ปีปฏิทิน,MONTH(_xlfn.SINGLE(JunSun1)+36)=6),_xlfn.SINGLE(JunSun1)+36,\"\"))","v":{"$error":"#NAME?"}},{"$f":"IF(DAY(_xlfn.SINGLE(JunSun1))=1,IF(AND(YEAR(_xlfn.SINGLE(JunSun1)+30)=ปีปฏิทิน,MONTH(_xlfn.SINGLE(JunSun1)+30)=6),_xlfn.SINGLE(JunSun1)+30,\"\"),IF(AND(YEAR(_xlfn.SINGLE(JunSun1)+37)=ปีปฏิทิน,MONTH(_xlfn.SINGLE(JunSun1)+37)=6),_xlfn.SINGLE(JunSun1)+37,\"\"))","v":{"$error":"#NAME?"}},{"$f":"IF(DAY(_xlfn.SINGLE(JunSun1))=1,IF(AND(YEAR(_xlfn.SINGLE(JunSun1)+31)=ปีปฏิทิน,MONTH(_xlfn.SINGLE(JunSun1)+31)=6),_xlfn.SINGLE(JunSun1)+31,\"\"),IF(AND(YEAR(_xlfn.SINGLE(JunSun1)+38)=ปีปฏิทิน,MONTH(_xlfn.SINGLE(JunSun1)+38)=6),_xlfn.SINGLE(JunSun1)+38,\"\"))","v":{"$error":"#NAME?"}},{"$f":"IF(DAY(_xlfn.SINGLE(JunSun1))=1,IF(AND(YEAR(_xlfn.SINGLE(JunSun1)+32)=ปีปฏิทิน,MONTH(_xlfn.SINGLE(JunSun1)+32)=6),_xlfn.SINGLE(JunSun1)+32,\"\"),IF(AND(YEAR(_xlfn.SINGLE(JunSun1)+39)=ปีปฏิทิน,MONTH(_xlfn.SINGLE(JunSun1)+39)=6),_xlfn.SINGLE(JunSun1)+39,\"\"))","v":{"$error":"#NAME?"}},{"$f":"IF(DAY(_xlfn.SINGLE(JunSun1))=1,IF(AND(YEAR(_xlfn.SINGLE(JunSun1)+33)=ปีปฏิทิน,MONTH(_xlfn.SINGLE(JunSun1)+33)=6),_xlfn.SINGLE(JunSun1)+33,\"\"),IF(AND(YEAR(_xlfn.SINGLE(JunSun1)+40)=ปีปฏิทิน,MONTH(_xlfn.SINGLE(JunSun1)+40)=6),_xlfn.SINGLE(JunSun1)+40,\"\"))","v":{"$error":"#NAME?"}},{"$f":"IF(DAY(_xlfn.SINGLE(JunSun1))=1,IF(AND(YEAR(_xlfn.SINGLE(JunSun1)+34)=ปีปฏิทิน,MONTH(_xlfn.SINGLE(JunSun1)+34)=6),_xlfn.SINGLE(JunSun1)+34,\"\"),IF(AND(YEAR(_xlfn.SINGLE(JunSun1)+41)=ปีปฏิทิน,MONTH(_xlfn.SINGLE(JunSun1)+41)=6),_xlfn.SINGLE(JunSun1)+41,\"\"))","v":{"$error":"#NAME?"}},{"$f":"IF(DAY(_xlfn.SINGLE(JunSun1))=1,IF(AND(YEAR(_xlfn.SINGLE(JunSun1)+35)=ปีปฏิทิน,MONTH(_xlfn.SINGLE(JunSun1)+35)=6),_xlfn.SINGLE(JunSun1)+35,\"\"),IF(AND(YEAR(_xlfn.SINGLE(JunSun1)+42)=ปีปฏิทิน,MONTH(_xlfn.SINGLE(JunSun1)+42)=6),_xlfn.SINGLE(JunSun1)+42,\"\"))","v":{"$error":"#NAME?"}},null,null,{"$f":"IF(DAY(_xlfn.SINGLE(JulSun1))=1,IF(AND(YEAR(_xlfn.SINGLE(JulSun1)+29)=ปีปฏิทิน,MONTH(_xlfn.SINGLE(JulSun1)+29)=7),_xlfn.SINGLE(JulSun1)+29,\"\"),IF(AND(YEAR(_xlfn.SINGLE(JulSun1)+36)=ปีปฏิทิน,MONTH(_xlfn.SINGLE(JulSun1)+36)=7),_xlfn.SINGLE(JulSun1)+36,\"\"))","v":{"$error":"#NAME?"}},{"$f":"IF(DAY(_xlfn.SINGLE(JulSun1))=1,IF(AND(YEAR(_xlfn.SINGLE(JulSun1)+30)=ปีปฏิทิน,MONTH(_xlfn.SINGLE(JulSun1)+30)=7),_xlfn.SINGLE(JulSun1)+30,\"\"),IF(AND(YEAR(_xlfn.SINGLE(JulSun1)+37)=ปีปฏิทิน,MONTH(_xlfn.SINGLE(JulSun1)+37)=7),_xlfn.SINGLE(JulSun1)+37,\"\"))","v":{"$error":"#NAME?"}},{"$f":"IF(DAY(_xlfn.SINGLE(JulSun1))=1,IF(AND(YEAR(_xlfn.SINGLE(JulSun1)+31)=ปีปฏิทิน,MONTH(_xlfn.SINGLE(JulSun1)+31)=7),_xlfn.SINGLE(JulSun1)+31,\"\"),IF(AND(YEAR(_xlfn.SINGLE(JulSun1)+38)=ปีปฏิทิน,MONTH(_xlfn.SINGLE(JulSun1)+38)=7),_xlfn.SINGLE(JulSun1)+38,\"\"))","v":{"$error":"#NAME?"}},{"$f":"IF(DAY(_xlfn.SINGLE(JulSun1))=1,IF(AND(YEAR(_xlfn.SINGLE(JulSun1)+32)=ปีปฏิทิน,MONTH(_xlfn.SINGLE(JulSun1)+32)=7),_xlfn.SINGLE(JulSun1)+32,\"\"),IF(AND(YEAR(_xlfn.SINGLE(JulSun1)+39)=ปีปฏิทิน,MONTH(_xlfn.SINGLE(JulSun1)+39)=7),_xlfn.SINGLE(JulSun1)+39,\"\"))","v":{"$error":"#NAME?"}},{"$f":"IF(DAY(_xlfn.SINGLE(JulSun1))=1,IF(AND(YEAR(_xlfn.SINGLE(JulSun1)+33)=ปีปฏิทิน,MONTH(_xlfn.SINGLE(JulSun1)+33)=7),_xlfn.SINGLE(JulSun1)+33,\"\"),IF(AND(YEAR(_xlfn.SINGLE(JulSun1)+40)=ปีปฏิทิน,MONTH(_xlfn.SINGLE(JulSun1)+40)=7),_xlfn.SINGLE(JulSun1)+40,\"\"))","v":{"$error":"#NAME?"}},{"$f":"IF(DAY(_xlfn.SINGLE(JulSun1))=1,IF(AND(YEAR(_xlfn.SINGLE(JulSun1)+34)=ปีปฏิทิน,MONTH(_xlfn.SINGLE(JulSun1)+34)=7),_xlfn.SINGLE(JulSun1)+34,\"\"),IF(AND(YEAR(_xlfn.SINGLE(JulSun1)+41)=ปีปฏิทิน,MONTH(_xlfn.SINGLE(JulSun1)+41)=7),_xlfn.SINGLE(JulSun1)+41,\"\"))","v":{"$error":"#NAME?"}},{"$f":"IF(DAY(_xlfn.SINGLE(JulSun1))=1,IF(AND(YEAR(_xlfn.SINGLE(JulSun1)+35)=ปีปฏิทิน,MONTH(_xlfn.SINGLE(JulSun1)+35)=7),_xlfn.SINGLE(JulSun1)+35,\"\"),IF(AND(YEAR(_xlfn.SINGLE(JulSun1)+42)=ปีปฏิทิน,MONTH(_xlfn.SINGLE(JulSun1)+42)=7),_xlfn.SINGLE(JulSun1)+42,\"\"))","v":{"$error":"#NAME?"}},null,null,{"$f":"IF(DAY(_xlfn.SINGLE(ส.ค.อา.1))=1,IF(AND(YEAR(_xlfn.SINGLE(ส.ค.อา.1)+29)=ปีปฏิทิน,MONTH(_xlfn.SINGLE(ส.ค.อา.1)+29)=8),_xlfn.SINGLE(ส.ค.อา.1)+29,\"\"),IF(AND(YEAR(_xlfn.SINGLE(ส.ค.อา.1)+36)=ปีปฏิทิน,MONTH(_xlfn.SINGLE(ส.ค.อา.1)+36)=8),_xlfn.SINGLE(ส.ค.อา.1)+36,\"\"))","v":{"$error":"#NAME?"}},{"$f":"IF(DAY(_xlfn.SINGLE(ส.ค.อา.1))=1,IF(AND(YEAR(_xlfn.SINGLE(ส.ค.อา.1)+30)=ปีปฏิทิน,MONTH(_xlfn.SINGLE(ส.ค.อา.1)+30)=8),_xlfn.SINGLE(ส.ค.อา.1)+30,\"\"),IF(AND(YEAR(_xlfn.SINGLE(ส.ค.อา.1)+37)=ปีปฏิทิน,MONTH(_xlfn.SINGLE(ส.ค.อา.1)+37)=8),_xlfn.SINGLE(ส.ค.อา.1)+37,\"\"))","v":{"$error":"#NAME?"}},{"$f":"IF(DAY(_xlfn.SINGLE(ส.ค.อา.1))=1,IF(AND(YEAR(_xlfn.SINGLE(ส.ค.อา.1)+31)=ปีปฏิทิน,MONTH(_xlfn.SINGLE(ส.ค.อา.1)+31)=8),_xlfn.SINGLE(ส.ค.อา.1)+31,\"\"),IF(AND(YEAR(_xlfn.SINGLE(ส.ค.อา.1)+38)=ปีปฏิทิน,MONTH(_xlfn.SINGLE(ส.ค.อา.1)+38)=8),_xlfn.SINGLE(ส.ค.อา.1)+38,\"\"))","v":{"$error":"#NAME?"}},{"$f":"IF(DAY(_xlfn.SINGLE(ส.ค.อา.1))=1,IF(AND(YEAR(_xlfn.SINGLE(ส.ค.อา.1)+32)=ปีปฏิทิน,MONTH(_xlfn.SINGLE(ส.ค.อา.1)+32)=8),_xlfn.SINGLE(ส.ค.อา.1)+32,\"\"),IF(AND(YEAR(_xlfn.SINGLE(ส.ค.อา.1)+39)=ปีปฏิทิน,MONTH(_xlfn.SINGLE(ส.ค.อา.1)+39)=8),_xlfn.SINGLE(ส.ค.อา.1)+39,\"\"))","v":{"$error":"#NAME?"}},{"$f":"IF(DAY(_xlfn.SINGLE(ส.ค.อา.1))=1,IF(AND(YEAR(_xlfn.SINGLE(ส.ค.อา.1)+33)=ปีปฏิทิน,MONTH(_xlfn.SINGLE(ส.ค.อา.1)+33)=8),_xlfn.SINGLE(ส.ค.อา.1)+33,\"\"),IF(AND(YEAR(_xlfn.SINGLE(ส.ค.อา.1)+40)=ปีปฏิทิน,MONTH(_xlfn.SINGLE(ส.ค.อา.1)+40)=8),_xlfn.SINGLE(ส.ค.อา.1)+40,\"\"))","v":{"$error":"#NAME?"}},{"$f":"IF(DAY(_xlfn.SINGLE(ส.ค.อา.1))=1,IF(AND(YEAR(_xlfn.SINGLE(ส.ค.อา.1)+34)=ปีปฏิทิน,MONTH(_xlfn.SINGLE(ส.ค.อา.1)+34)=8),_xlfn.SINGLE(ส.ค.อา.1)+34,\"\"),IF(AND(YEAR(_xlfn.SINGLE(ส.ค.อา.1)+41)=ปีปฏิทิน,MONTH(_xlfn.SINGLE(ส.ค.อา.1)+41)=8),_xlfn.SINGLE(ส.ค.อา.1)+41,\"\"))","v":{"$error":"#NAME?"}},{"$f":"IF(DAY(_xlfn.SINGLE(ส.ค.อา.1))=1,IF(AND(YEAR(_xlfn.SINGLE(ส.ค.อา.1)+35)=ปีปฏิทิน,MONTH(_xlfn.SINGLE(ส.ค.อา.1)+35)=8),_xlfn.SINGLE(ส.ค.อา.1)+35,\"\"),IF(AND(YEAR(_xlfn.SINGLE(ส.ค.อา.1)+42)=ปีปฏิทิน,MONTH(_xlfn.SINGLE(ส.ค.อา.1)+42)=8),_xlfn.SINGLE(ส.ค.อา.1)+42,\"\"))","v":{"$error":"#NAME?"}}]
["ปฏิทินเดือนกันยายนอยู่ในเซลล์ C43 ถึง I49 ปฏิทินเดือนตุลาคมอยู่ในเซลล์ L43 ถึง R49 ปฏิทินเดือนพฤศจิกายนอยู่ในเซลล์ U43 ถึง AA49 และปฏิทินเดือนธันวาคมอยู่ในเซลล์ AD43 ถึง AJ49"]
["ชื่อเดือนอยู่ในแถวนี้ ป้ายกำกับเดือนกันยายนอยู่ในเซลล์ C42 ป้ายกำกับเดือนตุลาคมอยู่ในเซลล์ L42 พฤศจิกายนอยู่ใน U42 และธันวาคมอยู่ใน AD42",null,{"$f":"DATE(ปีปฏิทิน,9,1)","v":"2019-09-01"},{"$nulls":8},{"$f":"DATE(ปีปฏิทิน,10,1)","v":"2019-10-01"},{"$nulls":8},{"$f":"DATE(ปีปฏิทิน,11,1)","v":"2019-11-01"},{"$nulls":8},{"$f":"DATE(ปีปฏิทิน,12,1)","v":"2019-12-01"}]
["ชื่อวันทำงานอยู่ในแถวนี้ ชื่อวันทำงานของเดือนกันยายนอยู่ในเซลล์ C43 ถึง I43 วันทำงานของเดือนตุลาคมอยู่ในเซลล์ L43 ถึง R43 วันทำงานของเดือนพฤศจิกายนอยู่ในเซลล์ U43 ถึง AA43 และวันทำงานของเดือนธันวาคมอยู่ในเซลล์ AD43 ถึง AJ43",null,"จ","อ","พ","พฤ","ศ","ส","อา",null,null,"จ","อ","พ","พฤ","ศ","ส","อา",null,null,"จ","อ","พ","พฤ","ศ","ส","อา",null,null,"จ","อ","พ","พฤ","ศ","ส","อา"]
["วันที่จะถูกอัปเดตโดยอัตโนมัติในแถวนี้ วันที่ของเดือนกันยายนอยู่ในเซลล์ด้านขวา เซลล์ C44 ถึง I49 วันที่ของเดือนตุลาคมอยู่ในเซลล์ L44 ถึง R49 วันที่ของเดือนพฤศจิกายนอยู่ในเซลล์ U44 ถึง AA49 และธันวาคมอยู่ในเซลล์ AD44 ถึง AJ49",null,{"$f":"IF(DAY(_xlfn.SINGLE(SepSun1))=1,\"\",IF(AND(YEAR(_xlfn.SINGLE(SepSun1)+1)=ปีปฏิทิน,MONTH(_xlfn.SINGLE(SepSun1)+1)=9),_xlfn.SINGLE(SepSun1)+1,\"\"))","v":{"$error":"#NAME?"}},{"$f":"IF(DAY(_xlfn.SINGLE(SepSun1))=1,\"\",IF(AND(YEAR(_xlfn.SINGLE(SepSun1)+2)=ปีปฏิทิน,MONTH(_xlfn.SINGLE(SepSun1)+2)=9),_xlfn.SINGLE(SepSun1)+2,\"\"))","v":{"$error":"#NAME?"}},{"$f":"IF(DAY(_xlfn.SINGLE(SepSun1))=1,\"\",IF(AND(YEAR(_xlfn.SINGLE(SepSun1)+3)=ปีปฏิทิน,MONTH(_xlfn.SINGLE(SepSun1)+3)=9),_xlfn.SINGLE(SepSun1)+3,\"\"))","v":{"$error":"#NAME?"}},{"$f":"IF(DAY(_xlfn.SINGLE(SepSun1))=1,\"\",IF(AND(YEAR(_xlfn.SINGLE(SepSun1)+4)=ปีปฏิทิน,MONTH(_xlfn.SINGLE(SepSun1)+4)=9),_xlfn.SINGLE(SepSun1)+4,\"\"))","v":{"$error":"#NAME?"}},{"$f":"IF(DAY(_xlfn.SINGLE(SepSun1))=1,\"\",IF(AND(YEAR(_xlfn.SINGLE(SepSun1)+5)=ปีปฏิทิน,MONTH(_xlfn.SINGLE(SepSun1)+5)=9),_xlfn.SINGLE(SepSun1)+5,\"\"))","v":{"$error":"#NAME?"}},{"$f":"IF(DAY(_xlfn.SINGLE(SepSun1))=1,\"\",IF(AND(YEAR(_xlfn.SINGLE(SepSun1)+6)=ปีปฏิทิน,MONTH(_xlfn.SINGLE(SepSun1)+6)=9),_xlfn.SINGLE(SepSun1)+6,\"\"))","v":{"$error":"#NAME?"}},{"$f":"_xlfn.SINGLE(IF(DAY(_xlfn.SINGLE(SepSun1))=1,IF(AND(YEAR(_xlfn.SINGLE(SepSun1))=ปีปฏิทิน,MONTH(_xlfn.SINGLE(SepSun1))=9),SepSun1,\"\"),IF(AND(YEAR(_xlfn.SINGLE(SepSun1)+7)=ปีปฏิทิน,MONTH(_xlfn.SINGLE(SepSun1)+7)=9),_xlfn.SINGLE(SepSun1)+7,\"\")))","v":{"$error":"#NAME?"}},null,null,{"$f":"IF(DAY(_xlfn.SINGLE(OctSun1))=1,\"\",IF(AND(YEAR(_xlfn.SINGLE(OctSun1)+1)=ปีปฏิทิน,MONTH(_xlfn.SINGLE(OctSun1)+1)=10),_xlfn.SINGLE(OctSun1)+1,\"\"))","v":{"$error":"#NAME?"}},{"$f":"IF(DAY(_xlfn.SINGLE(OctSun1))=1,\"\",IF(AND(YEAR(_xlfn.SINGLE(OctSun1)+2)=ปีปฏิทิน,MONTH(_xlfn.SINGLE(OctSun1)+2)=10),_xlfn.SINGLE(OctSun1)+2,\"\"))","v":{"$error":"#NAME?"}},{"$f":"IF(DAY(_xlfn.SINGLE(OctSun1))=1,\"\",IF(AND(YEAR(_xlfn.SINGLE(OctSun1)+3)=ปีปฏิทิน,MONTH(_xlfn.SINGLE(OctSun1)+3)=10),_xlfn.SINGLE(OctSun1)+3,\"\"))","v":{"$error":"#NAME?"}},{"$f":"IF(DAY(_xlfn.SINGLE(OctSun1))=1,\"\",IF(AND(YEAR(_xlfn.SINGLE(OctSun1)+4)=ปีปฏิทิน,MONTH(_xlfn.SINGLE(OctSun1)+4)=10),_xlfn.SINGLE(OctSun1)+4,\"\"))","v":{"$error":"#NAME?"}},{"$f":"IF(DAY(_xlfn.SINGLE(OctSun1))=1,\"\",IF(AND(YEAR(_xlfn.SINGLE(OctSun1)+5)=ปีปฏิทิน,MONTH(_xlfn.SINGLE(OctSun1)+5)=10),_xlfn.SINGLE(OctSun1)+5,\"\"))","v":{"$error":"#NAME?"}},{"$f":"IF(DAY(_xlfn.SINGLE(OctSun1))=1,\"\",IF(AND(YEAR(_xlfn.SINGLE(OctSun1)+6)=ปีปฏิทิน,MONTH(_xlfn.SINGLE(OctSun1)+6)=10),_xlfn.SINGLE(OctSun1)+6,\"\"))","v":{"$error":"#NAME?"}},{"$f":"_xlfn.SINGLE(IF(DAY(_xlfn.SINGLE(OctSun1))=1,IF(AND(YEAR(_xlfn.SINGLE(OctSun1))=ปีปฏิทิน,MONTH(_xlfn.SINGLE(OctSun1))=10),OctSun1,\"\"),IF(AND(YEAR(_xlfn.SINGLE(OctSun1)+7)=ปีปฏิทิน,MONTH(_xlfn.SINGLE(OctSun1)+7)=10),_xlfn.SINGLE(OctSun1)+7,\"\")))","v":{"$error":"#NAME?"}},null,null,{"$f":"IF(DAY(_xlfn.SINGLE(NovSun1))=1,\"\",IF(AND(YEAR(_xlfn.SINGLE(NovSun1)+1)=ปีปฏิทิน,MONTH(_xlfn.SINGLE(NovSun1)+1)=11),_xlfn.SINGLE(NovSun1)+1,\"\"))","v":{"$error":"#NAME?"}},{"$f":"IF(DAY(_xlfn.SINGLE(NovSun1))=1,\"\",IF(AND(YEAR(_xlfn.SINGLE(NovSun1)+2)=ปีปฏิทิน,MONTH(_xlfn.SINGLE(NovSun1)+2)=11),_xlfn.SINGLE(NovSun1)+2,\"\"))","v":{"$error":"#NAME?"}},{"$f":"IF(DAY(_xlfn.SINGLE(NovSun1))=1,\"\",IF(AND(YEAR(_xlfn.SINGLE(NovSun1)+3)=ปีปฏิทิน,MONTH(_xlfn.SINGLE(NovSun1)+3)=11),_xlfn.SINGLE(NovSun1)+3,\"\"))","v":{"$error":"#NAME?"}},{"$f":"IF(DAY(_xlfn.SINGLE(NovSun1))=1,\"\",IF(AND(YEAR(_xlfn.SINGLE(NovSun1)+4)=ปีปฏิทิน,MONTH(_xlfn.SINGLE(NovSun1)+4)=11),_xlfn.SINGLE(NovSun1)+4,\"\"))","v":{"$error":"#NAME?"}},{"$f":"IF(DAY(_xlfn.SINGLE(NovSun1))=1,\"\",IF(AND(YEAR(_xlfn.SINGLE(NovSun1)+5)=ปีปฏิทิน,MONTH(_xlfn.SINGLE(NovSun1)+5)=11),_xlfn.SINGLE(NovSun1)+5,\"\"))","v":{"$error":"#NAME?"}},{"$f":"IF(DAY(_xlfn.SINGLE(NovSun1))=1,\"\",IF(AND(YEAR(_xlfn.SINGLE(NovSun1)+6)=ปีปฏิทิน,MONTH(_xlfn.SINGLE(NovSun1)+6)=11),_xlfn.SINGLE(NovSun1)+6,\"\"))","v":{"$error":"#NAME?"}},{"$f":"_xlfn.SINGLE(IF(DAY(_xlfn.SINGLE(NovSun1))=1,IF(AND(YEAR(_xlfn.SINGLE(NovSun1))=ปีปฏิทิน,MONTH(_xlfn.SINGLE(NovSun1))=11),NovSun1,\"\"),IF(AND(YEAR(_xlfn.SINGLE(NovSun1)+7)=ปีปฏิทิน,MONTH(_xlfn.SINGLE(NovSun1)+7)=11),_xlfn.SINGLE(NovSun1)+7,\"\")))","v":{"$error":"#NAME?"}},null,null,{"$f":"IF(DAY(_xlfn.SINGLE(ธ.ค.อา.1))=1,\"\",IF(AND(YEAR(_xlfn.SINGLE(ธ.ค.อา.1)+1)=ปีปฏิทิน,MONTH(_xlfn.SINGLE(ธ.ค.อา.1)+1)=12),_xlfn.SINGLE(ธ.ค.อา.1)+1,\"\"))","v":{"$error":"#NAME?"}},{"$f":"IF(DAY(_xlfn.SINGLE(ธ.ค.อา.1))=1,\"\",IF(AND(YEAR(_xlfn.SINGLE(ธ.ค.อา.1)+2)=ปีปฏิทิน,MONTH(_xlfn.SINGLE(ธ.ค.อา.1)+2)=12),_xlfn.SINGLE(ธ.ค.อา.1)+2,\"\"))","v":{"$error":"#NAME?"}},{"$f":"IF(DAY(_xlfn.SINGLE(ธ.ค.อา.1))=1,\"\",IF(AND(YEAR(_xlfn.SINGLE(ธ.ค.อา.1)+3)=ปีปฏิทิน,MONTH(_xlfn.SINGLE(ธ.ค.อา.1)+3)=12),_xlfn.SINGLE(ธ.ค.อา.1)+3,\"\"))","v":{"$error":"#NAME?"}},{"$f":"IF(DAY(_xlfn.SINGLE(ธ.ค.อา.1))=1,\"\",IF(AND(YEAR(_xlfn.SINGLE(ธ.ค.อา.1)+4)=ปีปฏิทิน,MONTH(_xlfn.SINGLE(ธ.ค.อา.1)+4)=12),_xlfn.SINGLE(ธ.ค.อา.1)+4,\"\"))","v":{"$error":"#NAME?"}},{"$f":"IF(DAY(_xlfn.SINGLE(ธ.ค.อา.1))=1,\"\",IF(AND(YEAR(_xlfn.SINGLE(ธ.ค.อา.1)+5)=ปีปฏิทิน,MONTH(_xlfn.SINGLE(ธ.ค.อา.1)+5)=12),_xlfn.SINGLE(ธ.ค.อา.1)+5,\"\"))","v":{"$error":"#NAME?"}},{"$f":"IF(DAY(_xlfn.SINGLE(ธ.ค.อา.1))=1,\"\",IF(AND(YEAR(_xlfn.SINGLE(ธ.ค.อา.1)+6)=ปีปฏิทิน,MONTH(_xlfn.SINGLE(ธ.ค.อา.1)+6)=12),_xlfn.SINGLE(ธ.ค.อา.1)+6,\"\"))","v":{"$error":"#NAME?"}},{"$f":"_xlfn.SINGLE(IF(DAY(_xlfn.SINGLE(ธ.ค.อา.1))=1,IF(AND(YEAR(_xlfn.SINGLE(ธ.ค.อา.1))=ปีปฏิทิน,MONTH(_xlfn.SINGLE(ธ.ค.อา.1))=12),ธ.ค.อา.1,\"\"),IF(AND(YEAR(_xlfn.SINGLE(ธ.ค.อา.1)+7)=ปีปฏิทิน,MONTH(_xlfn.SINGLE(ธ.ค.อา.1)+7)=12),_xlfn.SINGLE(ธ.ค.อา.1)+7,\"\")))","v":{"$error":"#NAME?"}}]
[null,null,{"$f":"IF(DAY(_xlfn.SINGLE(SepSun1))=1,IF(AND(YEAR(_xlfn.SINGLE(SepSun1)+1)=ปีปฏิทิน,MONTH(_xlfn.SINGLE(SepSun1)+1)=9),_xlfn.SINGLE(SepSun1)+1,\"\"),IF(AND(YEAR(_xlfn.SINGLE(SepSun1)+8)=ปีปฏิทิน,MONTH(_xlfn.SINGLE(SepSun1)+8)=9),_xlfn.SINGLE(SepSun1)+8,\"\"))","v":{"$error":"#NAME?"}},{"$f":"IF(DAY(_xlfn.SINGLE(SepSun1))=1,IF(AND(YEAR(_xlfn.SINGLE(SepSun1)+2)=ปีปฏิทิน,MONTH(_xlfn.SINGLE(SepSun1)+2)=9),_xlfn.SINGLE(SepSun1)+2,\"\"),IF(AND(YEAR(_xlfn.SINGLE(SepSun1)+9)=ปีปฏิทิน,MONTH(_xlfn.SINGLE(SepSun1)+9)=9),_xlfn.SINGLE(SepSun1)+9,\"\"))","v":{"$error":"#NAME?"}},{"$f":"IF(DAY(_xlfn.SINGLE(SepSun1))=1,IF(AND(YEAR(_xlfn.SINGLE(SepSun1)+3)=ปีปฏิทิน,MONTH(_xlfn.SINGLE(SepSun1)+3)=9),_xlfn.SINGLE(SepSun1)+3,\"\"),IF(AND(YEAR(_xlfn.SINGLE(SepSun1)+10)=ปีปฏิทิน,MONTH(_xlfn.SINGLE(SepSun1)+10)=9),_xlfn.SINGLE(SepSun1)+10,\"\"))","v":{"$error":"#NAME?"}},{"$f":"IF(DAY(_xlfn.SINGLE(SepSun1))=1,IF(AND(YEAR(_xlfn.SINGLE(SepSun1)+4)=ปีปฏิทิน,MONTH(_xlfn.SINGLE(SepSun1)+4)=9),_xlfn.SINGLE(SepSun1)+4,\"\"),IF(AND(YEAR(_xlfn.SINGLE(SepSun1)+11)=ปีปฏิทิน,MONTH(_xlfn.SINGLE(SepSun1)+11)=9),_xlfn.SINGLE(SepSun1)+11,\"\"))","v":{"$error":"#NAME?"}},{"$f":"IF(DAY(_xlfn.SINGLE(SepSun1))=1,IF(AND(YEAR(_xlfn.SINGLE(SepSun1)+5)=ปีปฏิทิน,MONTH(_xlfn.SINGLE(SepSun1)+5)=9),_xlfn.SINGLE(SepSun1)+5,\"\"),IF(AND(YEAR(_xlfn.SINGLE(SepSun1)+12)=ปีปฏิทิน,MONTH(_xlfn.SINGLE(SepSun1)+12)=9),_xlfn.SINGLE(SepSun1)+12,\"\"))","v":{"$error":"#NAME?"}},{"$f":"IF(DAY(_xlfn.SINGLE(SepSun1))=1,IF(AND(YEAR(_xlfn.SINGLE(SepSun1)+6)=ปีปฏิทิน,MONTH(_xlfn.SINGLE(SepSun1)+6)=9),_xlfn.SINGLE(SepSun1)+6,\"\"),IF(AND(YEAR(_xlfn.SINGLE(SepSun1)+13)=ปีปฏิทิน,MONTH(_xlfn.SINGLE(SepSun1)+13)=9),_xlfn.SINGLE(SepSun1)+13,\"\"))","v":{"$error":"#NAME?"}},{"$f":"IF(DAY(_xlfn.SINGLE(SepSun1))=1,IF(AND(YEAR(_xlfn.SINGLE(SepSun1)+7)=ปีปฏิทิน,MONTH(_xlfn.SINGLE(SepSun1)+7)=9),_xlfn.SINGLE(SepSun1)+7,\"\"),IF(AND(YEAR(_xlfn.SINGLE(SepSun1)+14)=ปีปฏิทิน,MONTH(_xlfn.SINGLE(SepSun1)+14)=9),_xlfn.SINGLE(SepSun1)+14,\"\"))","v":{"$error":"#NAME?"}},null,null,{"$f":"IF(DAY(_xlfn.SINGLE(OctSun1))=1,IF(AND(YEAR(_xlfn.SINGLE(OctSun1)+1)=ปีปฏิทิน,MONTH(_xlfn.SINGLE(OctSun1)+1)=10),_xlfn.SINGLE(OctSun1)+1,\"\"),IF(AND(YEAR(_xlfn.SINGLE(OctSun1)+8)=ปีปฏิทิน,MONTH(_xlfn.SINGLE(OctSun1)+8)=10),_xlfn.SINGLE(OctSun1)+8,\"\"))","v":{"$error":"#NAME?"}},{"$f":"IF(DAY(_xlfn.SINGLE(OctSun1))=1,IF(AND(YEAR(_xlfn.SINGLE(OctSun1)+2)=ปีปฏิทิน,MONTH(_xlfn.SINGLE(OctSun1)+2)=10),_xlfn.SINGLE(OctSun1)+2,\"\"),IF(AND(YEAR(_xlfn.SINGLE(OctSun1)+9)=ปีปฏิทิน,MONTH(_xlfn.SINGLE(OctSun1)+9)=10),_xlfn.SINGLE(OctSun1)+9,\"\"))","v":{"$error":"#NAME?"}},{"$f":"IF(DAY(_xlfn.SINGLE(OctSun1))=1,IF(AND(YEAR(_xlfn.SINGLE(OctSun1)+3)=ปีปฏิทิน,MONTH(_xlfn.SINGLE(OctSun1)+3)=10),_xlfn.SINGLE(OctSun1)+3,\"\"),IF(AND(YEAR(_xlfn.SINGLE(OctSun1)+10)=ปีปฏิทิน,MONTH(_xlfn.SINGLE(OctSun1)+10)=10),_xlfn.SINGLE(OctSun1)+10,\"\"))","v":{"$error":"#NAME?"}},{"$f":"IF(DAY(_xlfn.SINGLE(OctSun1))=1,IF(AND(YEAR(_xlfn.SINGLE(OctSun1)+4)=ปีปฏิทิน,MONTH(_xlfn.SINGLE(OctSun1)+4)=10),_xlfn.SINGLE(OctSun1)+4,\"\"),IF(AND(YEAR(_xlfn.SINGLE(OctSun1)+11)=ปีปฏิทิน,MONTH(_xlfn.SINGLE(OctSun1)+11)=10),_xlfn.SINGLE(OctSun1)+11,\"\"))","v":{"$error":"#NAME?"}},{"$f":"IF(DAY(_xlfn.SINGLE(OctSun1))=1,IF(AND(YEAR(_xlfn.SINGLE(OctSun1)+5)=ปีปฏิทิน,MONTH(_xlfn.SINGLE(OctSun1)+5)=10),_xlfn.SINGLE(OctSun1)+5,\"\"),IF(AND(YEAR(_xlfn.SINGLE(OctSun1)+12)=ปีปฏิทิน,MONTH(_xlfn.SINGLE(OctSun1)+12)=10),_xlfn.SINGLE(OctSun1)+12,\"\"))","v":{"$error":"#NAME?"}},{"$f":"IF(DAY(_xlfn.SINGLE(OctSun1))=1,IF(AND(YEAR(_xlfn.SINGLE(OctSun1)+6)=ปีปฏิทิน,MONTH(_xlfn.SINGLE(OctSun1)+6)=10),_xlfn.SINGLE(OctSun1)+6,\"\"),IF(AND(YEAR(_xlfn.SINGLE(OctSun1)+13)=ปีปฏิทิน,MONTH(_xlfn.SINGLE(OctSun1)+13)=10),_xlfn.SINGLE(OctSun1)+13,\"\"))","v":{"$error":"#NAME?"}},{"$f":"IF(DAY(_xlfn.SINGLE(OctSun1))=1,IF(AND(YEAR(_xlfn.SINGLE(OctSun1)+7)=ปีปฏิทิน,MONTH(_xlfn.SINGLE(OctSun1)+7)=10),_xlfn.SINGLE(OctSun1)+7,\"\"),IF(AND(YEAR(_xlfn.SINGLE(OctSun1)+14)=ปีปฏิทิน,MONTH(_xlfn.SINGLE(OctSun1)+14)=10),_xlfn.SINGLE(OctSun1)+14,\"\"))","v":{"$error":"#NAME?"}},null,null,{"$f":"IF(DAY(_xlfn.SINGLE(NovSun1))=1,IF(AND(YEAR(_xlfn.SINGLE(NovSun1)+1)=ปีปฏิทิน,MONTH(_xlfn.SINGLE(NovSun1)+1)=11),_xlfn.SINGLE(NovSun1)+1,\"\"),IF(AND(YEAR(_xlfn.SINGLE(NovSun1)+8)=ปีปฏิทิน,MONTH(_xlfn.SINGLE(NovSun1)+8)=11),_xlfn.SINGLE(NovSun1)+8,\"\"))","v":{"$error":"#NAME?"}},{"$f":"IF(DAY(_xlfn.SINGLE(NovSun1))=1,IF(AND(YEAR(_xlfn.SINGLE(NovSun1)+2)=ปีปฏิทิน,MONTH(_xlfn.SINGLE(NovSun1)+2)=11),_xlfn.SINGLE(NovSun1)+2,\"\"),IF(AND(YEAR(_xlfn.SINGLE(NovSun1)+9)=ปีปฏิทิน,MONTH(_xlfn.SINGLE(NovSun1)+9)=11),_xlfn.SINGLE(NovSun1)+9,\"\"))","v":{"$error":"#NAME?"}},{"$f":"IF(DAY(_xlfn.SINGLE(NovSun1))=1,IF(AND(YEAR(_xlfn.SINGLE(NovSun1)+3)=ปีปฏิทิน,MONTH(_xlfn.SINGLE(NovSun1)+3)=11),_xlfn.SINGLE(NovSun1)+3,\"\"),IF(AND(YEAR(_xlfn.SINGLE(NovSun1)+10)=ปีปฏิทิน,MONTH(_xlfn.SINGLE(NovSun1)+10)=11),_xlfn.SINGLE(NovSun1)+10,\"\"))","v":{"$error":"#NAME?"}},{"$f":"IF(DAY(_xlfn.SINGLE(NovSun1))=1,IF(AND(YEAR(_xlfn.SINGLE(NovSun1)+4)=ปีปฏิทิน,MONTH(_xlfn.SINGLE(NovSun1)+4)=11),_xlfn.SINGLE(NovSun1)+4,\"\"),IF(AND(YEAR(_xlfn.SINGLE(NovSun1)+11)=ปีปฏิทิน,MONTH(_xlfn.SINGLE(NovSun1)+11)=11),_xlfn.SINGLE(NovSun1)+11,\"\"))","v":{"$error":"#NAME?"}},{"$f":"IF(DAY(_xlfn.SINGLE(NovSun1))=1,IF(AND(YEAR(_xlfn.SINGLE(NovSun1)+5)=ปีปฏิทิน,MONTH(_xlfn.SINGLE(NovSun1)+5)=11),_xlfn.SINGLE(NovSun1)+5,\"\"),IF(AND(YEAR(_xlfn.SINGLE(NovSun1)+12)=ปีปฏิทิน,MONTH(_xlfn.SINGLE(NovSun1)+12)=11),_xlfn.SINGLE(NovSun1)+12,\"\"))","v":{"$error":"#NAME?"}},{"$f":"IF(DAY(_xlfn.SINGLE(NovSun1))=1,IF(AND(YEAR(_xlfn.SINGLE(NovSun1)+6)=ปีปฏิทิน,MONTH(_xlfn.SINGLE(NovSun1)+6)=11),_xlfn.SINGLE(NovSun1)+6,\"\"),IF(AND(YEAR(_xlfn.SINGLE(NovSun1)+13)=ปีปฏิทิน,MONTH(_xlfn.SINGLE(NovSun1)+13)=11),_xlfn.SINGLE(NovSun1)+13,\"\"))","v":{"$error":"#NAME?"}},{"$f":"IF(DAY(_xlfn.SINGLE(NovSun1))=1,IF(AND(YEAR(_xlfn.SINGLE(NovSun1)+7)=ปีปฏิทิน,MONTH(_xlfn.SINGLE(NovSun1)+7)=11),_xlfn.SINGLE(NovSun1)+7,\"\"),IF(AND(YEAR(_xlfn.SINGLE(NovSun1)+14)=ปีปฏิทิน,MONTH(_xlfn.SINGLE(NovSun1)+14)=11),_xlfn.SINGLE(NovSun1)+14,\"\"))","v":{"$error":"#NAME?"}},null,null,{"$f":"IF(DAY(_xlfn.SINGLE(ธ.ค.อา.1))=1,IF(AND(YEAR(_xlfn.SINGLE(ธ.ค.อา.1)+1)=ปีปฏิทิน,MONTH(_xlfn.SINGLE(ธ.ค.อา.1)+1)=12),_xlfn.SINGLE(ธ.ค.อา.1)+1,\"\"),IF(AND(YEAR(_xlfn.SINGLE(ธ.ค.อา.1)+8)=ปีปฏิทิน,MONTH(_xlfn.SINGLE(ธ.ค.อา.1)+8)=12),_xlfn.SINGLE(ธ.ค.อา.1)+8,\"\"))","v":{"$error":"#NAME?"}},{"$f":"IF(DAY(_xlfn.SINGLE(ธ.ค.อา.1))=1,IF(AND(YEAR(_xlfn.SINGLE(ธ.ค.อา.1)+2)=ปีปฏิทิน,MONTH(_xlfn.SINGLE(ธ.ค.อา.1)+2)=12),_xlfn.SINGLE(ธ.ค.อา.1)+2,\"\"),IF(AND(YEAR(_xlfn.SINGLE(ธ.ค.อา.1)+9)=ปีปฏิทิน,MONTH(_xlfn.SINGLE(ธ.ค.อา.1)+9)=12),_xlfn.SINGLE(ธ.ค.อา.1)+9,\"\"))","v":{"$error":"#NAME?"}},{"$f":"IF(DAY(_xlfn.SINGLE(ธ.ค.อา.1))=1,IF(AND(YEAR(_xlfn.SINGLE(ธ.ค.อา.1)+3)=ปีปฏิทิน,MONTH(_xlfn.SINGLE(ธ.ค.อา.1)+3)=12),_xlfn.SINGLE(ธ.ค.อา.1)+3,\"\"),IF(AND(YEAR(_xlfn.SINGLE(ธ.ค.อา.1)+10)=ปีปฏิทิน,MONTH(_xlfn.SINGLE(ธ.ค.อา.1)+10)=12),_xlfn.SINGLE(ธ.ค.อา.1)+10,\"\"))","v":{"$error":"#NAME?"}},{"$f":"IF(DAY(_xlfn.SINGLE(ธ.ค.อา.1))=1,IF(AND(YEAR(_xlfn.SINGLE(ธ.ค.อา.1)+4)=ปีปฏิทิน,MONTH(_xlfn.SINGLE(ธ.ค.อา.1)+4)=12),_xlfn.SINGLE(ธ.ค.อา.1)+4,\"\"),IF(AND(YEAR(_xlfn.SINGLE(ธ.ค.อา.1)+11)=ปีปฏิทิน,MONTH(_xlfn.SINGLE(ธ.ค.อา.1)+11)=12),_xlfn.SINGLE(ธ.ค.อา.1)+11,\"\"))","v":{"$error":"#NAME?"}},{"$f":"IF(DAY(_xlfn.SINGLE(ธ.ค.อา.1))=1,IF(AND(YEAR(_xlfn.SINGLE(ธ.ค.อา.1)+5)=ปีปฏิทิน,MONTH(_xlfn.SINGLE(ธ.ค.อา.1)+5)=12),_xlfn.SINGLE(ธ.ค.อา.1)+5,\"\"),IF(AND(YEAR(_xlfn.SINGLE(ธ.ค.อา.1)+12)=ปีปฏิทิน,MONTH(_xlfn.SINGLE(ธ.ค.อา.1)+12)=12),_xlfn.SINGLE(ธ.ค.อา.1)+12,\"\"))","v":{"$error":"#NAME?"}},{"$f":"IF(DAY(_xlfn.SINGLE(ธ.ค.อา.1))=1,IF(AND(YEAR(_xlfn.SINGLE(ธ.ค.อา.1)+6)=ปีปฏิทิน,MONTH(_xlfn.SINGLE(ธ.ค.อา.1)+6)=12),_xlfn.SINGLE(ธ.ค.อา.1)+6,\"\"),IF(AND(YEAR(_xlfn.SINGLE(ธ.ค.อา.1)+13)=ปีปฏิทิน,MONTH(_xlfn.SINGLE(ธ.ค.อา.1)+13)=12),_xlfn.SINGLE(ธ.ค.อา.1)+13,\"\"))","v":{"$error":"#NAME?"}},{"$f":"IF(DAY(_xlfn.SINGLE(ธ.ค.อา.1))=1,IF(AND(YEAR(_xlfn.SINGLE(ธ.ค.อา.1)+7)=ปีปฏิทิน,MONTH(_xlfn.SINGLE(ธ.ค.อา.1)+7)=12),_xlfn.SINGLE(ธ.ค.อา.1)+7,\"\"),IF(AND(YEAR(_xlfn.SINGLE(ธ.ค.อา.1)+14)=ปีปฏิทิน,MONTH(_xlfn.SINGLE(ธ.ค.อา.1)+14)=12),_xlfn.SINGLE(ธ.ค.อา.1)+14,\"\"))","v":{"$error":"#NAME?"}}]
[null,null,{"$f":"IF(DAY(_xlfn.SINGLE(SepSun1))=1,IF(AND(YEAR(_xlfn.SINGLE(SepSun1)+8)=ปีปฏิทิน,MONTH(_xlfn.SINGLE(SepSun1)+8)=9),_xlfn.SINGLE(SepSun1)+8,\"\"),IF(AND(YEAR(_xlfn.SINGLE(SepSun1)+15)=ปีปฏิทิน,MONTH(_xlfn.SINGLE(SepSun1)+15)=9),_xlfn.SINGLE(SepSun1)+15,\"\"))","v":{"$error":"#NAME?"}},{"$f":"IF(DAY(_xlfn.SINGLE(SepSun1))=1,IF(AND(YEAR(_xlfn.SINGLE(SepSun1)+9)=ปีปฏิทิน,MONTH(_xlfn.SINGLE(SepSun1)+9)=9),_xlfn.SINGLE(SepSun1)+9,\"\"),IF(AND(YEAR(_xlfn.SINGLE(SepSun1)+16)=ปีปฏิทิน,MONTH(_xlfn.SINGLE(SepSun1)+16)=9),_xlfn.SINGLE(SepSun1)+16,\"\"))","v":{"$error":"#NAME?"}},{"$f":"IF(DAY(_xlfn.SINGLE(SepSun1))=1,IF(AND(YEAR(_xlfn.SINGLE(SepSun1)+10)=ปีปฏิทิน,MONTH(_xlfn.SINGLE(SepSun1)+10)=9),_xlfn.SINGLE(SepSun1)+10,\"\"),IF(AND(YEAR(_xlfn.SINGLE(SepSun1)+17)=ปีปฏิทิน,MONTH(_xlfn.SINGLE(SepSun1)+17)=9),_xlfn.SINGLE(SepSun1)+17,\"\"))","v":{"$error":"#NAME?"}},{"$f":"IF(DAY(_xlfn.SINGLE(SepSun1))=1,IF(AND(YEAR(_xlfn.SINGLE(SepSun1)+11)=ปีปฏิทิน,MONTH(_xlfn.SINGLE(SepSun1)+11)=9),_xlfn.SINGLE(SepSun1)+11,\"\"),IF(AND(YEAR(_xlfn.SINGLE(SepSun1)+18)=ปีปฏิทิน,MONTH(_xlfn.SINGLE(SepSun1)+18)=9),_xlfn.SINGLE(SepSun1)+18,\"\"))","v":{"$error":"#NAME?"}},{"$f":"IF(DAY(_xlfn.SINGLE(SepSun1))=1,IF(AND(YEAR(_xlfn.SINGLE(SepSun1)+12)=ปีปฏิทิน,MONTH(_xlfn.SINGLE(SepSun1)+12)=9),_xlfn.SINGLE(SepSun1)+12,\"\"),IF(AND(YEAR(_xlfn.SINGLE(SepSun1)+19)=ปีปฏิทิน,MONTH(_xlfn.SINGLE(SepSun1)+19)=9),_xlfn.SINGLE(SepSun1)+19,\"\"))","v":{"$error":"#NAME?"}},{"$f":"IF(DAY(_xlfn.SINGLE(SepSun1))=1,IF(AND(YEAR(_xlfn.SINGLE(SepSun1)+13)=ปีปฏิทิน,MONTH(_xlfn.SINGLE(SepSun1)+13)=9),_xlfn.SINGLE(SepSun1)+13,\"\"),IF(AND(YEAR(_xlfn.SINGLE(SepSun1)+20)=ปีปฏิทิน,MONTH(_xlfn.SINGLE(SepSun1)+20)=9),_xlfn.SINGLE(SepSun1)+20,\"\"))","v":{"$error":"#NAME?"}},{"$f":"IF(DAY(_xlfn.SINGLE(SepSun1))=1,IF(AND(YEAR(_xlfn.SINGLE(SepSun1)+14)=ปีปฏิทิน,MONTH(_xlfn.SINGLE(SepSun1)+14)=9),_xlfn.SINGLE(SepSun1)+14,\"\"),IF(AND(YEAR(_xlfn.SINGLE(SepSun1)+21)=ปีปฏิทิน,MONTH(_xlfn.SINGLE(SepSun1)+21)=9),_xlfn.SINGLE(SepSun1)+21,\"\"))","v":{"$error":"#NAME?"}},null,null,{"$f":"IF(DAY(_xlfn.SINGLE(OctSun1))=1,IF(AND(YEAR(_xlfn.SINGLE(OctSun1)+8)=ปีปฏิทิน,MONTH(_xlfn.SINGLE(OctSun1)+8)=10),_xlfn.SINGLE(OctSun1)+8,\"\"),IF(AND(YEAR(_xlfn.SINGLE(OctSun1)+15)=ปีปฏิทิน,MONTH(_xlfn.SINGLE(OctSun1)+15)=10),_xlfn.SINGLE(OctSun1)+15,\"\"))","v":{"$error":"#NAME?"}},{"$f":"IF(DAY(_xlfn.SINGLE(OctSun1))=1,IF(AND(YEAR(_xlfn.SINGLE(OctSun1)+9)=ปีปฏิทิน,MONTH(_xlfn.SINGLE(OctSun1)+9)=10),_xlfn.SINGLE(OctSun1)+9,\"\"),IF(AND(YEAR(_xlfn.SINGLE(OctSun1)+16)=ปีปฏิทิน,MONTH(_xlfn.SINGLE(OctSun1)+16)=10),_xlfn.SINGLE(OctSun1)+16,\"\"))","v":{"$error":"#NAME?"}},{"$f":"IF(DAY(_xlfn.SINGLE(OctSun1))=1,IF(AND(YEAR(_xlfn.SINGLE(OctSun1)+10)=ปีปฏิทิน,MONTH(_xlfn.SINGLE(OctSun1)+10)=10),_xlfn.SINGLE(OctSun1)+10,\"\"),IF(AND(YEAR(_xlfn.SINGLE(OctSun1)+17)=ปีปฏิทิน,MONTH(_xlfn.SINGLE(OctSun1)+17)=10),_xlfn.SINGLE(OctSun1)+17,\"\"))","v":{"$error":"#NAME?"}},{"$f":"IF(DAY(_xlfn.SINGLE(OctSun1))=1,IF(AND(YEAR(_xlfn.SINGLE(OctSun1)+11)=ปีปฏิทิน,MONTH(_xlfn.SINGLE(OctSun1)+11)=10),_xlfn.SINGLE(OctSun1)+11,\"\"),IF(AND(YEAR(_xlfn.SINGLE(OctSun1)+18)=ปีปฏิทิน,MONTH(_xlfn.SINGLE(OctSun1)+18)=10),_xlfn.SINGLE(OctSun1)+18,\"\"))","v":{"$error":"#NAME?"}},{"$f":"IF(DAY(_xlfn.SINGLE(OctSun1))=1,IF(AND(YEAR(_xlfn.SINGLE(OctSun1)+12)=ปีปฏิทิน,MONTH(_xlfn.SINGLE(OctSun1)+12)=10),_xlfn.SINGLE(OctSun1)+12,\"\"),IF(AND(YEAR(_xlfn.SINGLE(OctSun1)+19)=ปีปฏิทิน,MONTH(_xlfn.SINGLE(OctSun1)+19)=10),_xlfn.SINGLE(OctSun1)+19,\"\"))","v":{"$error":"#NAME?"}},{"$f":"IF(DAY(_xlfn.SINGLE(OctSun1))=1,IF(AND(YEAR(_xlfn.SINGLE(OctSun1)+13)=ปีปฏิทิน,MONTH(_xlfn.SINGLE(OctSun1)+13)=10),_xlfn.SINGLE(OctSun1)+13,\"\"),IF(AND(YEAR(_xlfn.SINGLE(OctSun1)+20)=ปีปฏิทิน,MONTH(_xlfn.SINGLE(OctSun1)+20)=10),_xlfn.SINGLE(OctSun1)+20,\"\"))","v":{"$error":"#NAME?"}},{"$f":"IF(DAY(_xlfn.SINGLE(OctSun1))=1,IF(AND(YEAR(_xlfn.SINGLE(OctSun1)+14)=ปีปฏิทิน,MONTH(_xlfn.SINGLE(OctSun1)+14)=10),_xlfn.SINGLE(OctSun1)+14,\"\"),IF(AND(YEAR(_xlfn.SINGLE(OctSun1)+21)=ปีปฏิทิน,MONTH(_xlfn.SINGLE(OctSun1)+21)=10),_xlfn.SINGLE(OctSun1)+21,\"\"))","v":{"$error":"#NAME?"}},null,null,{"$f":"IF(DAY(_xlfn.SINGLE(NovSun1))=1,IF(AND(YEAR(_xlfn.SINGLE(NovSun1)+8)=ปีปฏิทิน,MONTH(_xlfn.SINGLE(NovSun1)+8)=11),_xlfn.SINGLE(NovSun1)+8,\"\"),IF(AND(YEAR(_xlfn.SINGLE(NovSun1)+15)=ปีปฏิทิน,MONTH(_xlfn.SINGLE(NovSun1)+15)=11),_xlfn.SINGLE(NovSun1)+15,\"\"))","v":{"$error":"#NAME?"}},{"$f":"IF(DAY(_xlfn.SINGLE(NovSun1))=1,IF(AND(YEAR(_xlfn.SINGLE(NovSun1)+9)=ปีปฏิทิน,MONTH(_xlfn.SINGLE(NovSun1)+9)=11),_xlfn.SINGLE(NovSun1)+9,\"\"),IF(AND(YEAR(_xlfn.SINGLE(NovSun1)+16)=ปีปฏิทิน,MONTH(_xlfn.SINGLE(NovSun1)+16)=11),_xlfn.SINGLE(NovSun1)+16,\"\"))","v":{"$error":"#NAME?"}},{"$f":"IF(DAY(_xlfn.SINGLE(NovSun1))=1,IF(AND(YEAR(_xlfn.SINGLE(NovSun1)+10)=ปีปฏิทิน,MONTH(_xlfn.SINGLE(NovSun1)+10)=11),_xlfn.SINGLE(NovSun1)+10,\"\"),IF(AND(YEAR(_xlfn.SINGLE(NovSun1)+17)=ปีปฏิทิน,MONTH(_xlfn.SINGLE(NovSun1)+17)=11),_xlfn.SINGLE(NovSun1)+17,\"\"))","v":{"$error":"#NAME?"}},{"$f":"IF(DAY(_xlfn.SINGLE(NovSun1))=1,IF(AND(YEAR(_xlfn.SINGLE(NovSun1)+11)=ปีปฏิทิน,MONTH(_xlfn.SINGLE(NovSun1)+11)=11),_xlfn.SINGLE(NovSun1)+11,\"\"),IF(AND(YEAR(_xlfn.SINGLE(NovSun1)+18)=ปีปฏิทิน,MONTH(_xlfn.SINGLE(NovSun1)+18)=11),_xlfn.SINGLE(NovSun1)+18,\"\"))","v":{"$error":"#NAME?"}},{"$f":"IF(DAY(_xlfn.SINGLE(NovSun1))=1,IF(AND(YEAR(_xlfn.SINGLE(NovSun1)+12)=ปีปฏิทิน,MONTH(_xlfn.SINGLE(NovSun1)+12)=11),_xlfn.SINGLE(NovSun1)+12,\"\"),IF(AND(YEAR(_xlfn.SINGLE(NovSun1)+19)=ปีปฏิทิน,MONTH(_xlfn.SINGLE(NovSun1)+19)=11),_xlfn.SINGLE(NovSun1)+19,\"\"))","v":{"$error":"#NAME?"}},{"$f":"IF(DAY(_xlfn.SINGLE(NovSun1))=1,IF(AND(YEAR(_xlfn.SINGLE(NovSun1)+13)=ปีปฏิทิน,MONTH(_xlfn.SINGLE(NovSun1)+13)=11),_xlfn.SINGLE(NovSun1)+13,\"\"),IF(AND(YEAR(_xlfn.SINGLE(NovSun1)+20)=ปีปฏิทิน,MONTH(_xlfn.SINGLE(NovSun1)+20)=11),_xlfn.SINGLE(NovSun1)+20,\"\"))","v":{"$error":"#NAME?"}},{"$f":"IF(DAY(_xlfn.SINGLE(NovSun1))=1,IF(AND(YEAR(_xlfn.SINGLE(NovSun1)+14)=ปีปฏิทิน,MONTH(_xlfn.SINGLE(NovSun1)+14)=11),_xlfn.SINGLE(NovSun1)+14,\"\"),IF(AND(YEAR(_xlfn.SINGLE(NovSun1)+21)=ปีปฏิทิน,MONTH(_xlfn.SINGLE(NovSun1)+21)=11),_xlfn.SINGLE(NovSun1)+21,\"\"))","v":{"$error":"#NAME?"}},null,null,{"$f":"IF(DAY(_xlfn.SINGLE(ธ.ค.อา.1))=1,IF(AND(YEAR(_xlfn.SINGLE(ธ.ค.อา.1)+8)=ปีปฏิทิน,MONTH(_xlfn.SINGLE(ธ.ค.อา.1)+8)=12),_xlfn.SINGLE(ธ.ค.อา.1)+8,\"\"),IF(AND(YEAR(_xlfn.SINGLE(ธ.ค.อา.1)+15)=ปีปฏิทิน,MONTH(_xlfn.SINGLE(ธ.ค.อา.1)+15)=12),_xlfn.SINGLE(ธ.ค.อา.1)+15,\"\"))","v":{"$error":"#NAME?"}},{"$f":"IF(DAY(_xlfn.SINGLE(ธ.ค.อา.1))=1,IF(AND(YEAR(_xlfn.SINGLE(ธ.ค.อา.1)+9)=ปีปฏิทิน,MONTH(_xlfn.SINGLE(ธ.ค.อา.1)+9)=12),_xlfn.SINGLE(ธ.ค.อา.1)+9,\"\"),IF(AND(YEAR(_xlfn.SINGLE(ธ.ค.อา.1)+16)=ปีปฏิทิน,MONTH(_xlfn.SINGLE(ธ.ค.อา.1)+16)=12),_xlfn.SINGLE(ธ.ค.อา.1)+16,\"\"))","v":{"$error":"#NAME?"}},{"$f":"IF(DAY(_xlfn.SINGLE(ธ.ค.อา.1))=1,IF(AND(YEAR(_xlfn.SINGLE(ธ.ค.อา.1)+10)=ปีปฏิทิน,MONTH(_xlfn.SINGLE(ธ.ค.อา.1)+10)=12),_xlfn.SINGLE(ธ.ค.อา.1)+10,\"\"),IF(AND(YEAR(_xlfn.SINGLE(ธ.ค.อา.1)+17)=ปีปฏิทิน,MONTH(_xlfn.SINGLE(ธ.ค.อา.1)+17)=12),_xlfn.SINGLE(ธ.ค.อา.1)+17,\"\"))","v":{"$error":"#NAME?"}},{"$f":"IF(DAY(_xlfn.SINGLE(ธ.ค.อา.1))=1,IF(AND(YEAR(_xlfn.SINGLE(ธ.ค.อา.1)+11)=ปีปฏิทิน,MONTH(_xlfn.SINGLE(ธ.ค.อา.1)+11)=12),_xlfn.SINGLE(ธ.ค.อา.1)+11,\"\"),IF(AND(YEAR(_xlfn.SINGLE(ธ.ค.อา.1)+18)=ปีปฏิทิน,MONTH(_xlfn.SINGLE(ธ.ค.อา.1)+18)=12),_xlfn.SINGLE(ธ.ค.อา.1)+18,\"\"))","v":{"$error":"#NAME?"}},{"$f":"IF(DAY(_xlfn.SINGLE(ธ.ค.อา.1))=1,IF(AND(YEAR(_xlfn.SINGLE(ธ.ค.อา.1)+12)=ปีปฏิทิน,MONTH(_xlfn.SINGLE(ธ.ค.อา.1)+12)=12),_xlfn.SINGLE(ธ.ค.อา.1)+12,\"\"),IF(AND(YEAR(_xlfn.SINGLE(ธ.ค.อา.1)+19)=ปีปฏิทิน,MONTH(_xlfn.SINGLE(ธ.ค.อา.1)+19)=12),_xlfn.SINGLE(ธ.ค.อา.1)+19,\"\"))","v":{"$error":"#NAME?"}},{"$f":"IF(DAY(_xlfn.SINGLE(ธ.ค.อา.1))=1,IF(AND(YEAR(_xlfn.SINGLE(ธ.ค.อา.1)+13)=ปีปฏิทิน,MONTH(_xlfn.SINGLE(ธ.ค.อา.1)+13)=12),_xlfn.SINGLE(ธ.ค.อา.1)+13,\"\"),IF(AND(YEAR(_xlfn.SINGLE(ธ.ค.อา.1)+20)=ปีปฏิทิน,MONTH(_xlfn.SINGLE(ธ.ค.อา.1)+20)=12),_xlfn.SINGLE(ธ.ค.อา.1)+20,\"\"))","v":{"$error":"#NAME?"}},{"$f":"IF(DAY(_xlfn.SINGLE(ธ.ค.อา.1))=1,IF(AND(YEAR(_xlfn.SINGLE(ธ.ค.อา.1)+14)=ปีปฏิทิน,MONTH(_xlfn.SINGLE(ธ.ค.อา.1)+14)=12),_xlfn.SINGLE(ธ.ค.อา.1)+14,\"\"),IF(AND(YEAR(_xlfn.SINGLE(ธ.ค.อา.1)+21)=ปีปฏิทิน,MONTH(_xlfn.SINGLE(ธ.ค.อา.1)+21)=12),_xlfn.SINGLE(ธ.ค.อา.1)+21,\"\"))","v":{"$error":"#NAME?"}}]
[null,null,{"$f":"IF(DAY(_xlfn.SINGLE(SepSun1))=1,IF(AND(YEAR(_xlfn.SINGLE(SepSun1)+15)=ปีปฏิทิน,MONTH(_xlfn.SINGLE(SepSun1)+15)=9),_xlfn.SINGLE(SepSun1)+15,\"\"),IF(AND(YEAR(_xlfn.SINGLE(SepSun1)+22)=ปีปฏิทิน,MONTH(_xlfn.SINGLE(SepSun1)+22)=9),_xlfn.SINGLE(SepSun1)+22,\"\"))","v":{"$error":"#NAME?"}},{"$f":"IF(DAY(_xlfn.SINGLE(SepSun1))=1,IF(AND(YEAR(_xlfn.SINGLE(SepSun1)+16)=ปีปฏิทิน,MONTH(_xlfn.SINGLE(SepSun1)+16)=9),_xlfn.SINGLE(SepSun1)+16,\"\"),IF(AND(YEAR(_xlfn.SINGLE(SepSun1)+23)=ปีปฏิทิน,MONTH(_xlfn.SINGLE(SepSun1)+23)=9),_xlfn.SINGLE(SepSun1)+23,\"\"))","v":{"$error":"#NAME?"}},{"$f":"IF(DAY(_xlfn.SINGLE(SepSun1))=1,IF(AND(YEAR(_xlfn.SINGLE(SepSun1)+17)=ปีปฏิทิน,MONTH(_xlfn.SINGLE(SepSun1)+17)=9),_xlfn.SINGLE(SepSun1)+17,\"\"),IF(AND(YEAR(_xlfn.SINGLE(SepSun1)+24)=ปีปฏิทิน,MONTH(_xlfn.SINGLE(SepSun1)+24)=9),_xlfn.SINGLE(SepSun1)+24,\"\"))","v":{"$error":"#NAME?"}},{"$f":"IF(DAY(_xlfn.SINGLE(SepSun1))=1,IF(AND(YEAR(_xlfn.SINGLE(SepSun1)+18)=ปีปฏิทิน,MONTH(_xlfn.SINGLE(SepSun1)+18)=9),_xlfn.SINGLE(SepSun1)+18,\"\"),IF(AND(YEAR(_xlfn.SINGLE(SepSun1)+25)=ปีปฏิทิน,MONTH(_xlfn.SINGLE(SepSun1)+25)=9),_xlfn.SINGLE(SepSun1)+25,\"\"))","v":{"$error":"#NAME?"}},{"$f":"IF(DAY(_xlfn.SINGLE(SepSun1))=1,IF(AND(YEAR(_xlfn.SINGLE(SepSun1)+19)=ปีปฏิทิน,MONTH(_xlfn.SINGLE(SepSun1)+19)=9),_xlfn.SINGLE(SepSun1)+19,\"\"),IF(AND(YEAR(_xlfn.SINGLE(SepSun1)+26)=ปีปฏิทิน,MONTH(_xlfn.SINGLE(SepSun1)+26)=9),_xlfn.SINGLE(SepSun1)+26,\"\"))","v":{"$error":"#NAME?"}},{"$f":"IF(DAY(_xlfn.SINGLE(SepSun1))=1,IF(AND(YEAR(_xlfn.SINGLE(SepSun1)+20)=ปีปฏิทิน,MONTH(_xlfn.SINGLE(SepSun1)+20)=9),_xlfn.SINGLE(SepSun1)+20,\"\"),IF(AND(YEAR(_xlfn.SINGLE(SepSun1)+27)=ปีปฏิทิน,MONTH(_xlfn.SINGLE(SepSun1)+27)=9),_xlfn.SINGLE(SepSun1)+27,\"\"))","v":{"$error":"#NAME?"}},{"$f":"IF(DAY(_xlfn.SINGLE(SepSun1))=1,IF(AND(YEAR(_xlfn.SINGLE(SepSun1)+21)=ปีปฏิทิน,MONTH(_xlfn.SINGLE(SepSun1)+21)=9),_xlfn.SINGLE(SepSun1)+21,\"\"),IF(AND(YEAR(_xlfn.SINGLE(SepSun1)+28)=ปีปฏิทิน,MONTH(_xlfn.SINGLE(SepSun1)+28)=9),_xlfn.SINGLE(SepSun1)+28,\"\"))","v":{"$error":"#NAME?"}},null,null,{"$f":"IF(DAY(_xlfn.SINGLE(OctSun1))=1,IF(AND(YEAR(_xlfn.SINGLE(OctSun1)+15)=ปีปฏิทิน,MONTH(_xlfn.SINGLE(OctSun1)+15)=10),_xlfn.SINGLE(OctSun1)+15,\"\"),IF(AND(YEAR(_xlfn.SINGLE(OctSun1)+22)=ปีปฏิทิน,MONTH(_xlfn.SINGLE(OctSun1)+22)=10),_xlfn.SINGLE(OctSun1)+22,\"\"))","v":{"$error":"#NAME?"}},{"$f":"IF(DAY(_xlfn.SINGLE(OctSun1))=1,IF(AND(YEAR(_xlfn.SINGLE(OctSun1)+16)=ปีปฏิทิน,MONTH(_xlfn.SINGLE(OctSun1)+16)=10),_xlfn.SINGLE(OctSun1)+16,\"\"),IF(AND(YEAR(_xlfn.SINGLE(OctSun1)+23)=ปีปฏิทิน,MONTH(_xlfn.SINGLE(OctSun1)+23)=10),_xlfn.SINGLE(OctSun1)+23,\"\"))","v":{"$error":"#NAME?"}},{"$f":"IF(DAY(_xlfn.SINGLE(OctSun1))=1,IF(AND(YEAR(_xlfn.SINGLE(OctSun1)+17)=ปีปฏิทิน,MONTH(_xlfn.SINGLE(OctSun1)+17)=10),_xlfn.SINGLE(OctSun1)+17,\"\"),IF(AND(YEAR(_xlfn.SINGLE(OctSun1)+24)=ปีปฏิทิน,MONTH(_xlfn.SINGLE(OctSun1)+24)=10),_xlfn.SINGLE(OctSun1)+24,\"\"))","v":{"$error":"#NAME?"}},{"$f":"IF(DAY(_xlfn.SINGLE(OctSun1))=1,IF(AND(YEAR(_xlfn.SINGLE(OctSun1)+18)=ปีปฏิทิน,MONTH(_xlfn.SINGLE(OctSun1)+18)=10),_xlfn.SINGLE(OctSun1)+18,\"\"),IF(AND(YEAR(_xlfn.SINGLE(OctSun1)+25)=ปีปฏิทิน,MONTH(_xlfn.SINGLE(OctSun1)+25)=10),_xlfn.SINGLE(OctSun1)+25,\"\"))","v":{"$error":"#NAME?"}},{"$f":"IF(DAY(_xlfn.SINGLE(OctSun1))=1,IF(AND(YEAR(_xlfn.SINGLE(OctSun1)+19)=ปีปฏิทิน,MONTH(_xlfn.SINGLE(OctSun1)+19)=10),_xlfn.SINGLE(OctSun1)+19,\"\"),IF(AND(YEAR(_xlfn.SINGLE(OctSun1)+26)=ปีปฏิทิน,MONTH(_xlfn.SINGLE(OctSun1)+26)=10),_xlfn.SINGLE(OctSun1)+26,\"\"))","v":{"$error":"#NAME?"}},{"$f":"IF(DAY(_xlfn.SINGLE(OctSun1))=1,IF(AND(YEAR(_xlfn.SINGLE(OctSun1)+20)=ปีปฏิทิน,MONTH(_xlfn.SINGLE(OctSun1)+20)=10),_xlfn.SINGLE(OctSun1)+20,\"\"),IF(AND(YEAR(_xlfn.SINGLE(OctSun1)+27)=ปีปฏิทิน,MONTH(_xlfn.SINGLE(OctSun1)+27)=10),_xlfn.SINGLE(OctSun1)+27,\"\"))","v":{"$error":"#NAME?"}},{"$f":"IF(DAY(_xlfn.SINGLE(OctSun1))=1,IF(AND(YEAR(_xlfn.SINGLE(OctSun1)+21)=ปีปฏิทิน,MONTH(_xlfn.SINGLE(OctSun1)+21)=10),_xlfn.SINGLE(OctSun1)+21,\"\"),IF(AND(YEAR(_xlfn.SINGLE(OctSun1)+28)=ปีปฏิทิน,MONTH(_xlfn.SINGLE(OctSun1)+28)=10),_xlfn.SINGLE(OctSun1)+28,\"\"))","v":{"$error":"#NAME?"}},null,null,{"$f":"IF(DAY(_xlfn.SINGLE(NovSun1))=1,IF(AND(YEAR(_xlfn.SINGLE(NovSun1)+15)=ปีปฏิทิน,MONTH(_xlfn.SINGLE(NovSun1)+15)=11),_xlfn.SINGLE(NovSun1)+15,\"\"),IF(AND(YEAR(_xlfn.SINGLE(NovSun1)+22)=ปีปฏิทิน,MONTH(_xlfn.SINGLE(NovSun1)+22)=11),_xlfn.SINGLE(NovSun1)+22,\"\"))","v":{"$error":"#NAME?"}},{"$f":"IF(DAY(_xlfn.SINGLE(NovSun1))=1,IF(AND(YEAR(_xlfn.SINGLE(NovSun1)+16)=ปีปฏิทิน,MONTH(_xlfn.SINGLE(NovSun1)+16)=11),_xlfn.SINGLE(NovSun1)+16,\"\"),IF(AND(YEAR(_xlfn.SINGLE(NovSun1)+23)=ปีปฏิทิน,MONTH(_xlfn.SINGLE(NovSun1)+23)=11),_xlfn.SINGLE(NovSun1)+23,\"\"))","v":{"$error":"#NAME?"}},{"$f":"IF(DAY(_xlfn.SINGLE(NovSun1))=1,IF(AND(YEAR(_xlfn.SINGLE(NovSun1)+17)=ปีปฏิทิน,MONTH(_xlfn.SINGLE(NovSun1)+17)=11),_xlfn.SINGLE(NovSun1)+17,\"\"),IF(AND(YEAR(_xlfn.SINGLE(NovSun1)+24)=ปีปฏิทิน,MONTH(_xlfn.SINGLE(NovSun1)+24)=11),_xlfn.SINGLE(NovSun1)+24,\"\"))","v":{"$error":"#NAME?"}},{"$f":"IF(DAY(_xlfn.SINGLE(NovSun1))=1,IF(AND(YEAR(_xlfn.SINGLE(NovSun1)+18)=ปีปฏิทิน,MONTH(_xlfn.SINGLE(NovSun1)+18)=11),_xlfn.SINGLE(NovSun1)+18,\"\"),IF(AND(YEAR(_xlfn.SINGLE(NovSun1)+25)=ปีปฏิทิน,MONTH(_xlfn.SINGLE(NovSun1)+25)=11),_xlfn.SINGLE(NovSun1)+25,\"\"))","v":{"$error":"#NAME?"}},{"$f":"IF(DAY(_xlfn.SINGLE(NovSun1))=1,IF(AND(YEAR(_xlfn.SINGLE(NovSun1)+19)=ปีปฏิทิน,MONTH(_xlfn.SINGLE(NovSun1)+19)=11),_xlfn.SINGLE(NovSun1)+19,\"\"),IF(AND(YEAR(_xlfn.SINGLE(NovSun1)+26)=ปีปฏิทิน,MONTH(_xlfn.SINGLE(NovSun1)+26)=11),_xlfn.SINGLE(NovSun1)+26,\"\"))","v":{"$error":"#NAME?"}},{"$f":"IF(DAY(_xlfn.SINGLE(NovSun1))=1,IF(AND(YEAR(_xlfn.SINGLE(NovSun1)+20)=ปีปฏิทิน,MONTH(_xlfn.SINGLE(NovSun1)+20)=11),_xlfn.SINGLE(NovSun1)+20,\"\"),IF(AND(YEAR(_xlfn.SINGLE(NovSun1)+27)=ปีปฏิทิน,MONTH(_xlfn.SINGLE(NovSun1)+27)=11),_xlfn.SINGLE(NovSun1)+27,\"\"))","v":{"$error":"#NAME?"}},{"$f":"IF(DAY(_xlfn.SINGLE(NovSun1))=1,IF(AND(YEAR(_xlfn.SINGLE(NovSun1)+21)=ปีปฏิทิน,MONTH(_xlfn.SINGLE(NovSun1)+21)=11),_xlfn.SINGLE(NovSun1)+21,\"\"),IF(AND(YEAR(_xlfn.SINGLE(NovSun1)+28)=ปีปฏิทิน,MONTH(_xlfn.SINGLE(NovSun1)+28)=11),_xlfn.SINGLE(NovSun1)+28,\"\"))","v":{"$error":"#NAME?"}},null,null,{"$f":"IF(DAY(_xlfn.SINGLE(ธ.ค.อา.1))=1,IF(AND(YEAR(_xlfn.SINGLE(ธ.ค.อา.1)+15)=ปีปฏิทิน,MONTH(_xlfn.SINGLE(ธ.ค.อา.1)+15)=12),_xlfn.SINGLE(ธ.ค.อา.1)+15,\"\"),IF(AND(YEAR(_xlfn.SINGLE(ธ.ค.อา.1)+22)=ปีปฏิทิน,MONTH(_xlfn.SINGLE(ธ.ค.อา.1)+22)=12),_xlfn.SINGLE(ธ.ค.อา.1)+22,\"\"))","v":{"$error":"#NAME?"}},{"$f":"IF(DAY(_xlfn.SINGLE(ธ.ค.อา.1))=1,IF(AND(YEAR(_xlfn.SINGLE(ธ.ค.อา.1)+16)=ปีปฏิทิน,MONTH(_xlfn.SINGLE(ธ.ค.อา.1)+16)=12),_xlfn.SINGLE(ธ.ค.อา.1)+16,\"\"),IF(AND(YEAR(_xlfn.SINGLE(ธ.ค.อา.1)+23)=ปีปฏิทิน,MONTH(_xlfn.SINGLE(ธ.ค.อา.1)+23)=12),_xlfn.SINGLE(ธ.ค.อา.1)+23,\"\"))","v":{"$error":"#NAME?"}},{"$f":"IF(DAY(_xlfn.SINGLE(ธ.ค.อา.1))=1,IF(AND(YEAR(_xlfn.SINGLE(ธ.ค.อา.1)+17)=ปีปฏิทิน,MONTH(_xlfn.SINGLE(ธ.ค.อา.1)+17)=12),_xlfn.SINGLE(ธ.ค.อา.1)+17,\"\"),IF(AND(YEAR(_xlfn.SINGLE(ธ.ค.อา.1)+24)=ปีปฏิทิน,MONTH(_xlfn.SINGLE(ธ.ค.อา.1)+24)=12),_xlfn.SINGLE(ธ.ค.อา.1)+24,\"\"))","v":{"$error":"#NAME?"}},{"$f":"IF(DAY(_xlfn.SINGLE(ธ.ค.อา.1))=1,IF(AND(YEAR(_xlfn.SINGLE(ธ.ค.อา.1)+18)=ปีปฏิทิน,MONTH(_xlfn.SINGLE(ธ.ค.อา.1)+18)=12),_xlfn.SINGLE(ธ.ค.อา.1)+18,\"\"),IF(AND(YEAR(_xlfn.SINGLE(ธ.ค.อา.1)+25)=ปีปฏิทิน,MONTH(_xlfn.SINGLE(ธ.ค.อา.1)+25)=12),_xlfn.SINGLE(ธ.ค.อา.1)+25,\"\"))","v":{"$error":"#NAME?"}},{"$f":"IF(DAY(_xlfn.SINGLE(ธ.ค.อา.1))=1,IF(AND(YEAR(_xlfn.SINGLE(ธ.ค.อา.1)+19)=ปีปฏิทิน,MONTH(_xlfn.SINGLE(ธ.ค.อา.1)+19)=12),_xlfn.SINGLE(ธ.ค.อา.1)+19,\"\"),IF(AND(YEAR(_xlfn.SINGLE(ธ.ค.อา.1)+26)=ปีปฏิทิน,MONTH(_xlfn.SINGLE(ธ.ค.อา.1)+26)=12),_xlfn.SINGLE(ธ.ค.อา.1)+26,\"\"))","v":{"$error":"#NAME?"}},{"$f":"IF(DAY(_xlfn.SINGLE(ธ.ค.อา.1))=1,IF(AND(YEAR(_xlfn.SINGLE(ธ.ค.อา.1)+20)=ปีปฏิทิน,MONTH(_xlfn.SINGLE(ธ.ค.อา.1)+20)=12),_xlfn.SINGLE(ธ.ค.อา.1)+20,\"\"),IF(AND(YEAR(_xlfn.SINGLE(ธ.ค.อา.1)+27)=ปีปฏิทิน,MONTH(_xlfn.SINGLE(ธ.ค.อา.1)+27)=12),_xlfn.SINGLE(ธ.ค.อา.1)+27,\"\"))","v":{"$error":"#NAME?"}},{"$f":"IF(DAY(_xlfn.SINGLE(ธ.ค.อา.1))=1,IF(AND(YEAR(_xlfn.SINGLE(ธ.ค.อา.1)+21)=ปีปฏิทิน,MONTH(_xlfn.SINGLE(ธ.ค.อา.1)+21)=12),_xlfn.SINGLE(ธ.ค.อา.1)+21,\"\"),IF(AND(YEAR(_xlfn.SINGLE(ธ.ค.อา.1)+28)=ปีปฏิทิน,MONTH(_xlfn.SINGLE(ธ.ค.อา.1)+28)=12),_xlfn.SINGLE(ธ.ค.อา.1)+28,\"\"))","v":{"$error":"#NAME?"}}]
[null,null,{"$f":"IF(DAY(_xlfn.SINGLE(SepSun1))=1,IF(AND(YEAR(_xlfn.SINGLE(SepSun1)+22)=ปีปฏิทิน,MONTH(_xlfn.SINGLE(SepSun1)+22)=9),_xlfn.SINGLE(SepSun1)+22,\"\"),IF(AND(YEAR(_xlfn.SINGLE(SepSun1)+29)=ปีปฏิทิน,MONTH(_xlfn.SINGLE(SepSun1)+29)=9),_xlfn.SINGLE(SepSun1)+29,\"\"))","v":{"$error":"#NAME?"}},{"$f":"IF(DAY(_xlfn.SINGLE(SepSun1))=1,IF(AND(YEAR(_xlfn.SINGLE(SepSun1)+23)=ปีปฏิทิน,MONTH(_xlfn.SINGLE(SepSun1)+23)=9),_xlfn.SINGLE(SepSun1)+23,\"\"),IF(AND(YEAR(_xlfn.SINGLE(SepSun1)+30)=ปีปฏิทิน,MONTH(_xlfn.SINGLE(SepSun1)+30)=9),_xlfn.SINGLE(SepSun1)+30,\"\"))","v":{"$error":"#NAME?"}},{"$f":"IF(DAY(_xlfn.SINGLE(SepSun1))=1,IF(AND(YEAR(_xlfn.SINGLE(SepSun1)+24)=ปีปฏิทิน,MONTH(_xlfn.SINGLE(SepSun1)+24)=9),_xlfn.SINGLE(SepSun1)+24,\"\"),IF(AND(YEAR(_xlfn.SINGLE(SepSun1)+31)=ปีปฏิทิน,MONTH(_xlfn.SINGLE(SepSun1)+31)=9),_xlfn.SINGLE(SepSun1)+31,\"\"))","v":{"$error":"#NAME?"}},{"$f":"IF(DAY(_xlfn.SINGLE(SepSun1))=1,IF(AND(YEAR(_xlfn.SINGLE(SepSun1)+25)=ปีปฏิทิน,MONTH(_xlfn.SINGLE(SepSun1)+25)=9),_xlfn.SINGLE(SepSun1)+25,\"\"),IF(AND(YEAR(_xlfn.SINGLE(SepSun1)+32)=ปีปฏิทิน,MONTH(_xlfn.SINGLE(SepSun1)+32)=9),_xlfn.SINGLE(SepSun1)+32,\"\"))","v":{"$error":"#NAME?"}},{"$f":"IF(DAY(_xlfn.SINGLE(SepSun1))=1,IF(AND(YEAR(_xlfn.SINGLE(SepSun1)+26)=ปีปฏิทิน,MONTH(_xlfn.SINGLE(SepSun1)+26)=9),_xlfn.SINGLE(SepSun1)+26,\"\"),IF(AND(YEAR(_xlfn.SINGLE(SepSun1)+33)=ปีปฏิทิน,MONTH(_xlfn.SINGLE(SepSun1)+33)=9),_xlfn.SINGLE(SepSun1)+33,\"\"))","v":{"$error":"#NAME?"}},{"$f":"IF(DAY(_xlfn.SINGLE(SepSun1))=1,IF(AND(YEAR(_xlfn.SINGLE(SepSun1)+27)=ปีปฏิทิน,MONTH(_xlfn.SINGLE(SepSun1)+27)=9),_xlfn.SINGLE(SepSun1)+27,\"\"),IF(AND(YEAR(_xlfn.SINGLE(SepSun1)+34)=ปีปฏิทิน,MONTH(_xlfn.SINGLE(SepSun1)+34)=9),_xlfn.SINGLE(SepSun1)+34,\"\"))","v":{"$error":"#NAME?"}},{"$f":"IF(DAY(_xlfn.SINGLE(SepSun1))=1,IF(AND(YEAR(_xlfn.SINGLE(SepSun1)+28)=ปีปฏิทิน,MONTH(_xlfn.SINGLE(SepSun1)+28)=9),_xlfn.SINGLE(SepSun1)+28,\"\"),IF(AND(YEAR(_xlfn.SINGLE(SepSun1)+35)=ปีปฏิทิน,MONTH(_xlfn.SINGLE(SepSun1)+35)=9),_xlfn.SINGLE(SepSun1)+35,\"\"))","v":{"$error":"#NAME?"}},null,null,{"$f":"IF(DAY(_xlfn.SINGLE(OctSun1))=1,IF(AND(YEAR(_xlfn.SINGLE(OctSun1)+22)=ปีปฏิทิน,MONTH(_xlfn.SINGLE(OctSun1)+22)=10),_xlfn.SINGLE(OctSun1)+22,\"\"),IF(AND(YEAR(_xlfn.SINGLE(OctSun1)+29)=ปีปฏิทิน,MONTH(_xlfn.SINGLE(OctSun1)+29)=10),_xlfn.SINGLE(OctSun1)+29,\"\"))","v":{"$error":"#NAME?"}},{"$f":"IF(DAY(_xlfn.SINGLE(OctSun1))=1,IF(AND(YEAR(_xlfn.SINGLE(OctSun1)+23)=ปีปฏิทิน,MONTH(_xlfn.SINGLE(OctSun1)+23)=10),_xlfn.SINGLE(OctSun1)+23,\"\"),IF(AND(YEAR(_xlfn.SINGLE(OctSun1)+30)=ปีปฏิทิน,MONTH(_xlfn.SINGLE(OctSun1)+30)=10),_xlfn.SINGLE(OctSun1)+30,\"\"))","v":{"$error":"#NAME?"}},{"$f":"IF(DAY(_xlfn.SINGLE(OctSun1))=1,IF(AND(YEAR(_xlfn.SINGLE(OctSun1)+24)=ปีปฏิทิน,MONTH(_xlfn.SINGLE(OctSun1)+24)=10),_xlfn.SINGLE(OctSun1)+24,\"\"),IF(AND(YEAR(_xlfn.SINGLE(OctSun1)+31)=ปีปฏิทิน,MONTH(_xlfn.SINGLE(OctSun1)+31)=10),_xlfn.SINGLE(OctSun1)+31,\"\"))","v":{"$error":"#NAME?"}},{"$f":"IF(DAY(_xlfn.SINGLE(OctSun1))=1,IF(AND(YEAR(_xlfn.SINGLE(OctSun1)+25)=ปีปฏิทิน,MONTH(_xlfn.SINGLE(OctSun1)+25)=10),_xlfn.SINGLE(OctSun1)+25,\"\"),IF(AND(YEAR(_xlfn.SINGLE(OctSun1)+32)=ปีปฏิทิน,MONTH(_xlfn.SINGLE(OctSun1)+32)=10),_xlfn.SINGLE(OctSun1)+32,\"\"))","v":{"$error":"#NAME?"}},{"$f":"IF(DAY(_xlfn.SINGLE(OctSun1))=1,IF(AND(YEAR(_xlfn.SINGLE(OctSun1)+26)=ปีปฏิทิน,MONTH(_xlfn.SINGLE(OctSun1)+26)=10),_xlfn.SINGLE(OctSun1)+26,\"\"),IF(AND(YEAR(_xlfn.SINGLE(OctSun1)+33)=ปีปฏิทิน,MONTH(_xlfn.SINGLE(OctSun1)+33)=10),_xlfn.SINGLE(OctSun1)+33,\"\"))","v":{"$error":"#NAME?"}},{"$f":"IF(DAY(_xlfn.SINGLE(OctSun1))=1,IF(AND(YEAR(_xlfn.SINGLE(OctSun1)+27)=ปีปฏิทิน,MONTH(_xlfn.SINGLE(OctSun1)+27)=10),_xlfn.SINGLE(OctSun1)+27,\"\"),IF(AND(YEAR(_xlfn.SINGLE(OctSun1)+34)=ปีปฏิทิน,MONTH(_xlfn.SINGLE(OctSun1)+34)=10),_xlfn.SINGLE(OctSun1)+34,\"\"))","v":{"$error":"#NAME?"}},{"$f":"IF(DAY(_xlfn.SINGLE(OctSun1))=1,IF(AND(YEAR(_xlfn.SINGLE(OctSun1)+28)=ปีปฏิทิน,MONTH(_xlfn.SINGLE(OctSun1)+28)=10),_xlfn.SINGLE(OctSun1)+28,\"\"),IF(AND(YEAR(_xlfn.SINGLE(OctSun1)+35)=ปีปฏิทิน,MONTH(_xlfn.SINGLE(OctSun1)+35)=10),_xlfn.SINGLE(OctSun1)+35,\"\"))","v":{"$error":"#NAME?"}},null,null,{"$f":"IF(DAY(_xlfn.SINGLE(NovSun1))=1,IF(AND(YEAR(_xlfn.SINGLE(NovSun1)+22)=ปีปฏิทิน,MONTH(_xlfn.SINGLE(NovSun1)+22)=11),_xlfn.SINGLE(NovSun1)+22,\"\"),IF(AND(YEAR(_xlfn.SINGLE(NovSun1)+29)=ปีปฏิทิน,MONTH(_xlfn.SINGLE(NovSun1)+29)=11),_xlfn.SINGLE(NovSun1)+29,\"\"))","v":{"$error":"#NAME?"}},{"$f":"IF(DAY(_xlfn.SINGLE(NovSun1))=1,IF(AND(YEAR(_xlfn.SINGLE(NovSun1)+23)=ปีปฏิทิน,MONTH(_xlfn.SINGLE(NovSun1)+23)=11),_xlfn.SINGLE(NovSun1)+23,\"\"),IF(AND(YEAR(_xlfn.SINGLE(NovSun1)+30)=ปีปฏิทิน,MONTH(_xlfn.SINGLE(NovSun1)+30)=11),_xlfn.SINGLE(NovSun1)+30,\"\"))","v":{"$error":"#NAME?"}},{"$f":"IF(DAY(_xlfn.SINGLE(NovSun1))=1,IF(AND(YEAR(_xlfn.SINGLE(NovSun1)+24)=ปีปฏิทิน,MONTH(_xlfn.SINGLE(NovSun1)+24)=11),_xlfn.SINGLE(NovSun1)+24,\"\"),IF(AND(YEAR(_xlfn.SINGLE(NovSun1)+31)=ปีปฏิทิน,MONTH(_xlfn.SINGLE(NovSun1)+31)=11),_xlfn.SINGLE(NovSun1)+31,\"\"))","v":{"$error":"#NAME?"}},{"$f":"IF(DAY(_xlfn.SINGLE(NovSun1))=1,IF(AND(YEAR(_xlfn.SINGLE(NovSun1)+25)=ปีปฏิทิน,MONTH(_xlfn.SINGLE(NovSun1)+25)=11),_xlfn.SINGLE(NovSun1)+25,\"\"),IF(AND(YEAR(_xlfn.SINGLE(NovSun1)+32)=ปีปฏิทิน,MONTH(_xlfn.SINGLE(NovSun1)+32)=11),_xlfn.SINGLE(NovSun1)+32,\"\"))","v":{"$error":"#NAME?"}},{"$f":"IF(DAY(_xlfn.SINGLE(NovSun1))=1,IF(AND(YEAR(_xlfn.SINGLE(NovSun1)+26)=ปีปฏิทิน,MONTH(_xlfn.SINGLE(NovSun1)+26)=11),_xlfn.SINGLE(NovSun1)+26,\"\"),IF(AND(YEAR(_xlfn.SINGLE(NovSun1)+33)=ปีปฏิทิน,MONTH(_xlfn.SINGLE(NovSun1)+33)=11),_xlfn.SINGLE(NovSun1)+33,\"\"))","v":{"$error":"#NAME?"}},{"$f":"IF(DAY(_xlfn.SINGLE(NovSun1))=1,IF(AND(YEAR(_xlfn.SINGLE(NovSun1)+27)=ปีปฏิทิน,MONTH(_xlfn.SINGLE(NovSun1)+27)=11),_xlfn.SINGLE(NovSun1)+27,\"\"),IF(AND(YEAR(_xlfn.SINGLE(NovSun1)+34)=ปีปฏิทิน,MONTH(_xlfn.SINGLE(NovSun1)+34)=11),_xlfn.SINGLE(NovSun1)+34,\"\"))","v":{"$error":"#NAME?"}},{"$f":"IF(DAY(_xlfn.SINGLE(NovSun1))=1,IF(AND(YEAR(_xlfn.SINGLE(NovSun1)+28)=ปีปฏิทิน,MONTH(_xlfn.SINGLE(NovSun1)+28)=11),_xlfn.SINGLE(NovSun1)+28,\"\"),IF(AND(YEAR(_xlfn.SINGLE(NovSun1)+35)=ปีปฏิทิน,MONTH(_xlfn.SINGLE(NovSun1)+35)=11),_xlfn.SINGLE(NovSun1)+35,\"\"))","v":{"$error":"#NAME?"}},null,null,{"$f":"IF(DAY(_xlfn.SINGLE(ธ.ค.อา.1))=1,IF(AND(YEAR(_xlfn.SINGLE(ธ.ค.อา.1)+22)=ปีปฏิทิน,MONTH(_xlfn.SINGLE(ธ.ค.อา.1)+22)=12),_xlfn.SINGLE(ธ.ค.อา.1)+22,\"\"),IF(AND(YEAR(_xlfn.SINGLE(ธ.ค.อา.1)+29)=ปีปฏิทิน,MONTH(_xlfn.SINGLE(ธ.ค.อา.1)+29)=12),_xlfn.SINGLE(ธ.ค.อา.1)+29,\"\"))","v":{"$error":"#NAME?"}},{"$f":"IF(DAY(_xlfn.SINGLE(ธ.ค.อา.1))=1,IF(AND(YEAR(_xlfn.SINGLE(ธ.ค.อา.1)+23)=ปีปฏิทิน,MONTH(_xlfn.SINGLE(ธ.ค.อา.1)+23)=12),_xlfn.SINGLE(ธ.ค.อา.1)+23,\"\"),IF(AND(YEAR(_xlfn.SINGLE(ธ.ค.อา.1)+30)=ปีปฏิทิน,MONTH(_xlfn.SINGLE(ธ.ค.อา.1)+30)=12),_xlfn.SINGLE(ธ.ค.อา.1)+30,\"\"))","v":{"$error":"#NAME?"}},{"$f":"IF(DAY(_xlfn.SINGLE(ธ.ค.อา.1))=1,IF(AND(YEAR(_xlfn.SINGLE(ธ.ค.อา.1)+24)=ปีปฏิทิน,MONTH(_xlfn.SINGLE(ธ.ค.อา.1)+24)=12),_xlfn.SINGLE(ธ.ค.อา.1)+24,\"\"),IF(AND(YEAR(_xlfn.SINGLE(ธ.ค.อา.1)+31)=ปีปฏิทิน,MONTH(_xlfn.SINGLE(ธ.ค.อา.1)+31)=12),_xlfn.SINGLE(ธ.ค.อา.1)+31,\"\"))","v":{"$error":"#NAME?"}},{"$f":"IF(DAY(_xlfn.SINGLE(ธ.ค.อา.1))=1,IF(AND(YEAR(_xlfn.SINGLE(ธ.ค.อา.1)+25)=ปีปฏิทิน,MONTH(_xlfn.SINGLE(ธ.ค.อา.1)+25)=12),_xlfn.SINGLE(ธ.ค.อา.1)+25,\"\"),IF(AND(YEAR(_xlfn.SINGLE(ธ.ค.อา.1)+32)=ปีปฏิทิน,MONTH(_xlfn.SINGLE(ธ.ค.อา.1)+32)=12),_xlfn.SINGLE(ธ.ค.อา.1)+32,\"\"))","v":{"$error":"#NAME?"}},{"$f":"IF(DAY(_xlfn.SINGLE(ธ.ค.อา.1))=1,IF(AND(YEAR(_xlfn.SINGLE(ธ.ค.อา.1)+26)=ปีปฏิทิน,MONTH(_xlfn.SINGLE(ธ.ค.อา.1)+26)=12),_xlfn.SINGLE(ธ.ค.อา.1)+26,\"\"),IF(AND(YEAR(_xlfn.SINGLE(ธ.ค.อา.1)+33)=ปีปฏิทิน,MONTH(_xlfn.SINGLE(ธ.ค.อา.1)+33)=12),_xlfn.SINGLE(ธ.ค.อา.1)+33,\"\"))","v":{"$error":"#NAME?"}},{"$f":"IF(DAY(_xlfn.SINGLE(ธ.ค.อา.1))=1,IF(AND(YEAR(_xlfn.SINGLE(ธ.ค.อา.1)+27)=ปีปฏิทิน,MONTH(_xlfn.SINGLE(ธ.ค.อา.1)+27)=12),_xlfn.SINGLE(ธ.ค.อา.1)+27,\"\"),IF(AND(YEAR(_xlfn.SINGLE(ธ.ค.อา.1)+34)=ปีปฏิทิน,MONTH(_xlfn.SINGLE(ธ.ค.อา.1)+34)=12),_xlfn.SINGLE(ธ.ค.อา.1)+34,\"\"))","v":{"$error":"#NAME?"}},{"$f":"IF(DAY(_xlfn.SINGLE(ธ.ค.อา.1))=1,IF(AND(YEAR(_xlfn.SINGLE(ธ.ค.อา.1)+28)=ปีปฏิทิน,MONTH(_xlfn.SINGLE(ธ.ค.อา.1)+28)=12),_xlfn.SINGLE(ธ.ค.อา.1)+28,\"\"),IF(AND(YEAR(_xlfn.SINGLE(ธ.ค.อา.1)+35)=ปีปฏิทิน,MONTH(_xlfn.SINGLE(ธ.ค.อา.1)+35)=12),_xlfn.SINGLE(ธ.ค.อา.1)+35,\"\"))","v":{"$error":"#NAME?"}}]
[null,null,{"$f":"IF(DAY(_xlfn.SINGLE(SepSun1))=1,IF(AND(YEAR(_xlfn.SINGLE(SepSun1)+29)=ปีปฏิทิน,MONTH(_xlfn.SINGLE(SepSun1)+29)=9),_xlfn.SINGLE(SepSun1)+29,\"\"),IF(AND(YEAR(_xlfn.SINGLE(SepSun1)+36)=ปีปฏิทิน,MONTH(_xlfn.SINGLE(SepSun1)+36)=9),_xlfn.SINGLE(SepSun1)+36,\"\"))","v":{"$error":"#NAME?"}},{"$f":"IF(DAY(_xlfn.SINGLE(SepSun1))=1,IF(AND(YEAR(_xlfn.SINGLE(SepSun1)+30)=ปีปฏิทิน,MONTH(_xlfn.SINGLE(SepSun1)+30)=9),_xlfn.SINGLE(SepSun1)+30,\"\"),IF(AND(YEAR(_xlfn.SINGLE(SepSun1)+37)=ปีปฏิทิน,MONTH(_xlfn.SINGLE(SepSun1)+37)=9),_xlfn.SINGLE(SepSun1)+37,\"\"))","v":{"$error":"#NAME?"}},{"$f":"IF(DAY(_xlfn.SINGLE(SepSun1))=1,IF(AND(YEAR(_xlfn.SINGLE(SepSun1)+31)=ปีปฏิทิน,MONTH(_xlfn.SINGLE(SepSun1)+31)=9),_xlfn.SINGLE(SepSun1)+31,\"\"),IF(AND(YEAR(_xlfn.SINGLE(SepSun1)+38)=ปีปฏิทิน,MONTH(_xlfn.SINGLE(SepSun1)+38)=9),_xlfn.SINGLE(SepSun1)+38,\"\"))","v":{"$error":"#NAME?"}},{"$f":"IF(DAY(_xlfn.SINGLE(SepSun1))=1,IF(AND(YEAR(_xlfn.SINGLE(SepSun1)+32)=ปีปฏิทิน,MONTH(_xlfn.SINGLE(SepSun1)+32)=9),_xlfn.SINGLE(SepSun1)+32,\"\"),IF(AND(YEAR(_xlfn.SINGLE(SepSun1)+39)=ปีปฏิทิน,MONTH(_xlfn.SINGLE(SepSun1)+39)=9),_xlfn.SINGLE(SepSun1)+39,\"\"))","v":{"$error":"#NAME?"}},{"$f":"IF(DAY(_xlfn.SINGLE(SepSun1))=1,IF(AND(YEAR(_xlfn.SINGLE(SepSun1)+33)=ปีปฏิทิน,MONTH(_xlfn.SINGLE(SepSun1)+33)=9),_xlfn.SINGLE(SepSun1)+33,\"\"),IF(AND(YEAR(_xlfn.SINGLE(SepSun1)+40)=ปีปฏิทิน,MONTH(_xlfn.SINGLE(SepSun1)+40)=9),_xlfn.SINGLE(SepSun1)+40,\"\"))","v":{"$error":"#NAME?"}},{"$f":"IF(DAY(_xlfn.SINGLE(SepSun1))=1,IF(AND(YEAR(_xlfn.SINGLE(SepSun1)+34)=ปีปฏิทิน,MONTH(_xlfn.SINGLE(SepSun1)+34)=9),_xlfn.SINGLE(SepSun1)+34,\"\"),IF(AND(YEAR(_xlfn.SINGLE(SepSun1)+41)=ปีปฏิทิน,MONTH(_xlfn.SINGLE(SepSun1)+41)=9),_xlfn.SINGLE(SepSun1)+41,\"\"))","v":{"$error":"#NAME?"}},{"$f":"IF(DAY(_xlfn.SINGLE(SepSun1))=1,IF(AND(YEAR(_xlfn.SINGLE(SepSun1)+35)=ปีปฏิทิน,MONTH(_xlfn.SINGLE(SepSun1)+35)=9),_xlfn.SINGLE(SepSun1)+35,\"\"),IF(AND(YEAR(_xlfn.SINGLE(SepSun1)+42)=ปีปฏิทิน,MONTH(_xlfn.SINGLE(SepSun1)+42)=9),_xlfn.SINGLE(SepSun1)+42,\"\"))","v":{"$error":"#NAME?"}},null,null,{"$f":"IF(DAY(_xlfn.SINGLE(OctSun1))=1,IF(AND(YEAR(_xlfn.SINGLE(OctSun1)+29)=ปีปฏิทิน,MONTH(_xlfn.SINGLE(OctSun1)+29)=10),_xlfn.SINGLE(OctSun1)+29,\"\"),IF(AND(YEAR(_xlfn.SINGLE(OctSun1)+36)=ปีปฏิทิน,MONTH(_xlfn.SINGLE(OctSun1)+36)=10),_xlfn.SINGLE(OctSun1)+36,\"\"))","v":{"$error":"#NAME?"}},{"$f":"IF(DAY(_xlfn.SINGLE(OctSun1))=1,IF(AND(YEAR(_xlfn.SINGLE(OctSun1)+30)=ปีปฏิทิน,MONTH(_xlfn.SINGLE(OctSun1)+30)=10),_xlfn.SINGLE(OctSun1)+30,\"\"),IF(AND(YEAR(_xlfn.SINGLE(OctSun1)+37)=ปีปฏิทิน,MONTH(_xlfn.SINGLE(OctSun1)+37)=10),_xlfn.SINGLE(OctSun1)+37,\"\"))","v":{"$error":"#NAME?"}},{"$f":"IF(DAY(_xlfn.SINGLE(OctSun1))=1,IF(AND(YEAR(_xlfn.SINGLE(OctSun1)+31)=ปีปฏิทิน,MONTH(_xlfn.SINGLE(OctSun1)+31)=10),_xlfn.SINGLE(OctSun1)+31,\"\"),IF(AND(YEAR(_xlfn.SINGLE(OctSun1)+38)=ปีปฏิทิน,MONTH(_xlfn.SINGLE(OctSun1)+38)=10),_xlfn.SINGLE(OctSun1)+38,\"\"))","v":{"$error":"#NAME?"}},{"$f":"IF(DAY(_xlfn.SINGLE(OctSun1))=1,IF(AND(YEAR(_xlfn.SINGLE(OctSun1)+32)=ปีปฏิทิน,MONTH(_xlfn.SINGLE(OctSun1)+32)=10),_xlfn.SINGLE(OctSun1)+32,\"\"),IF(AND(YEAR(_xlfn.SINGLE(OctSun1)+39)=ปีปฏิทิน,MONTH(_xlfn.SINGLE(OctSun1)+39)=10),_xlfn.SINGLE(OctSun1)+39,\"\"))","v":{"$error":"#NAME?"}},{"$f":"IF(DAY(_xlfn.SINGLE(OctSun1))=1,IF(AND(YEAR(_xlfn.SINGLE(OctSun1)+33)=ปีปฏิทิน,MONTH(_xlfn.SINGLE(OctSun1)+33)=10),_xlfn.SINGLE(OctSun1)+33,\"\"),IF(AND(YEAR(_xlfn.SINGLE(OctSun1)+40)=ปีปฏิทิน,MONTH(_xlfn.SINGLE(OctSun1)+40)=10),_xlfn.SINGLE(OctSun1)+40,\"\"))","v":{"$error":"#NAME?"}},{"$f":"IF(DAY(_xlfn.SINGLE(OctSun1))=1,IF(AND(YEAR(_xlfn.SINGLE(OctSun1)+34)=ปีปฏิทิน,MONTH(_xlfn.SINGLE(OctSun1)+34)=10),_xlfn.SINGLE(OctSun1)+34,\"\"),IF(AND(YEAR(_xlfn.SINGLE(OctSun1)+41)=ปีปฏิทิน,MONTH(_xlfn.SINGLE(OctSun1)+41)=10),_xlfn.SINGLE(OctSun1)+41,\"\"))","v":{"$error":"#NAME?"}},{"$f":"IF(DAY(_xlfn.SINGLE(OctSun1))=1,IF(AND(YEAR(_xlfn.SINGLE(OctSun1)+35)=ปีปฏิทิน,MONTH(_xlfn.SINGLE(OctSun1)+35)=10),_xlfn.SINGLE(OctSun1)+35,\"\"),IF(AND(YEAR(_xlfn.SINGLE(OctSun1)+42)=ปีปฏิทิน,MONTH(_xlfn.SINGLE(OctSun1)+42)=10),_xlfn.SINGLE(OctSun1)+42,\"\"))","v":{"$error":"#NAME?"}},null,null,{"$f":"IF(DAY(_xlfn.SINGLE(NovSun1))=1,IF(AND(YEAR(_xlfn.SINGLE(NovSun1)+29)=ปีปฏิทิน,MONTH(_xlfn.SINGLE(NovSun1)+29)=11),_xlfn.SINGLE(NovSun1)+29,\"\"),IF(AND(YEAR(_xlfn.SINGLE(NovSun1)+36)=ปีปฏิทิน,MONTH(_xlfn.SINGLE(NovSun1)+36)=11),_xlfn.SINGLE(NovSun1)+36,\"\"))","v":{"$error":"#NAME?"}},{"$f":"IF(DAY(_xlfn.SINGLE(NovSun1))=1,IF(AND(YEAR(_xlfn.SINGLE(NovSun1)+30)=ปีปฏิทิน,MONTH(_xlfn.SINGLE(NovSun1)+30)=11),_xlfn.SINGLE(NovSun1)+30,\"\"),IF(AND(YEAR(_xlfn.SINGLE(NovSun1)+37)=ปีปฏิทิน,MONTH(_xlfn.SINGLE(NovSun1)+37)=11),_xlfn.SINGLE(NovSun1)+37,\"\"))","v":{"$error":"#NAME?"}},{"$f":"IF(DAY(_xlfn.SINGLE(NovSun1))=1,IF(AND(YEAR(_xlfn.SINGLE(NovSun1)+31)=ปีปฏิทิน,MONTH(_xlfn.SINGLE(NovSun1)+31)=11),_xlfn.SINGLE(NovSun1)+31,\"\"),IF(AND(YEAR(_xlfn.SINGLE(NovSun1)+38)=ปีปฏิทิน,MONTH(_xlfn.SINGLE(NovSun1)+38)=11),_xlfn.SINGLE(NovSun1)+38,\"\"))","v":{"$error":"#NAME?"}},{"$f":"IF(DAY(_xlfn.SINGLE(NovSun1))=1,IF(AND(YEAR(_xlfn.SINGLE(NovSun1)+32)=ปีปฏิทิน,MONTH(_xlfn.SINGLE(NovSun1)+32)=11),_xlfn.SINGLE(NovSun1)+32,\"\"),IF(AND(YEAR(_xlfn.SINGLE(NovSun1)+39)=ปีปฏิทิน,MONTH(_xlfn.SINGLE(NovSun1)+39)=11),_xlfn.SINGLE(NovSun1)+39,\"\"))","v":{"$error":"#NAME?"}},{"$f":"IF(DAY(_xlfn.SINGLE(NovSun1))=1,IF(AND(YEAR(_xlfn.SINGLE(NovSun1)+33)=ปีปฏิทิน,MONTH(_xlfn.SINGLE(NovSun1)+33)=11),_xlfn.SINGLE(NovSun1)+33,\"\"),IF(AND(YEAR(_xlfn.SINGLE(NovSun1)+40)=ปีปฏิทิน,MONTH(_xlfn.SINGLE(NovSun1)+40)=11),_xlfn.SINGLE(NovSun1)+40,\"\"))","v":{"$error":"#NAME?"}},{"$f":"IF(DAY(_xlfn.SINGLE(NovSun1))=1,IF(AND(YEAR(_xlfn.SINGLE(NovSun1)+34)=ปีปฏิทิน,MONTH(_xlfn.SINGLE(NovSun1)+34)=11),_xlfn.SINGLE(NovSun1)+34,\"\"),IF(AND(YEAR(_xlfn.SINGLE(NovSun1)+41)=ปีปฏิทิน,MONTH(_xlfn.SINGLE(NovSun1)+41)=11),_xlfn.SINGLE(NovSun1)+41,\"\"))","v":{"$error":"#NAME?"}},{"$f":"IF(DAY(_xlfn.SINGLE(NovSun1))=1,IF(AND(YEAR(_xlfn.SINGLE(NovSun1)+35)=ปีปฏิทิน,MONTH(_xlfn.SINGLE(NovSun1)+35)=11),_xlfn.SINGLE(NovSun1)+35,\"\"),IF(AND(YEAR(_xlfn.SINGLE(NovSun1)+42)=ปีปฏิทิน,MONTH(_xlfn.SINGLE(NovSun1)+42)=11),_xlfn.SINGLE(NovSun1)+42,\"\"))","v":{"$error":"#NAME?"}},null,null,{"$f":"IF(DAY(_xlfn.SINGLE(ธ.ค.อา.1))=1,IF(AND(YEAR(_xlfn.SINGLE(ธ.ค.อา.1)+29)=ปีปฏิทิน,MONTH(_xlfn.SINGLE(ธ.ค.อา.1)+29)=12),_xlfn.SINGLE(ธ.ค.อา.1)+29,\"\"),IF(AND(YEAR(_xlfn.SINGLE(ธ.ค.อา.1)+36)=ปีปฏิทิน,MONTH(_xlfn.SINGLE(ธ.ค.อา.1)+36)=12),_xlfn.SINGLE(ธ.ค.อา.1)+36,\"\"))","v":{"$error":"#NAME?"}},{"$f":"IF(DAY(_xlfn.SINGLE(ธ.ค.อา.1))=1,IF(AND(YEAR(_xlfn.SINGLE(ธ.ค.อา.1)+30)=ปีปฏิทิน,MONTH(_xlfn.SINGLE(ธ.ค.อา.1)+30)=12),_xlfn.SINGLE(ธ.ค.อา.1)+30,\"\"),IF(AND(YEAR(_xlfn.SINGLE(ธ.ค.อา.1)+37)=ปีปฏิทิน,MONTH(_xlfn.SINGLE(ธ.ค.อา.1)+37)=12),_xlfn.SINGLE(ธ.ค.อา.1)+37,\"\"))","v":{"$error":"#NAME?"}},{"$f":"IF(DAY(_xlfn.SINGLE(ธ.ค.อา.1))=1,IF(AND(YEAR(_xlfn.SINGLE(ธ.ค.อา.1)+31)=ปีปฏิทิน,MONTH(_xlfn.SINGLE(ธ.ค.อา.1)+31)=12),_xlfn.SINGLE(ธ.ค.อา.1)+31,\"\"),IF(AND(YEAR(_xlfn.SINGLE(ธ.ค.อา.1)+38)=ปีปฏิทิน,MONTH(_xlfn.SINGLE(ธ.ค.อา.1)+38)=12),_xlfn.SINGLE(ธ.ค.อา.1)+38,\"\"))","v":{"$error":"#NAME?"}},{"$f":"IF(DAY(_xlfn.SINGLE(ธ.ค.อา.1))=1,IF(AND(YEAR(_xlfn.SINGLE(ธ.ค.อา.1)+32)=ปีปฏิทิน,MONTH(_xlfn.SINGLE(ธ.ค.อา.1)+32)=12),_xlfn.SINGLE(ธ.ค.อา.1)+32,\"\"),IF(AND(YEAR(_xlfn.SINGLE(ธ.ค.อา.1)+39)=ปีปฏิทิน,MONTH(_xlfn.SINGLE(ธ.ค.อา.1)+39)=12),_xlfn.SINGLE(ธ.ค.อา.1)+39,\"\"))","v":{"$error":"#NAME?"}},{"$f":"IF(DAY(_xlfn.SINGLE(ธ.ค.อา.1))=1,IF(AND(YEAR(_xlfn.SINGLE(ธ.ค.อา.1)+33)=ปีปฏิทิน,MONTH(_xlfn.SINGLE(ธ.ค.อา.1)+33)=12),_xlfn.SINGLE(ธ.ค.อา.1)+33,\"\"),IF(AND(YEAR(_xlfn.SINGLE(ธ.ค.อา.1)+40)=ปีปฏิทิน,MONTH(_xlfn.SINGLE(ธ.ค.อา.1)+40)=12),_xlfn.SINGLE(ธ.ค.อา.1)+40,\"\"))","v":{"$error":"#NAME?"}},{"$f":"IF(DAY(_xlfn.SINGLE(ธ.ค.อา.1))=1,IF(AND(YEAR(_xlfn.SINGLE(ธ.ค.อา.1)+34)=ปีปฏิทิน,MONTH(_xlfn.SINGLE(ธ.ค.อา.1)+34)=12),_xlfn.SINGLE(ธ.ค.อา.1)+34,\"\"),IF(AND(YEAR(_xlfn.SINGLE(ธ.ค.อา.1)+41)=ปีปฏิทิน,MONTH(_xlfn.SINGLE(ธ.ค.อา.1)+41)=12),_xlfn.SINGLE(ธ.ค.อา.1)+41,\"\"))","v":{"$error":"#NAME?"}},{"$f":"IF(DAY(_xlfn.SINGLE(ธ.ค.อา.1))=1,IF(AND(YEAR(_xlfn.SINGLE(ธ.ค.อา.1)+35)=ปีปฏิทิน,MONTH(_xlfn.SINGLE(ธ.ค.อา.1)+35)=12),_xlfn.SINGLE(ธ.ค.อา.1)+35,\"\"),IF(AND(YEAR(_xlfn.SINGLE(ธ.ค.อา.1)+42)=ปีปฏิทิน,MONTH(_xlfn.SINGLE(ธ.ค.อา.1)+42)=12),_xlfn.SINGLE(ธ.ค.อา.1)+42,\"\"))","v":{"$error":"#NAME?"}}]